Workbook

Sheet Welcome
AA1: 11 | AB1: =INDEX(AB$4:AB$45,MATCH(MyVoteNo,$AA$4:$AA$45,0)) -> Public Service and Administration | AC1: =INDEX(AC$4:AC$45,MATCH(MyVoteNo,$AA$4:$AA$45,0)) -> George Tembo | AE1: =INDEX(AE$4:AE$45,MATCH(MyVoteNo,$AA$4:$AA$45,0)) -> George.Tembo@treasury.gov.za | AF1: =INDEX(AF$4:AF$45,MATCH(MyVoteNo,$AA$4:$AA$45,0)) -> Uvadhya Singh | AH1: =INDEX(AH$4:AH$45,MATCH(MyVoteNo,$AA$4:$AA$45,0)) -> Uvadhya.Singh@treasury.gov.za
E2: MTEC Submission Workbook - 2022 MTEF | AI2: Dept Ceilings | AL2: CoE Ceilings | AS2: Departmental Ceilings | AT2: =SUM(AT4:AT45) -> 1831054386 | AU2: 1870191770 | AV2: 1966976194 | AY2: Compensation Ceilings | AZ2: =SUM(AZ4:AZ45) -> 175455811 | BA2: 175551343 | BB2: 183435272
Z3: Dept Index No. | AA3: Vote No. | AB3: Department | AC3: Contact Person | AD3: Tel | AE3: email | AF3: Contact Person | AG3: Tel | AH3: email | AI3: =MyYear5 -> 2022/23 | AJ3: =MyYear6 -> 2023/24 | AK3: =MyYear7 -> 2024/25 | AL3: =AI3 -> 2022/23 | AM3: 2023/24 | AN3: 2024/25 | AS3: Department | AT3: =AI3 -> 2022/23 | AU3: 2023/24 | AV3: 2024/25 | AY3: Department | AZ3: =AI3 -> 2022/23 | BA3: 2023/24 | BB3: 2024/25
Z4: 1 | AA4: 29 | AB4: Agriculture, Land Reform and Rural Development | AC4: Bothwell Deka | AD4: (012) 395 6784 | AE4: Bothwell.Deka@treasury.gov.za | AF4: Humbelani Ramuedzisi | AG4: (012) 315 5585 | AH4: Humbelani.Ramuedzisi@treasury.gov.za | AI4: =IFERROR(INDEX((AT$4:AT$45),MATCH($AB4,$AS$4:$AS$45,0)),0) -> 17170668 | AJ4: =IFERROR(INDEX((AU$4:AU$45),MATCH($AB4,$AS$4:$AS$45,0)),0) -> 17387702 | AK4: =IFERROR(INDEX((AV$4:AV$45),MATCH($AB4,$AS$4:$AS$45,0)),0) -> 18168574 | AL4: =IFERROR(INDEX((AZ$4:AZ$45),MATCH($AB4,$AY$4:$AY$45,0)),0) -> 3968925 | AM4: =IFERROR(INDEX((BA$4:BA$45),MATCH($AB4,$AY$4:$AY$45,0)),0) -> 3856499 | AN4: =IFERROR(INDEX((BB$4:BB$45),MATCH($AB4,$AY$4:$AY$45,0)),0) -> 4029693 | AS4: Agriculture, Land Reform and Rural Development | AT4: 17170668 | AU4: 17387702 | AV4: 18168574 | AY4: Agriculture, Land Reform and Rural Development | AZ4: 3968925 | BA4: 3856499 | BB4: 4029693
Z5: 2 | AA5: 16 | AB5: Basic Education | AC5: Spencer Janari | AD5: (012) 315 5436 | AE5: Spencer.Janari@treasury.gov.za | AF5: Pindi Masiso | AG5: (012) 315 5722 | AH5: Pindi.Masiso@treasury.gov.za | AI5: 28174672 | AJ5: 28804038 | AK5: 30097610 | AL5: 532730 | AM5: 535567 | AN5: 559618 | AS5: Basic Education | AT5: 28174672 | AU5: 28804038 | AV5: 30097610 | AY5: Basic Education | AZ5: 532730 | BA5: 535567 | BB5: 559618
Z6: 3 | AA6: 42 | AB6: Centre for Public Service Innovation | AC6: George Tembo | AD6: (012) 315 5514 | AE6: George.Tembo@treasury.gov.za | AF6: Uvadhya Singh | AG6: (012) 315 9030 | AH6: Uvadhya.Singh@treasury.gov.za | AI6: =IFERROR(INDEX((AT$4:AT$45),MATCH($AB6,$AS$4:$AS$45,0)),0) -> 44143 | AJ6: =IFERROR(INDEX((AU$4:AU$45),MATCH($AB6,$AS$4:$AS$45,0)),0) -> 45361 | AK6: =IFERROR(INDEX((AV$4:AV$45),MATCH($AB6,$AS$4:$AS$45,0)),0) -> 47397 | AL6: =IFERROR(INDEX((AZ$4:AZ$45),MATCH($AB6,$AY$4:$AY$45,0)),0) -> 24177 | AM6: =IFERROR(INDEX((BA$4:BA$45),MATCH($AB6,$AY$4:$AY$45,0)),0) -> 24869 | AN6: =IFERROR(INDEX((BB$4:BB$45),MATCH($AB6,$AY$4:$AY$45,0)),0) -> 25985 | AS6: Centre for Public Service Innovation | AT6: 44143 | AU6: 45361 | AV6: 47397 | AY6: Centre for Public Service Innovation | AZ6: 24177 | BA6: 24869 | BB6: 25985
B7: ="VOTE " &$AA$1&": " -> VOTE 11: | C7: =MyDeptName -> Public Service and Administration | Z7: 4 | AA7: 21 | AB7: Civilian Secretariat for the Police Service | AC7: Nompumelelo Radebe | AD7: (012) 315 5957 | AE7: Nompumelelo.Radebe@treasury.gov.za | AF7: Velisubuhle Buti | AG7: (012) 395 6709 | AH7: Velisubuhle.Buti@treasury.gov.za | AI7: 150228 | AJ7: 150489 | AK7: 157245 | AL7: 103744 | AM7: 103740 | AN7: 108398 | AS7: Civilian Secretariat for the Police Service | AT7: 150228 | AU7: 150489 | AV7: 157245 | AY7: Civilian Secretariat for the Police Service | AZ7: 103744 | BA7: 103740 | BB7: 108398
Z8: 5 | AA8: 30 | AB8: Communications and Digital Technologies | AC8: Rezah Atcha | AD8: (012) 315 5287 | AE8: Rezah.Atcha@treasury.gov.za | AF8: Keitumetse Motshegwe | AG8: (012) 395 6750 | AH8: keitumetse.motshegwe@treasury.gov.za | AI8: 2417182 | AJ8: 2426409 | AK8: 2535360 | AL8: 302941 | AM8: 291288 | AN8: 304366 | AS8: Communications and Digital Technologies | AT8: 2417182 | AU8: 2426409 | AV8: 2535360 | AY8: Communications and Digital Technologies | AZ8: 302941 | BA8: 291288 | BB8: 304366
Z9: 6 | AA9: 3 | AB9: Cooperative Governance | AC9: Millicent Mulaudzi | AD9: (012) 395 6576 | AE9: Millicent.Mulaudzi@treasury.gov.za | AF9: Millicent Mulaudzi | AG9: (012) 395 6576 | AH9: Millicent.Mulaudzi@treasury.gov.za | AI9: 107105999 | AJ9: 108386066 | AK9: 113253628 | AL9: 347828 | AM9: 331683 | AN9: 346575 | AS9: Cooperative Governance | AT9: 107105999 | AU9: 108386066 | AV9: 113253628 | AY9: Cooperative Governance | AZ9: 347828 | BA9: 331683 | BB9: 346575
B10: Enquiries | F10: Department Contact Details | I10: PLEASE CLICK THE BUTTON BELOW TO SUBMIT AN INPUT… (Note: Input can not be submitted if ceilings on the 'Data' sheet are exceeded.) | Z10: 7 | AA10: 22 | AB10: Correctional Services | AC10: Elvis Ramafamba | AD10: (012) 315 5204 | AE10: Elvis.Ramafamba@treasury.gov.za | AF10: Keabetswe Matlwa | AG10: (012) 395 6678 | AH10: Keabetswe.Matlwa@treasury.gov.za | AI10: 25486638 | AJ10: 25593909 | AK10: 26743311 | AL10: 17249586 | AM10: 16928739 | AN10: 17689000 | AS10: Correctional Services | AT10: 25486638 | AU10: 25593909 | AV10: 26743311 | AY10: Correctional Services | AZ10: 17249586 | BA10: 16928739 | BB10: 17689000
B11: =AC1 -> George Tembo | D11: =AE1 -> George.Tembo@treasury.gov.za | F11: Name: | Z11: 8 | AA11: 23 | AB11: Defence | AC11: Mashudu Bidzha | AD11: (012) 315 5344 | AE11: Mashudu.Bidzha@treasury.gov.za | AF11: Lesiba Ledwaba | AG11: (012) 315 6660 | AH11: Lesiba.Ledwaba@treasury.gov.za | AI11: 46776964 | AJ11: 47159805 | AK11: 49277735 | AL11: 29366491 | AM11: 29649010 | AN11: 30980536 | AS11: Defence | AT11: 46776964 | AU11: 47159805 | AV11: 49277735 | AY11: Defence | AZ11: 29366491 | BA11: 29649010 | BB11: 30980536
B12: =IF(AF1=B11,"",AF1) -> Uvadhya Singh | D12: =IF(AH1=D11,"",AH1) -> Uvadhya.Singh@treasury.gov.za | F12: Email: | Z12: 9 | AA12: 31 | AB12: Employment and Labour | AC12: Judy Naidoo | AD12: (012) 315 5269 | AE12: Judy.Naidoo@treasury.gov.za | AF12: Judy Naidoo | AG12: (012) 315 5269 | AH12: Judy.Naidoo@treasury.gov.za | AI12: 3559303 | AJ12: 3571234 | AK12: 3731616 | AL12: 1384089 | AM12: 1384763 | AN12: 1446951 | AS12: Employment and Labour | AT12: 3559303 | AU12: 3571234 | AV12: 3731616 | AY12: Employment and Labour | AZ12: 1384089 | BA12: 1384763 | BB12: 1446951
F13: Telephone number: | Z13: 10 | AA13: 32 | AB13: Forestry, Fisheries and the Environment | AC13: Gcobisa Magazi | AD13: (012) 315 5320 | AE13: Gcobisa.Magazi@treasury.gov.za | AF13: Ashley Ramasimu | AG13: (012) 315 5166 | AH13: Ashley.Ramasimu@treasury.gov.za | AI13: 8883025 | AJ13: 8947150 | AK13: 9348937 | AL13: 1881093 | AM13: 1889993 | AN13: 1974872 | AS13: Forestry, Fisheries and the Environment | AT13: 8883025 | AU13: 8947150 | AV13: 9348937 | AY13: Forestry, Fisheries and the Environment | AZ13: 1881093 | BA13: 1889993 | BB13: 1974872
F14: Mobile (optional): | Z14: 11 | AA14: 4 | AB14: Government Communication and Information System | AC14: Mokgatla Tema | AD14: (012) 315 5948 | AE14: Mokgatla.Tema@treasury.gov.za | AF14: Viwe Sobudula | AG14: (012) 315 5015 | AH14: Viwe.Sobudula@treasury.gov.za | AI14: 709967 | AJ14: 711862 | AK14: 743830 | AL14: 275144 | AM14: 275218 | AN14: 287579 | AS14: Government Communication and Information System | AT14: 709967 | AU14: 711862 | AV14: 743830 | AY14: Government Communication and Information System | AZ14: 275144 | BA14: 275218 | BB14: 287579
Z15: 12 | AA15: 18 | AB15: Health | AC15: Refiloe Thokoa | AD15: (012) 395 6559 | AE15: Refiloe.thokoa@treasury.gov.za | AF15: Jonatan Daven | AG15: (012) 315 6711 | AH15: Jonatan.Daven@treasury.gov.za | AI15: 61655429 | AJ15: 59386455 | AK15: 61215612 | AL15: 843047 | AM15: 850516 | AN15: 888711 | AS15: Health | AT15: 61655429 | AU15: 59386455 | AV15: 61215612 | AY15: Health | AZ15: 843047 | BA15: 850516 | BB15: 888711
Z16: 13 | AA16: 17 | AB16: Higher Education and Training | AC16: Barileng Sape | AD16: (012) 406 9069 | AE16: barileng.sape@treasury.gov.za | AF16: Nkhumeleni Munyai | AG16: (012) 315 5636 | AH16: Nkhumeleni.Munyai@treasury.gov.za | AI16: 122587839 | AJ16: 125013081 | AK16: 131597262 | AL16: 10775567 | AM16: 10962604 | AN16: 11454929 | AS16: Higher Education and Training | AT16: 122587839 | AU16: 125013081 | AV16: 131597262 | AY16: Higher Education and Training | AZ16: 10775567 | BA16: 10962604 | BB16: 11454929
Z17: 14 | AA17: 5 | AB17: Home Affairs | AC17: Timothy Murwa | AD17: (012) 315 5002 | AE17: Timothy.Murwa@treasury.gov.za | AF17: Maggy Makoka | AG17: (012) 315 5468 | AH17: MAGGY.MOKOKA@TREASURY.GOV.ZA | AI17: 8829108 | AJ17: 8875062 | AK17: 9273632 | AL17: 3478066 | AM17: 3502938 | AN17: 3660255 | AS17: Home Affairs | AT17: 8829108 | AU17: 8875062 | AV17: 9273632 | AY17: Home Affairs | AZ17: 3478066 | BA17: 3502938 | BB17: 3660255
Z18: 15 | AA18: 33 | AB18: Human Settlements | AC18: Ulrike Britton | AD18: (012) 315 5578 | AE18: Ulrike.Britton@treasury.gov.za | AF18: Lindiwe Ngcongwane | AG18: (012) 315 5357 | AH18: Lindiwe.Ngcongwane@treasury.gov.za | AI18: 32619284 | AJ18: 33982600 | AK18: 35508742 | AL18: 403094 | AM18: 403176 | AN18: 421283 | AS18: Human Settlements | AT18: 32619284 | AU18: 33982600 | AV18: 35508742 | AY18: Human Settlements | AZ18: 403094 | BA18: 403176 | BB18: 421283
Z19: 16 | AA19: 24 | AB19: Independent Police Investigative Directorate | AC19: Nompumelelo Radebe | AD19: (012) 315 5957 | AE19: Nompumelelo.Radebe@treasury.gov.za | AF19: Velisubuhle Buti | AG19: (012) 395 6709 | AH19: Velisubuhle.Buti@treasury.gov.za | AI19: 351796 | AJ19: 357989 | AK19: 374064 | AL19: 234099 | AM19: 239613 | AN19: 250376 | AS19: Independent Police Investigative Directorate | AT19: 351796 | AU19: 357989 | AV19: 374064 | AY19: Independent Police Investigative Directorate | AZ19: 234099 | BA19: 239613 | BB19: 250376
Z20: 17 | AA20: 6 | AB20: International Relations and Cooperation | AC20: George Tembo | AD20: (012) 315 5514 | AE20: George.Tembo@treasury.gov.za | AF20: Mercy Mhlophe | AG20: (012) 315 5598 | AH20: mercy.mhlope@treasury.gov.za | AI20: 6568006 | AJ20: 6611037 | AK20: 6907933 | AL20: 2827273 | AM20: 2839854 | AN20: 2967390 | AS20: International Relations and Cooperation | AT20: 6568006 | AU20: 6611037 | AV20: 6907933 | AY20: International Relations and Cooperation | AZ20: 2827273 | BA20: 2839854 | BB20: 2967390
Z21: 18 | AA21: 25 | AB21: Justice and Constitutional Development | AC21: Werner Krause | AD21: (012) 315 5211 | AE21: Werner.Krause@treasury.gov.za | AF21: Thabo Selahle | AG21: (012) 395 6610 | AH21: Thabo.Selahle@Treasury.gov.za | AI21: 21812969 | AJ21: 21951135 | AK21: 22936939 | AL21: 12263031 | AM21: 12327844 | AN21: 12881484 | AS21: Justice and Constitutional Development | AT21: 21812969 | AU21: 21951135 | AV21: 22936939 | AY21: Justice and Constitutional Development | AZ21: 12263031 | BA21: 12327844 | BB21: 12881484
Z22: 19 | AA22: 26 | AB22: Military Veterans | AC22: Mashudu Bidzha | AD22: (012) 315 5344 | AE22: Mashudu.Bidzha@treasury.gov.za | AF22: Lesiba Ledwaba | AG22: (012) 315 6660 | AH22: Lesiba.Ledwaba@treasury.gov.za | AI22: 663353 | AJ22: 662993 | AK22: 692764 | AL22: 126734 | AM22: 130736 | AN22: 136607 | AS22: Military Veterans | AT22: 663353 | AU22: 662993 | AV22: 692764 | AY22: Military Veterans | AZ22: 126734 | BA22: 130736 | BB22: 136607
Z23: 20 | AA23: 34 | AB23: Mineral Resources and Energy | AC23: Rezah Atcha | AD23: (012) 315 5287 | AE23: Rezah.Atcha@treasury.gov.za | AF23: Nomagugu Madikane | AG23: (012) 315 5312 | AH23: Nomagugu.Madikane@treasury.gov.za | AI23: 10204771 | AJ23: 10436456 | AK23: 10905147 | AL23: 1037127 | AM23: 1037131 | AN23: 1083709 | AS23: Mineral Resources and Energy | AT23: 10204771 | AU23: 10436456 | AV23: 10905147 | AY23: Mineral Resources and Energy | AZ23: 1037127 | BA23: 1037131 | BB23: 1083709
Z24: 21 | AA24: 7 | AB24: National School of Government | AC24: George Tembo | AD24: (012) 315 5514 | AE24: George.Tembo@treasury.gov.za | AF24: Uvadhya Singh | AG24: (012) 315 9030 | AH24: Uvadhya.Singh@treasury.gov.za | AI24: 213941 | AJ24: 214692 | AK24: 224333 | AL24: 58056 | AM24: 58057 | AN24: 60665 | AS24: National School of Government | AT24: 213941 | AU24: 214692 | AV24: 224333 | AY24: National School of Government | AZ24: 58056 | BA24: 58057 | BB24: 60665
Z25: 22 | AA25: 8 | AB25: National Treasury | AC25: Mokgatla Tema | AD25: (012) 315 5948 | AE25: Mokgatla.Tema@treasury.gov.za | AF25: Rhoda Marais | AG25: (012) 315 5906 | AH25: Rhoda.Marais@treasury.gov.za | AI25: 874369889 | AJ25: 906170915 | AK25: 959592429 | AL25: 861598 | AM25: 862286 | AN25: 901010 | AS25: National Treasury | AT25: 874369889 | AU25: 906170915 | AV25: 959592429 | AY25: National Treasury | AZ25: 861598 | BA25: 862286 | BB25: 901010
Z26: 23 | AA26: 27 | AB26: Office of the Chief Justice | AC26: Elvis Ramafamba | AD26: (012) 315 5204 | AE26: Elvis.Ramafamba@treasury.gov.za | AF26: Keabetswe Matlwa | AG26: (012) 395 6678 | AH26: Keabetswe.Matlwa@treasury.gov.za | AI26: 2348436 | AJ26: 2357611 | AK26: 2463491 | AL26: 1738700 | AM26: 1740705 | AN26: 1818880 | AS26: Office of the Chief Justice | AT26: 2348436 | AU26: 2357611 | AV26: 2463491 | AY26: Office of the Chief Justice | AZ26: 1738700 | BA26: 1740705 | BB26: 1818880
Z27: 24 | AA27: 2 | AB27: Parliament | AC27: Timothy Murwa | AD27: (012) 315 5002 | AE27: Timothy.Murwa@treasury.gov.za | AF27: Maggy Makoka | AG27: (012) 315 5468 | AH27: Maggy.Mokoka@Treasury.gov.za | AI27: 2651952 | AJ27: 2657570 | AK27: 2776916 | AL27: 1398889 | AM27: 1399164 | AN27: 1461998 | AS27: Parliament | AT27: 2651952 | AU27: 2657570 | AV27: 2776916 | AY27: Parliament | AZ27: 1398889 | BA27: 1399164 | BB27: 1461998
Z28: 25 | AA28: 9 | AB28: Planning, Monitoring and Evaluation | AC28: Mokgatla Tema | AD28: (012) 315 5948 | AE28: Mokgatla.Tema@treasury.gov.za | AF28: Viwe Sobudula | AG28: (012) 315 5015 | AH28: Viwe.Sobudula@treasury.gov.za | AI28: 460327 | AJ28: 461317 | AK28: 482026 | AL28: 303497 | AM28: 306495 | AN28: 320261 | AS28: Planning, Monitoring and Evaluation | AT28: 460327 | AU28: 461317 | AV28: 482026 | AY28: Planning, Monitoring and Evaluation | AZ28: 303497 | BA28: 306495 | BB28: 320261
Z29: 26 | AA29: 28 | AB29: Police | AC29: Nompumelelo Radebe | AD29: (012) 315 5957 | AE29: Nompumelelo.Radebe@treasury.gov.za | AF29: Mmathapelo Maphangela | AG29: (012) 406 9013 | AH29: Mmathapelo.Maphangela@treasury.gov.za | AI29: 96857602 | AJ29: 97083609 | AK29: 101443585 | AL29: 75299665 | AM29: 75297089 | AN29: 78678642 | AS29: Police | AT29: 96857602 | AU29: 97083609 | AV29: 101443585 | AY29: Police | AZ29: 75299665 | BA29: 75297089 | BB29: 78678642
Z30: 27 | AA30: 10 | AB30: Public Enterprises | AC30: Isaac Kurasha | AD30: (012) 315 5213 | AE30: Isaac.Kurasha@treasury.gov.za | AF30: Ntandokazi Makaula | AG30: (012) 395 6667 | AH30: Ntandokazi.Makaula@treasury.gov.za | AI30: 2071587 | AJ30: 297553 | AK30: 310915 | AL30: 177453 | AM30: 179974 | AN30: 188057 | AS30: Public Enterprises | AT30: 2071587 | AU30: 297553 | AV30: 310915 | AY30: Public Enterprises | AZ30: 177453 | BA30: 179974 | BB30: 188057
Z31: 28 | AA31: 11 | AB31: Public Service and Administration | AC31: George Tembo | AD31: (012) 315 5514 | AE31: George.Tembo@treasury.gov.za | AF31: Uvadhya Singh | AG31: (012) 315 9030 | AH31: Uvadhya.Singh@treasury.gov.za | AI31: 535162 | AJ31: 543462 | AK31: 567875 | AL31: 289286 | AM31: 290747 | AN31: 303804 | AS31: Public Service Commission | AT31: 284582 | AU31: 284921 | AV31: 297715 | AY31: Public Service Commission | AZ31: 212875 | BA31: 212877 | BB31: 222437
Z32: 29 | AA32: 12 | AB32: Public Service Commission | AC32: George Tembo | AD32: (012) 315 5514 | AE32: George.Tembo@treasury.gov.za | AF32: Mercy Mhlophe | AG32: (012) 315 5598 | AH32: mercy.mhlope@treasury.gov.za | AI32: 284582 | AJ32: 284921 | AK32: 297715 | AL32: 212875 | AM32: 212877 | AN32: 222437 | AS32: Public Service and Administration | AT32: 535162 | AU32: 543462 | AV32: 567875 | AY32: Public Service and Administration | AZ32: 289286 | BA32: 290747 | BB32: 303804
Z33: 30 | AA33: 13 | AB33: Public Works and Infrastructure | AC33: George Tembo | AD33: (012) 315 5514 | AE33: George.Tembo@treasury.gov.za | AF33: Uvadhya Singh | AG33: (012) 315 9030 | AH33: Uvadhya.Singh@treasury.gov.za | AI33: 8546260 | AJ33: 8578946 | AK33: 8964214 | AL33: 570231 | AM33: 571442 | AN33: 597104 | AS33: Public Works and Infrastructure | AT33: 8546260 | AU33: 8578946 | AV33: 8964214 | AY33: Public Works and Infrastructure | AZ33: 570231 | BA33: 571442 | BB33: 597104
Z34: 31 | AA34: 35 | AB34: Science and Innovation | AC34: Gcobisa Magazi | AD34: (012) 315 5320 | AE34: Gcobisa.Magazi@treasury.gov.za | AF34: Thabiso Molewa | AG34: (012) 395 6780 | AH34: Thabiso.Molewa@treasury.gov.za | AI34: 9127976 | AJ34: 9244581 | AK34: 9659756 | AL34: 358364 | AM34: 358376 | AN34: 374470 | AS34: Science and Innovation | AT34: 9127976 | AU34: 9244581 | AV34: 9659756 | AY34: Science and Innovation | AZ34: 358364 | BA34: 358376 | BB34: 374470
Z35: 32 | AA35: 36 | AB35: Small Business Development | AC35: Isaac Kurasha | AD35: (012) 315 5213 | AE35: Isaac.Kurasha@treasury.gov.za | AF35: Rudzani Sikhwari | AG35: (012) 315 5823 | AH35: rudzani.sikhwari@treasury.gov.za | AI35: 2560324 | AJ35: 2569927 | AK35: 2685340 | AL35: 157746 | AM35: 163267 | AN35: 170599 | AS35: Small Business Development | AT35: 2560324 | AU35: 2569927 | AV35: 2685340 | AY35: Small Business Development | AZ35: 157746 | BA35: 163267 | BB35: 170599
Z36: 33 | AA36: 19 | AB36: Social Development | AC36: Pebetse Maleka | AD36: (012) 315 5566 | AE36: Pebetse.Maleka@treasury.gov.za | AF36: Yusuf Mayet | AG36: (012) 315 5189 | AH36: Yusuf.Mayet@treasury.gov.za | AI36: 215192092 | AJ36: 216107780 | AK36: 225813055 | AL36: 501310 | AM36: 503506 | AN36: 526118 | AS36: Social Development | AT36: 215192092 | AU36: 216107780 | AV36: 225813055 | AY36: Social Development | AZ36: 501310 | BA36: 503506 | BB36: 526118
Z37: 34 | AA37: 37 | AB37: Sport, Arts and Culture | AC37: Judy Naidoo | AD37: (012) 315 5269 | AE37: Judy.Naidoo@treasury.gov.za | AF37: Nkosana Mphafa | AG37: (012) 315 5100 | AH37: Nkosana.Mphafa@treasury.gov.za | AI37: 5828283 | AJ37: 5886456 | AK37: 6150813 | AL37: 368626 | AM37: 376422 | AN37: 393325 | AS37: Sport, Arts and Culture | AT37: 5828283 | AU37: 5886456 | AV37: 6150813 | AY37: Sport, Arts and Culture | AZ37: 368626 | BA37: 376422 | BB37: 393325
Z38: 35 | AA38: 14 | AB38: Statistics South Africa | AC38: Mokgatla Tema | AD38: (012) 315 5948 | AE38: Mokgatla.Tema@treasury.gov.za | AF38: Viwe Sobudula | AG38: (0)12 315 5015 | AH38: Viwe.Sobudula@treasury.gov.za | AI38: 2509155 | AJ38: 2533534 | AK38: 2647313 | AL38: 1482610 | AM38: 1490331 | AN38: 1557262 | AS38: Statistics South Africa | AT38: 2509155 | AU38: 2533534 | AV38: 2647313 | AY38: Statistics South Africa | AZ38: 1482610 | BA38: 1490331 | BB38: 1557262
Z39: 36 | AA39: 1 | AB39: The Presidency | AC39: Timothy Murwa | AD39: (012) 315 5002 | AE39: Timothy.Murwa@treasury.gov.za | AF39: Yamkela Ngewu | AG39: (012) 406 9078 | AH39: Yamkela.Ngewu@treasury.gov.za | AI39: 607531 | AJ39: 610485 | AK39: 637903 | AL39: 374904 | AM39: 376377 | AN39: 393280 | AS39: The Presidency | AT39: 607531 | AU39: 610485 | AV39: 637903 | AY39: The Presidency | AZ39: 374904 | BA39: 376377 | BB39: 393280
Z40: 37 | AA40: 38 | AB40: Tourism | AC40: Gcobisa Magazi | AD40: (012) 315 5320 | AE40: Gcobisa.Magazi@treasury.gov.za | AF40: Ashley Ramasimu | AG40: (012) 315 5166 | AH40: Ashley.Ramasimu@treasury.gov.za | AI40: 2483869 | AJ40: 2492307 | AK40: 2604237 | AL40: 333077 | AM40: 333080 | AN40: 348039 | AS40: Tourism | AT40: 2483869 | AU40: 2492307 | AV40: 2604237 | AY40: Tourism | AZ40: 333077 | BA40: 333080 | BB40: 348039
Z41: 38 | AA41: 39 | AB41: Trade, Industry and Competition | AC41: Isaac Kurasha | AD41: (012) 315 5213 | AE41: Isaac.Kurasha@treasury.gov.za | AF41: Rudzani Sikhwari | AG41: (012) 315 5823 | AH41: rudzani.sikhwari@treasury.gov.za | AI41: 9979809 | AJ41: 10099712 | AK41: 10553270 | AL41: 1029359 | AM41: 991246 | AN41: 1035762 | AS41: Trade, Industry and Competition | AT41: 9979809 | AU41: 10099712 | AV41: 10553270 | AY41: Trade, Industry and Competition | AZ41: 1029359 | BA41: 991246 | BB41: 1035762
Z42: 39 | AA42: 15 | AB42: Traditional Affairs | AC42: Millicent Mulaudzi | AD42: (012) 395 6576 | AE42: Millicent.Mulaudzi@treasury.gov.za | AF42: Amanda Matutu | AG42: (012) 395 6786 | AH42: Amanda.Matutu@treasury.gov.za | AI42: 175733 | AJ42: 179962 | AK42: 188044 | AL42: 85263 | AM42: 89020 | AN42: 93018 | AS42: Traditional Affairs | AT42: 175733 | AU42: 179962 | AV42: 188044 | AY42: Traditional Affairs | AZ42: 85263 | BA42: 89020 | BB42: 93018
Z43: 40 | AA43: 40 | AB43: Transport | AC43: Dumebi Ubogu | AD43: (012) 315 5077 | AE43: Dumebi.Ubogu@treasury.gov.za | AF43: Luyolo Ntlangula | AG43: (012) 315-5571 | AH43: luyolo.ntangula@treasury.gov.za | AI43: 70260603 | AJ43: 72538282 | AK43: 75795935 | AL43: 531432 | AM43: 531457 | AN43: 555328 | AS43: Transport | AT43: 70260603 | AU43: 72538282 | AV43: 75795935 | AY43: Transport | AZ43: 531432 | BA43: 531457 | BB43: 555328
Z44: 41 | AA44: 41 | AB44: Water and Sanitation | AC44: Millicent Mulaudzi | AD44: (012) 395 6576 | AE44: Millicent.Mulaudzi@treasury.gov.za | AF44: Iqbal Mahomed Alli | AG44: (012) 315 5809 | AH44: Iqbal.Mahomed-Alli@treasury.gov.za | AI44: 17439588 | AJ44: 18035399 | AK44: 18782660 | AL44: 1787000 | AM44: 1741701 | AN44: 1819924 | AS44: Water and Sanitation | AT44: 17439588 | AU44: 18035399 | AV44: 18782660 | AY44: Water and Sanitation | AZ44: 1787000 | BA44: 1741701 | BB44: 1819924
Z45: 42 | AA45: 20 | AB45: Women, Youth and Persons with Disabilities | AC45: Pebetse Maleka | AD45: (012) 315 5566 | AE45: Pebetse.Maleka@treasury.gov.za | AF45: Lindi Mzankomo | AG45: (012) 315 5256 | AH45: Lindi.Mzankomo@treasury.gov.za | AI45: 778341 | AJ45: 781916 | AK45: 817031 | AL45: 111084 | AM45: 111943 | AN45: 116972 | AS45: Women, Youth and Persons with Disabilities | AT45: 778341 | AU45: 781916 | AV45: 817031 | AY45: Women, Youth and Persons with Disabilities | AZ45: 111084 | BA45: 111943 | BB45: 116972
AI48: =SUM(AI4:AI45) -> 1831054386 | AJ48: 1870191770 | AK48: 1966976194 | AL48: 175455811 | AM48: 175551343 | AN48: 183435272
AI49: 1751895269 | AJ49: 1789735540 | AL49: 174140115.3 | AM49: 173620506.6

Sheet Notes
B42: Link to 2022 MTEF Guidelines
B43: http://www.treasury.gov.za/publications/guidelines/default.aspx

Sheet Pivot % growth
B13: Econ3 | C13: (All)
B14: Econ2 | C14: (All)
B16: Row Labels | C16: 2021/22 Baseline | D16: 2022/23 Revised baseline | E16: 2023/24 Revised baseline | F16: 2024/25 Revised baseline | G16: % YoY 2022/23 | H16: % YoY 2023/24 | I16: YoY 2024/25 | J16: Ave Ann growth History | K16: Ave Ann growth MTEF | L16: % adjust 2022/23 | M16: % adjust 2023/24 | N16: 2024/25 % adjustment
B17: Administration | C17: 237251 | D17: 248406 | E17: 260788 | F17: 272501 | G17: 0.04701771542 | H17: 0.04984581693 | I17: 0.04491387641 | J17: 0.02868340438 | K17: 0.04725718725 | L17: 0 | M17: 0 | N17: 0
B18: Human Resource Management and Development | C18: 49172 | D18: 55013 | E18: 53294 | F18: 55687 | G18: 0.1187871146 | H18: -0.03124715976 | I18: 0.04490186513 | J18: 0.05793491983 | K18: 0.0423461893 | L18: 0 | M18: 0 | N18: 0
B19: Negotiations, Labour Relations and Remuneration Management | C19: 99116 | D19: 91130 | E19: 85320 | F19: 89153 | G19: -0.08057225877 | H19: -0.06375507517 | I19: 0.04492498828 | J19: 0.1142325913 | K19: -0.03469609088 | L19: 0 | M19: 0 | N19: 0
B20: e-Government Services and Information Management | C20: 35870 | D20: 33587 | E20: 34460 | F20: 36013 | G20: -0.06364650125 | H20: 0.02599219936 | I20: 0.04506674405 | J20: 0.1971826151 | K20: 0.001327110779 | L20: 0 | M20: 0 | N20: 0
B21: Government Service Access and Improvement | C21: 104782 | D21: 107026 | E21: 109600 | F21: 114521 | G21: 0.02141589204 | H21: 0.02405023079 | I21: 0.04489963504 | J21: 0.006105369671 | K21: 0.03006860171 | L21: 0 | M21: 0 | N21: 0
B22: Grand Total | C22: 526191 | D22: 535162 | E22: 543462 | F22: 567875 | G22: 0.0170489423 | H22: 0.01550932241 | I22: 0.04492126404 | J22: 0.04970876917 | K22: 0.0257379996 | L22: 0 | M22: 0 | N22: 0

Sheet Pivot_T
B12: DOR | C12: (All)
B13: Econ4 | C13: (All)
B14: Econ3 | C14: (All)
B16: Value | C16: Column Labels
C17: 2021/22 | D17: 2022/23 | F17: 2023/24 | H17: 2024/25
B18: Row Labels | C18: Baseline | D18: Baseline | E18: Revised baseline | F18: Baseline | G18: Revised baseline | H18: Baseline | I18: Revised baseline
B19: Current payments | C19: 475209 | D19: 484810 | E19: 484810 | F19: 490966 | G19: 490966 | H19: 513018 | I19: 513018
B20: Transfers and subsidies | C20: 44863 | D20: 46493 | E20: 46493 | F20: 47742 | G20: 47742 | H20: 49887 | I20: 49887
B21: Payments for capital assets | C21: 6119 | D21: 3859 | E21: 3859 | F21: 4754 | G21: 4754 | H21: 4970 | I21: 4970
B22: Grand Total | C22: 526191 | D22: 535162 | E22: 535162 | F22: 543462 | G22: 543462 | H22: 567875 | I22: 567875

Sheet Service delivery impact
B15: Note: Data in the table below is sourced from the individual SRT sheets. Any adjustments should be made on the SRT sheets. Ajustments made directly on this table will be over-written when the data is refreshed!
B17: Impact area | C17: Unit no | D17: Unit name | E17: Comment

Sheet Performance impact
B15: Note: Data in the table below is sourced from the individual SRT sheets. Any adjustments should be made on the SRT sheets. Ajustments made directly on this table will be over-written when the data is refreshed!
B17: Impact area | C17: Unit no | D17: Unit name | E17: Performance indicator | F17: 2021/22 Current performance | G17: 2021/22 Performance @ benchmark level | H17: 2021/22 Change | I17: 2022/23 Original target | J17: 2022/23 Revised target | K17: 2022/23 Change | L17: 2023/24 Original target | M17: 2023/24 Revised target | N17: 2023/24 Change | O17: 2024/25 Original target | P17: 2024/25 Revised target | Q17: 2024/25 Change | R17: Comment | S17: Gov Priority

Sheet Pivot Infra impact
B14: Impact area | C14: (All)
B16: Value | C16: Column Labels
C17: 2021/22 | D17: 2022/23 | E17: 2023/24 | F17: 2024/25
B18: Row Labels | C18: Change | D18: Change | E18: Change | F18: Change
B19: (blank) | C19: 0 | D19: 0 | E19: 0 | F19: 0
B20: Grand Total | C20: 0 | D20: 0 | E20: 0 | F20: 0

Sheet Pivot Personnel impact
B16: Value | C16: Column Labels
C17: 2022/23 | D17: 2023/24 | E17: 2024/25
B18: Row Labels | C18: Change in number | D18: Change in number | E18: Change in number
B19: Levels 01 - 06 | C19: 0 | D19: 0 | E19: 0
B20: Levels 07 - 12 | C20: 0 | D20: 0 | E20: 0
B21: Levels 13 - 16 | C21: 0 | D21: 0 | E21: 0
B22: Other | C22: 0 | D22: 0 | E22: 0
B23: Grand Total | C23: 0 | D23: 0 | E23: 0

Sheet Pivot HRBP
B12: Salary level | C12: (All)
B13: Programme No | C13: (All)
B15: Number | C15: Columns
C16: 2021/22 | D16: 2022/23 | E16: 2023/24 | F16: 2024/25
B17: Row Labels | C17: Headcount reductions to be made | D17: Headcount reductions to be made | E17: Headcount reductions to be made | F17: Headcount reductions to be made
B18: Levels 01 - 06 | C18: 0 | D18: 0 | E18: 0 | F18: 0
B19: Levels 07 - 12 | C19: 0 | D19: 0 | E19: 0 | F19: 0
B20: Levels 13 - 16 | C20: 0 | D20: 0 | E20: 0 | F20: 0
B21: Other | C21: 0 | D21: 0 | E21: 0 | F21: 0
B22: Grand Total | C22: 0 | D22: 0 | E22: 0 | F22: 0

Sheet Data
AF1: Steps to complete… | AH1: Spending review topics…
AG2: 1 | AH2: Spending review topic 1
AG3: 2 | AH3: Spending review topic 2 | CR3: =COUNTIF(Dataset[2022/23 Revised baseline],"<0") -> 0 | CS3: =COUNTIF(Dataset[2023/24 Revised baseline],"<0") -> 0 | CT3: =COUNTIF(Dataset[2024/25 Revised baseline],"<0") -> 0
AG4: 3 | AH4: Spending review topic 3
AG5: 4 | AH5: Spending review topic 4
CR6: =MyYear5 -> 2022/23 | CS6: =MyYear6 -> 2023/24 | CT6: =MyYear7 -> 2024/25
CQ8: Baseline ceiling: | CR8: =INDEX(DeptCeiling,MATCH(MyVoteNo,VoteNoList,0),1) -> 535162 | CS8: =INDEX(DeptCeiling,MATCH(MyVoteNo,VoteNoList,0),2) -> 543462 | CT8: =INDEX(DeptCeiling,MATCH(MyVoteNo,VoteNoList,0),3) -> 567875
CQ9: (Over)/Under | CR9: =CR8-SUM(Dataset[2022/23 Revised baseline]) -> 0 | CS9: =CS8-SUM(Dataset[2023/24 Revised baseline]) -> 0 | CT9: =CT8-SUM(Dataset[2024/25 Revised baseline]) -> 0
CQ11: CoE ceiling: | CR11: =INDEX(CoECeiling,MATCH(MyVoteNo,VoteNoList,0),1) -> 289286 | CS11: =INDEX(CoECeiling,MATCH(MyVoteNo,VoteNoList,0),2) -> 290747 | CT11: =INDEX(CoECeiling,MATCH(MyVoteNo,VoteNoList,0),3) -> 303804
CQ12: (Over)/Under | CR12: =CR11-SUMIF(Dataset[Econ3],"Compensation of employees",Dataset[2022/23 Revised baseline]) -> 0 | CS12: =CS11-SUMIF(Dataset[Econ3],"Compensation of employees",Dataset[2023/24 Revised baseline]) -> 0 | CT12: =CT11-SUMIF(Dataset[Econ3],"Compensation of employees",Dataset[2024/25 Revised baseline]) -> 0
AU15: G&S reporting level | AW15: 2017/18 | AX15: 2018/19 | AY15: 2019/20 | AZ15: 2020/21 Main appropriation | BA15: 2020/21 Adjusted appropriation | BB15: 2020/21 Revised estimate | BC15: 2020/21 Preliminary outcome | BD15: 2021/22 Baseline | BE15: 2022/23 Baseline | BF15: 2023/24 Baseline | BG15: 2024/25 Baseline | BH15: 2022/23 From - Spending review Topic 1 | BI15: 2023/24 From - Spending review Topic 1 | BJ15: 2024/25 From - Spending review Topic 1 | BK15: 2022/23 To - Spending review Topic 1 | BL15: 2023/24 To - Spending review Topic 1 | BM15: 2024/25 To - Spending review Topic 1 | BN15: 2022/23 From - Spending review Topic 2 | BO15: 2023/24 From - Spending review Topic 2 | BP15: 2024/25 From - Spending review Topic 2 | BQ15: 2022/23 To - Spending review Topic 2 | BR15: 2023/24 To - Spending review Topic 2 | BS15: 2024/25 To - Spending review Topic 2 | BT15: 2022/23 From - Spending review Topic 3 | BU15: 2023/24 From - Spending review Topic 3 | BV15: 2024/25 From - Spending review Topic 3 | BW15: 2022/23 To - Spending review Topic 3 | BX15: 2023/24 To - Spending review Topic 3 | BY15: 2024/25 To - Spending review Topic 3 | BZ15: 2022/23 From - Spending review Topic 4 | CA15: 2023/24 From - Spending review Topic 4 | CB15: 2024/25 From - Spending review Topic 4 | CC15: 2022/23 To - Spending review Topic 4 | CD15: 2023/24 To - Spending review Topic 4 | CE15: 2024/25 To - Spending review Topic 4 | CF15: 2022/23 From - Other reallocations | CG15: 2023/24 From - Other reallocations | CH15: 2024/25 From - Other reallocations | CI15: 2022/23 To - Other reallocations | CJ15: 2023/24 To - Other reallocations | CK15: 2024/25 To - Other reallocations | CL15: 2022/23 From - Total | CM15: 2023/24 From - Total | CN15: 2024/25 From - Total | CO15: 2022/23 To - Total | CP15: 2023/24 To - Total | CQ15: 2024/25 To - Total | CR15: 2022/23 Revised baseline | CS15: 2023/24 Revised baseline | CT15: 2024/25 Revised baseline
AU16: Level 4 | AV16: Subtotal: | AW16: =SUBTOTAL(9,Dataset[2017/18]) -> 454922 | AX16: =SUBTOTAL(9,Dataset[2018/19]) -> 492656 | AY16: =SUBTOTAL(9,Dataset[2019/20]) -> 488831 | AZ16: =SUBTOTAL(9,Dataset[2020/21 Main appropriation]) -> 565704 | BA16: =SUBTOTAL(9,Dataset[2020/21 Adjusted appropriation]) -> 468895 | BB16: =SUBTOTAL(9,Dataset[2020/21 Revised estimate]) -> 468895 | BC16: =SUBTOTAL(9,Dataset[2020/21 Preliminary outcome]) -> 241725 | BD16: =SUBTOTAL(9,Dataset[2021/22 Baseline]) -> 526191 | BE16: =SUBTOTAL(9,Dataset[2022/23 Baseline]) -> 535162 | BF16: =SUBTOTAL(9,Dataset[2023/24 Baseline]) -> 543462 | BG16: =SUBTOTAL(9,Dataset[2024/25 Baseline]) -> 567875 | BH16: =SUBTOTAL(9,Dataset[2022/23 From - Spending review Topic 1]) -> 0 | BI16: =SUBTOTAL(9,Dataset[2023/24 From - Spending review Topic 1]) -> 0 | BJ16: =SUBTOTAL(9,Dataset[2024/25 From - Spending review Topic 1]) -> 0 | BK16: =SUBTOTAL(9,Dataset[2022/23 To - Spending review Topic 1]) -> 0 | BL16: =SUBTOTAL(9,Dataset[2023/24 To - Spending review Topic 1]) -> 0 | BM16: =SUBTOTAL(9,Dataset[2024/25 To - Spending review Topic 1]) -> 0 | BN16: =SUBTOTAL(9,Dataset[2022/23 From - Spending review Topic 2]) -> 0 | BO16: =SUBTOTAL(9,Dataset[2023/24 From - Spending review Topic 2]) -> 0 | BP16: =SUBTOTAL(9,Dataset[2024/25 From - Spending review Topic 2]) -> 0 | BQ16: =SUBTOTAL(9,Dataset[2022/23 To - Spending review Topic 2]) -> 0 | BR16: =SUBTOTAL(9,Dataset[2023/24 To - Spending review Topic 2]) -> 0 | BS16: =SUBTOTAL(9,Dataset[2024/25 To - Spending review Topic 2]) -> 0 | BT16: =SUBTOTAL(9,Dataset[2022/23 From - Spending review Topic 3]) -> 0 | BU16: =SUBTOTAL(9,Dataset[2023/24 From - Spending review Topic 3]) -> 0 | BV16: =SUBTOTAL(9,Dataset[2024/25 From - Spending review Topic 3]) -> 0 | BW16: =SUBTOTAL(9,Dataset[2022/23 To - Spending review Topic 3]) -> 0 | BX16: =SUBTOTAL(9,Dataset[2023/24 To - Spending review Topic 3]) -> 0 | BY16: =SUBTOTAL(9,Dataset[2024/25 To - Spending review Topic 3]) -> 0 | BZ16: =SUBTOTAL(9,Dataset[2022/23 From - Spending review Topic 4]) -> 0 | CA16: =SUBTOTAL(9,Dataset[2023/24 From - Spending review Topic 4]) -> 0 | CB16: =SUBTOTAL(9,Dataset[2024/25 From - Spending review Topic 4]) -> 0 | CC16: =SUBTOTAL(9,Dataset[2022/23 To - Spending review Topic 4]) -> 0 | CD16: =SUBTOTAL(9,Dataset[2023/24 To - Spending review Topic 4]) -> 0 | CE16: =SUBTOTAL(9,Dataset[2024/25 To - Spending review Topic 4]) -> 0 | CF16: =SUBTOTAL(9,Dataset[2022/23 From - Other reallocations]) -> 0 | CG16: =SUBTOTAL(9,Dataset[2023/24 From - Other reallocations]) -> 0 | CH16: =SUBTOTAL(9,Dataset[2024/25 From - Other reallocations]) -> 0 | CI16: =SUBTOTAL(9,Dataset[2022/23 To - Other reallocations]) -> 0 | CJ16: =SUBTOTAL(9,Dataset[2023/24 To - Other reallocations]) -> 0 | CK16: =SUBTOTAL(9,Dataset[2024/25 To - Other reallocations]) -> 0 | CL16: =SUBTOTAL(9,Dataset[2022/23 From - Total]) -> 0 | CM16: =SUBTOTAL(9,Dataset[2023/24 From - Total]) -> 0 | CN16: =SUBTOTAL(9,Dataset[2024/25 From - Total]) -> 0 | CO16: =SUBTOTAL(9,Dataset[2022/23 To - Total]) -> 0 | CP16: =SUBTOTAL(9,Dataset[2023/24 To - Total]) -> 0 | CQ16: =SUBTOTAL(9,Dataset[2024/25 To - Total]) -> 0 | CR16: =SUBTOTAL(9,Dataset[2022/23 Revised baseline]) -> 535162 | CS16: =SUBTOTAL(9,Dataset[2023/24 Revised baseline]) -> 543462 | CT16: =SUBTOTAL(9,Dataset[2024/25 Revised baseline]) -> 567875
BH17: ="…"&SRTopic1 -> …Spending review topic 1 | BN17: ="…"&SRTopic2 -> …Spending review topic 2 | BT17: ="…"&SRTopic3 -> …Spending review topic 3 | BZ17: ="…"&SRTopic4 -> …Spending review topic 4 | CF17: …Adjustments other than spending reviews | CR17: …red shaded cells below indicate negative budgets.
A18: Combo_DoR | B18: Combo_Econ | C18: Budget Year | D18: Process | E18: Vote No. - N | F18: Programme No. - N | G18: Subprogramme No. - N | H18: Index - N | I18: Index - N2 | J18: Vote No. | K18: Programme No. | L18: Subprogramme No. | M18: Index | N18: Index2 | O18: UID | P18: Econ1_IDn | Q18: Econ2_IDn | R18: Econ3_IDn | S18: Econ4_IDn | T18: Econ5_IDn | U18: Econ_UID | V18: Province | W18: Department | X18: Programme | Y18: Subprogramme | Z18: Transfers and subsidies / Payments for financial assets detail | AA18: Econ1 | AB18: Econ2 | AC18: Econ3 | AD18: Econ4 | AE18: Econ5 | AF18: Function group | AG18: Technical group | AH18: DOR | AI18: 2017/18_Source | AJ18: 2018/19_Source | AK18: 2019/20_Source | AL18: 2020/21 Main appropriation_Source | AM18: 2020/21 Adjusted appropriation_Source | AN18: 2020/21 Revised estimate_Source | AO18: 2020/21 Preliminary outcome_Source | AP18: 2021/22 Baseline_Source | AQ18: 2022/23 Baseline_Source | AR18: 2023/24 Baseline_Source | AS18: 2024/25 Baseline_Source | AT18: New item Indi | AU18: Reporting level | AV18: Reporting level indicator | AW18: 2017/18 | AX18: 2018/19 | AY18: 2019/20 | AZ18: 2020/21 Main appropriation | BA18: 2020/21 Adjusted appropriation | BB18: 2020/21 Revised estimate | BC18: 2020/21 Preliminary outcome | BD18: 2021/22 Baseline | BE18: 2022/23 Baseline | BF18: 2023/24 Baseline | BG18: 2024/25 Baseline | BH18: 2022/23 From - Spending review Topic 1 | BI18: 2023/24 From - Spending review Topic 1 | BJ18: 2024/25 From - Spending review Topic 1 | BK18: 2022/23 To - Spending review Topic 1 | BL18: 2023/24 To - Spending review Topic 1 | BM18: 2024/25 To - Spending review Topic 1 | BN18: 2022/23 From - Spending review Topic 2 | BO18: 2023/24 From - Spending review Topic 2 | BP18: 2024/25 From - Spending review Topic 2 | BQ18: 2022/23 To - Spending review Topic 2 | BR18: 2023/24 To - Spending review Topic 2 | BS18: 2024/25 To - Spending review Topic 2 | BT18: 2022/23 From - Spending review Topic 3 | BU18: 2023/24 From - Spending review Topic 3 | BV18: 2024/25 From - Spending review Topic 3 | BW18: 2022/23 To - Spending review Topic 3 | BX18: 2023/24 To - Spending review Topic 3 | BY18: 2024/25 To - Spending review Topic 3 | BZ18: 2022/23 From - Spending review Topic 4 | CA18: 2023/24 From - Spending review Topic 4 | CB18: 2024/25 From - Spending review Topic 4 | CC18: 2022/23 To - Spending review Topic 4 | CD18: 2023/24 To - Spending review Topic 4 | CE18: 2024/25 To - Spending review Topic 4 | CF18: 2022/23 From - Other reallocations | CG18: 2023/24 From - Other reallocations | CH18: 2024/25 From - Other reallocations | CI18: 2022/23 To - Other reallocations | CJ18: 2023/24 To - Other reallocations | CK18: 2024/25 To - Other reallocations | CL18: 2022/23 From - Total | CM18: 2023/24 From - Total | CN18: 2024/25 From - Total | CO18: 2022/23 To - Total | CP18: 2023/24 To - Total | CQ18: 2024/25 To - Total | CR18: 2022/23 Revised baseline | CS18: 2023/24 Revised baseline | CT18: 2024/25 Revised baseline
A19: NAT|Non-transfer item | B19: 11|Compensation of employees | C19: 2022_23 | D19: MTEF2022 | E19: 11 | F19: 1 | G19: 1 | H19: 16522 | I19: 1 | J19: 11 | K19: 01 | L19: 01 | M19: 16522 | N19: 1 | O19: 11|01|01 | P19: 1 | Q19: 1 | R19: 1 | S19: 0 | T19: 0 | U19: 01|01|01|00|00 | V19: National | W19: Public Service and Administration | X19: Administration | Y19: Ministry | Z19: Non-transfer item | AA19: Current | AB19: Current payments | AC19: Compensation of employees | AD19: Compensation of employees | AE19: Compensation of employees | AF19: General public services | AG19: Public administration and fiscal affairs | AH19: NAT | AI19: 26778 | AJ19: 21060 | AK19: 20581 | AL19: 21620 | AM19: 19620 | AN19: 19621 | AO19: 21169 | AP19: 19518 | AQ19: 19621 | AR19: 19907 | AS19: 20801 | AT19: 1 | AU19: =IF(Dataset[[#This Row],[Reporting level indicator]]=1,$AU$16,"Not applicable") -> Not applicable | AV19: =INDEX((t_ReportingLevelIndi[[Level 3]:[Level 4]]),MATCH(Dataset[[#This Row],[Econ4]],t_ReportingLevelIndi[Econ4],0),MATCH(Data!$AU$16,t_ReportingLevelIndi[[#Headers],[Level 3]:[Level 4]],0)) -> 0 | AW19: =Dataset[[#This Row],[2017/18_Source]]*Dataset[[#This Row],[Reporting level indicator]] -> 0 | AX19: =Dataset[[#This Row],[2018/19_Source]]*Dataset[[#This Row],[Reporting level indicator]] -> 0 | AY19: =Dataset[[#This Row],[2019/20_Source]]*Dataset[[#This Row],[Reporting level indicator]] -> 0 | AZ19: =Dataset[[#This Row],[2020/21 Main appropriation_Source]]*Dataset[[#This Row],[Reporting level indicator]] -> 0 | BA19: =Dataset[[#This Row],[2020/21 Adjusted appropriation_Source]]*Dataset[[#This Row],[Reporting level indicator]] -> 0 | BB19: =Dataset[[#This Row],[2020/21 Revised estimate_Source]]*Dataset[[#This Row],[Reporting level indicator]] -> 0 | BC19: =Dataset[[#This Row],[2020/21 Preliminary outcome_Source]]*Dataset[[#This Row],[Reporting level indicator]] -> 0 | BD19: =Dataset[[#This Row],[2021/22 Baseline_Source]]*Dataset[[#This Row],[Reporting level indicator]] -> 0 | BE19: =Dataset[[#This Row],[2022/23 Baseline_Source]]*Dataset[[#This Row],[Reporting level indicator]] -> 0 | BF19: =Dataset[[#This Row],[2023/24 Baseline_Source]]*Dataset[[#This Row],[Reporting level indicator]] -> 0 | BG19: =Dataset[[#This Row],[2024/25 Baseline_Source]]*Dataset[[#This Row],[Reporting level indicator]] -> 0 | CL19: =Dataset[[#This Row],[2022/23 From - Spending review Topic 1]]+Dataset[[#This Row],[2022/23 From - Spending review Topic 2]]+Dataset[[#This Row],[2022/23 From - Spending review Topic 3]]+Dataset[[#This Row],[2022/23 From - Spending review Topic 4]]+Dataset[[#This Row],[2022/23 From - Other reallocations]] -> 0 | CM19: =Dataset[[#This Row],[2023/24 From - Spending review Topic 1]]+Dataset[[#This Row],[2023/24 From - Spending review Topic 2]]+Dataset[[#This Row],[2023/24 From - Spending review Topic 3]]+Dataset[[#This Row],[2023/24 From - Spending review Topic 4]]+Dataset[[#This Row],[2023/24 From - Other reallocations]] -> 0 | CN19: =Dataset[[#This Row],[2024/25 From - Spending review Topic 1]]+Dataset[[#This Row],[2024/25 From - Spending review Topic 2]]+Dataset[[#This Row],[2024/25 From - Spending review Topic 3]]+Dataset[[#This Row],[2024/25 From - Spending review Topic 4]]+Dataset[[#This Row],[2024/25 From - Other reallocations]] -> 0 | CO19: =Dataset[[#This Row],[2022/23 To - Spending review Topic 1]]+Dataset[[#This Row],[2022/23 To - Spending review Topic 2]]+Dataset[[#This Row],[2022/23 To - Spending review Topic 3]]+Dataset[[#This Row],[2022/23 To - Spending review Topic 4]]+Dataset[[#This Row],[2022/23 To - Other reallocations]] -> 0 | CP19: =Dataset[[#This Row],[2023/24 To - Spending review Topic 1]]+Dataset[[#This Row],[2023/24 To - Spending review Topic 2]]+Dataset[[#This Row],[2023/24 To - Spending review Topic 3]]+Dataset[[#This Row],[2023/24 To - Spending review Topic 4]]+Dataset[[#This Row],[2023/24 To - Other reallocations]] -> 0 | CQ19: =Dataset[[#This Row],[2024/25 To - Spending review Topic 1]]+Dataset[[#This Row],[2024/25 To - Spending review Topic 2]]+Dataset[[#This Row],[2024/25 To - Spending review Topic 3]]+Dataset[[#This Row],[2024/25 To - Spending review Topic 4]]+Dataset[[#This Row],[2024/25 To - Other reallocations]] -> 0 | CR19: =Dataset[[#This Row],[2022/23 Baseline]]+Dataset[[#This Row],[2022/23 From - Total]]+Dataset[[#This Row],[2022/23 To - Total]] -> 0 | CS19: =Dataset[[#This Row],[2023/24 Baseline]]+Dataset[[#This Row],[2023/24 From - Total]]+Dataset[[#This Row],[2023/24 To - Total]] -> 0 | CT19: =Dataset[[#This Row],[2024/25 Baseline]]+Dataset[[#This Row],[2024/25 From - Total]]+Dataset[[#This Row],[2024/25 To - Total]] -> 0
A20: NAT|Non-transfer item | B20: 11|Salaries and wages | C20: 2022_23 | D20: MTEF2022 | E20: 11 | F20: 1 | G20: 1 | H20: 16523 | I20: 2 | J20: 11 | K20: 01 | L20: 01 | M20: 16523 | N20: 2 | O20: 11|01|01 | P20: 1 | Q20: 1 | R20: 1 | S20: 1 | T20: 1 | U20: 01|01|01|01|01 | V20: National | W20: Public Service and Administration | X20: Administration | Y20: Ministry | Z20: Non-transfer item | AA20: Current | AB20: Current payments | AC20: Compensation of employees | AD20: Salaries and wages | AE20: Salaries and wages | AF20: General public services | AG20: Public administration and fiscal affairs | AH20: NAT | AI20: 24987 | AJ20: 20094 | AK20: 19318 | AL20: 20817 | AM20: 18817 | AN20: 18818 | AO20: 19634 | AP20: 17176 | AQ20: 17266 | AR20: 17518 | AS20: 18305 | AT20: 1 | AU20: =IF(Dataset[[#This Row],[Reporting level indicator]]=1,$AU$16,"Not applicable") -> Level 4 | AV20: =INDEX((t_ReportingLevelIndi[[Level 3]:[Level 4]]),MATCH(Dataset[[#This Row],[Econ4]],t_ReportingLevelIndi[Econ4],0),MATCH(Data!$AU$16,t_ReportingLevelIndi[[#Headers],[Level 3]:[Level 4]],0)) -> 1 | AW20: =Dataset[[#This Row],[2017/18_Source]]*Dataset[[#This Row],[Reporting level indicator]] -> 24987 | AX20: =Dataset[[#This Row],[2018/19_Source]]*Dataset[[#This Row],[Reporting level indicator]] -> 20094 | AY20: =Dataset[[#This Row],[2019/20_Source]]*Dataset[[#This Row],[Reporting level indicator]] -> 19318 | AZ20: =Dataset[[#This Row],[2020/21 Main appropriation_Source]]*Dataset[[#This Row],[Reporting level indicator]] -> 20817 | BA20: =Dataset[[#This Row],[2020/21 Adjusted appropriation_Source]]*Dataset[[#This Row],[Reporting level indicator]] -> 18817 | BB20: =Dataset[[#This Row],[2020/21 Revised estimate_Source]]*Dataset[[#This Row],[Reporting level indicator]] -> 18818 | BC20: =Dataset[[#This Row],[2020/21 Preliminary outcome_Source]]*Dataset[[#This Row],[Reporting level indicator]] -> 19634 | BD20: =Dataset[[#This Row],[2021/22 Baseline_Source]]*Dataset[[#This Row],[Reporting level indicator]] -> 17176 | BE20: =Dataset[[#This Row],[2022/23 Baseline_Source]]*Dataset[[#This Row],[Reporting level indicator]] -> 17266 | BF20: =Dataset[[#This Row],[2023/24 Baseline_Source]]*Dataset[[#This Row],[Reporting level indicator]] -> 17518 | BG20: =Dataset[[#This Row],[2024/25 Baseline_Source]]*Dataset[[#This Row],[Reporting level indicator]] -> 18305 | CL20: =Dataset[[#This Row],[2022/23 From - Spending review Topic 1]]+Dataset[[#This Row],[2022/23 From - Spending review Topic 2]]+Dataset[[#This Row],[2022/23 From - Spending review Topic 3]]+Dataset[[#This Row],[2022/23 From - Spending review Topic 4]]+Dataset[[#This Row],[2022/23 From - Other reallocations]] -> 0 | CM20: =Dataset[[#This Row],[2023/24 From - Spending review Topic 1]]+Dataset[[#This Row],[2023/24 From - Spending review Topic 2]]+Dataset[[#This Row],[2023/24 From - Spending review Topic 3]]+Dataset[[#This Row],[2023/24 From - Spending review Topic 4]]+Dataset[[#This Row],[2023/24 From - Other reallocations]] -> 0 | CN20: =Dataset[[#This Row],[2024/25 From - Spending review Topic 1]]+Dataset[[#This Row],[2024/25 From - Spending review Topic 2]]+Dataset[[#This Row],[2024/25 From - Spending review Topic 3]]+Dataset[[#This Row],[2024/25 From - Spending review Topic 4]]+Dataset[[#This Row],[2024/25 From - Other reallocations]] -> 0 | CO20: =Dataset[[#This Row],[2022/23 To - Spending review Topic 1]]+Dataset[[#This Row],[2022/23 To - Spending review Topic 2]]+Dataset[[#This Row],[2022/23 To - Spending review Topic 3]]+Dataset[[#This Row],[2022/23 To - Spending review Topic 4]]+Dataset[[#This Row],[2022/23 To - Other reallocations]] -> 0 | CP20: =Dataset[[#This Row],[2023/24 To - Spending review Topic 1]]+Dataset[[#This Row],[2023/24 To - Spending review Topic 2]]+Dataset[[#This Row],[2023/24 To - Spending review Topic 3]]+Dataset[[#This Row],[2023/24 To - Spending review Topic 4]]+Dataset[[#This Row],[2023/24 To - Other reallocations]] -> 0 | CQ20: =Dataset[[#This Row],[2024/25 To - Spending review Topic 1]]+Dataset[[#This Row],[2024/25 To - Spending review Topic 2]]+Dataset[[#This Row],[2024/25 To - Spending review Topic 3]]+Dataset[[#This Row],[2024/25 To - Spending review Topic 4]]+Dataset[[#This Row],[2024/25 To - Other reallocations]] -> 0 | CR20: =Dataset[[#This Row],[2022/23 Baseline]]+Dataset[[#This Row],[2022/23 From - Total]]+Dataset[[#This Row],[2022/23 To - Total]] -> 17266 | CS20: =Dataset[[#This Row],[2023/24 Baseline]]+Dataset[[#This Row],[2023/24 From - Total]]+Dataset[[#This Row],[2023/24 To - Total]] -> 17518 | CT20: =Dataset[[#This Row],[2024/25 Baseline]]+Dataset[[#This Row],[2024/25 From - Total]]+Dataset[[#This Row],[2024/25 To - Total]] -> 18305
A21: NAT|Non-transfer item | B21: 11|Social contributions | C21: 2022_23 | D21: MTEF2022 | E21: 11 | F21: 1 | G21: 1 | H21: 16524 | I21: 3 | J21: 11 | K21: 01 | L21: 01 | M21: 16524 | N21: 3 | O21: 11|01|01 | P21: 1 | Q21: 1 | R21: 1 | S21: 2 | T21: 2 | U21: 01|01|01|02|02 | V21: National | W21: Public Service and Administration | X21: Administration | Y21: Ministry | Z21: Non-transfer item | AA21: Current | AB21: Current payments | AC21: Compensation of employees | AD21: Social contributions | AE21: Social contributions | AF21: General public services | AG21: Public administration and fiscal affairs | AH21: NAT | AI21: 1791 | AJ21: 966 | AK21: 1263 | AL21: 803 | AM21: 803 | AN21: 803 | AO21: 1535 | AP21: 2342 | AQ21: 2355 | AR21: 2389 | AS21: 2496 | AT21: 1 | AU21: =IF(Dataset[[#This Row],[Reporting level indicator]]=1,$AU$16,"Not applicable") -> Level 4 | AV21: =INDEX((t_ReportingLevelIndi[[Level 3]:[Level 4]]),MATCH(Dataset[[#This Row],[Econ4]],t_ReportingLevelIndi[Econ4],0),MATCH(Data!$AU$16,t_ReportingLevelIndi[[#Headers],[Level 3]:[Level 4]],0)) -> 1 | AW21: =Dataset[[#This Row],[2017/18_Source]]*Dataset[[#This Row],[Reporting level indicator]] -> 1791 | AX21: =Dataset[[#This Row],[2018/19_Source]]*Dataset[[#This Row],[Reporting level indicator]] -> 966 | AY21: =Dataset[[#This Row],[2019/20_Source]]*Dataset[[#This Row],[Reporting level indicator]] -> 1263 | AZ21: =Dataset[[#This Row],[2020/21 Main appropriation_Source]]*Dataset[[#This Row],[Reporting level indicator]] -> 803 | BA21: =Dataset[[#This Row],[2020/21 Adjusted appropriation_Source]]*Dataset[[#This Row],[Reporting level indicator]] -> 803 | BB21: =Dataset[[#This Row],[2020/21 Revised estimate_Source]]*Dataset[[#This Row],[Reporting level indicator]] -> 803 | BC21: =Dataset[[#This Row],[2020/21 Preliminary outcome_Source]]*Dataset[[#This Row],[Reporting level indicator]] -> 1535 | BD21: =Dataset[[#This Row],[2021/22 Baseline_Source]]*Dataset[[#This Row],[Reporting level indicator]] -> 2342 | BE21: =Dataset[[#This Row],[2022/23 Baseline_Source]]*Dataset[[#This Row],[Reporting level indicator]] -> 2355 | BF21: =Dataset[[#This Row],[2023/24 Baseline_Source]]*Dataset[[#This Row],[Reporting level indicator]] -> 2389 | BG21: =Dataset[[#This Row],[2024/25 Baseline_Source]]*Dataset[[#This Row],[Reporting level indicator]] -> 2496 | CL21: =Dataset[[#This Row],[2022/23 From - Spending review Topic 1]]+Dataset[[#This Row],[2022/23 From - Spending review Topic 2]]+Dataset[[#This Row],[2022/23 From - Spending review Topic 3]]+Dataset[[#This Row],[2022/23 From - Spending review Topic 4]]+Dataset[[#This Row],[2022/23 From - Other reallocations]] -> 0 | CM21: =Dataset[[#This Row],[2023/24 From - Spending review Topic 1]]+Dataset[[#This Row],[2023/24 From - Spending review Topic 2]]+Dataset[[#This Row],[2023/24 From - Spending review Topic 3]]+Dataset[[#This Row],[2023/24 From - Spending review Topic 4]]+Dataset[[#This Row],[2023/24 From - Other reallocations]] -> 0 | CN21: =Dataset[[#This Row],[2024/25 From - Spending review Topic 1]]+Dataset[[#This Row],[2024/25 From - Spending review Topic 2]]+Dataset[[#This Row],[2024/25 From - Spending review Topic 3]]+Dataset[[#This Row],[2024/25 From - Spending review Topic 4]]+Dataset[[#This Row],[2024/25 From - Other reallocations]] -> 0 | CO21: =Dataset[[#This Row],[2022/23 To - Spending review Topic 1]]+Dataset[[#This Row],[2022/23 To - Spending review Topic 2]]+Dataset[[#This Row],[2022/23 To - Spending review Topic 3]]+Dataset[[#This Row],[2022/23 To - Spending review Topic 4]]+Dataset[[#This Row],[2022/23 To - Other reallocations]] -> 0 | CP21: =Dataset[[#This Row],[2023/24 To - Spending review Topic 1]]+Dataset[[#This Row],[2023/24 To - Spending review Topic 2]]+Dataset[[#This Row],[2023/24 To - Spending review Topic 3]]+Dataset[[#This Row],[2023/24 To - Spending review Topic 4]]+Dataset[[#This Row],[2023/24 To - Other reallocations]] -> 0 | CQ21: =Dataset[[#This Row],[2024/25 To - Spending review Topic 1]]+Dataset[[#This Row],[2024/25 To - Spending review Topic 2]]+Dataset[[#This Row],[2024/25 To - Spending review Topic 3]]+Dataset[[#This Row],[2024/25 To - Spending review Topic 4]]+Dataset[[#This Row],[2024/25 To - Other reallocations]] -> 0 | CR21: =Dataset[[#This Row],[2022/23 Baseline]]+Dataset[[#This Row],[2022/23 From - Total]]+Dataset[[#This Row],[2022/23 To - Total]] -> 2355 | CS21: =Dataset[[#This Row],[2023/24 Baseline]]+Dataset[[#This Row],[2023/24 From - Total]]+Dataset[[#This Row],[2023/24 To - Total]] -> 2389 | CT21: =Dataset[[#This Row],[2024/25 Baseline]]+Dataset[[#This Row],[2024/25 From - Total]]+Dataset[[#This Row],[2024/25 To - Total]] -> 2496
A22: NAT|Non-transfer item | B22: 11|Goods and services | C22: 2022_23 | D22: MTEF2022 | E22: 11 | F22: 1 | G22: 1 | H22: 16525 | I22: 4 | J22: 11 | K22: 01 | L22: 01 | M22: 16525 | N22: 4 | O22: 11|01|01 | P22: 1 | Q22: 1 | R22: 2 | S22: 0 | T22: 0 | U22: 01|01|02|00|00 | V22: National | W22: Public Service and Administration | X22: Administration | Y22: Ministry | Z22: Non-transfer item | AA22: Current | AB22: Current payments | AC22: Goods and services | AD22: Goods and services | AE22: Goods and services | AF22: General public services | AG22: Public administration and fiscal affairs | AH22: NAT | AI22: 16231 | AJ22: 18179 | AK22: 16159 | AL22: 15814 | AM22: 8767 | AN22: 8767 | AO22: 8293 | AP22: 10028 | AQ22: 10912 | AR22: 12020 | AS22: 12558 | AT22: 1 | AU22: =IF(Dataset[[#This Row],[Reporting level indicator]]=1,$AU$16,"Not applicable") -> Not applicable | AV22: =INDEX((t_ReportingLevelIndi[[Level 3]:[Level 4]]),MATCH(Dataset[[#This Row],[Econ4]],t_ReportingLevelIndi[Econ4],0),MATCH(Data!$AU$16,t_ReportingLevelIndi[[#Headers],[Level 3]:[Level 4]],0)) -> 0 | AW22: =Dataset[[#This Row],[2017/18_Source]]*Dataset[[#This Row],[Reporting level indicator]] -> 0 | AX22: =Dataset[[#This Row],[2018/19_Source]]*Dataset[[#This Row],[Reporting level indicator]] -> 0 | AY22: =Dataset[[#This Row],[2019/20_Source]]*Dataset[[#This Row],[Reporting level indicator]] -> 0 | AZ22: =Dataset[[#This Row],[2020/21 Main appropriation_Source]]*Dataset[[#This Row],[Reporting level indicator]] -> 0 | BA22: =Dataset[[#This Row],[2020/21 Adjusted appropriation_Source]]*Dataset[[#This Row],[Reporting level indicator]] -> 0 | BB22: =Dataset[[#This Row],[2020/21 Revised estimate_Source]]*Dataset[[#This Row],[Reporting level indicator]] -> 0 | BC22: =Dataset[[#This Row],[2020/21 Preliminary outcome_Source]]*Dataset[[#This Row],[Reporting level indicator]] -> 0 | BD22: =Dataset[[#This Row],[2021/22 Baseline_Source]]*Dataset[[#This Row],[Reporting level indicator]] -> 0 | BE22: =Dataset[[#This Row],[2022/23 Baseline_Source]]*Dataset[[#This Row],[Reporting level indicator]] -> 0 | BF22: =Dataset[[#This Row],[2023/24 Baseline_Source]]*Dataset[[#This Row],[Reporting level indicator]] -> 0 | BG22: =Dataset[[#This Row],[2024/25 Baseline_Source]]*Dataset[[#This Row],[Reporting level indicator]] -> 0 | CL22: =Dataset[[#This Row],[2022/23 From - Spending review Topic 1]]+Dataset[[#This Row],[2022/23 From - Spending review Topic 2]]+Dataset[[#This Row],[2022/23 From - Spending review Topic 3]]+Dataset[[#This Row],[2022/23 From - Spending review Topic 4]]+Dataset[[#This Row],[2022/23 From - Other reallocations]] -> 0 | CM22: =Dataset[[#This Row],[2023/24 From - Spending review Topic 1]]+Dataset[[#This Row],[2023/24 From - Spending review Topic 2]]+Dataset[[#This Row],[2023/24 From - Spending review Topic 3]]+Dataset[[#This Row],[2023/24 From - Spending review Topic 4]]+Dataset[[#This Row],[2023/24 From - Other reallocations]] -> 0 | CN22: =Dataset[[#This Row],[2024/25 From - Spending review Topic 1]]+Dataset[[#This Row],[2024/25 From - Spending review Topic 2]]+Dataset[[#This Row],[2024/25 From - Spending review Topic 3]]+Dataset[[#This Row],[2024/25 From - Spending review Topic 4]]+Dataset[[#This Row],[2024/25 From - Other reallocations]] -> 0 | CO22: =Dataset[[#This Row],[2022/23 To - Spending review Topic 1]]+Dataset[[#This Row],[2022/23 To - Spending review Topic 2]]+Dataset[[#This Row],[2022/23 To - Spending review Topic 3]]+Dataset[[#This Row],[2022/23 To - Spending review Topic 4]]+Dataset[[#This Row],[2022/23 To - Other reallocations]] -> 0 | CP22: =Dataset[[#This Row],[2023/24 To - Spending review Topic 1]]+Dataset[[#This Row],[2023/24 To - Spending review Topic 2]]+Dataset[[#This Row],[2023/24 To - Spending review Topic 3]]+Dataset[[#This Row],[2023/24 To - Spending review Topic 4]]+Dataset[[#This Row],[2023/24 To - Other reallocations]] -> 0 | CQ22: =Dataset[[#This Row],[2024/25 To - Spending review Topic 1]]+Dataset[[#This Row],[2024/25 To - Spending review Topic 2]]+Dataset[[#This Row],[2024/25 To - Spending review Topic 3]]+Dataset[[#This Row],[2024/25 To - Spending review Topic 4]]+Dataset[[#This Row],[2024/25 To - Other reallocations]] -> 0 | CR22: =Dataset[[#This Row],[2022/23 Baseline]]+Dataset[[#This Row],[2022/23 From - Total]]+Dataset[[#This Row],[2022/23 To - Total]] -> 0 | CS22: =Dataset[[#This Row],[2023/24 Baseline]]+Dataset[[#This Row],[2023/24 From - Total]]+Dataset[[#This Row],[2023/24 To - Total]] -> 0 | CT22: =Dataset[[#This Row],[2024/25 Baseline]]+Dataset[[#This Row],[2024/25 From - Total]]+Dataset[[#This Row],[2024/25 To - Total]] -> 0
A23: NAT|Non-transfer item | B23: 11|Administrative fees | C23: 2022_23 | D23: MTEF2022 | E23: 11 | F23: 1 | G23: 1 | H23: 16526 | I23: 5 | J23: 11 | K23: 01 | L23: 01 | M23: 16526 | N23: 5 | O23: 11|01|01 | P23: 1 | Q23: 1 | R23: 2 | S23: 3 | T23: 3 | U23: 01|01|02|03|03 | V23: National | W23: Public Service and Administration | X23: Administration | Y23: Ministry | Z23: Non-transfer item | AA23: Current | AB23: Current payments | AC23: Goods and services | AD23: Administrative fees | AE23: Administrative fees | AF23: General public services | AG23: Public administration and fiscal affairs | AH23: NAT | AI23: 286 | AJ23: 509 | AK23: 581 | AL23: 443 | AM23: 443 | AN23: 443 | AO23: 246 | AP23: 168 | AQ23: 180 | AR23: 180 | AS23: 188 | AT23: 1 | AU23: =IF(Dataset[[#This Row],[Reporting level indicator]]=1,$AU$16,"Not applicable") -> Level 4 | AV23: =INDEX((t_ReportingLevelIndi[[Level 3]:[Level 4]]),MATCH(Dataset[[#This Row],[Econ4]],t_ReportingLevelIndi[Econ4],0),MATCH(Data!$AU$16,t_ReportingLevelIndi[[#Headers],[Level 3]:[Level 4]],0)) -> 1 | AW23: =Dataset[[#This Row],[2017/18_Source]]*Dataset[[#This Row],[Reporting level indicator]] -> 286 | AX23: =Dataset[[#This Row],[2018/19_Source]]*Dataset[[#This Row],[Reporting level indicator]] -> 509 | AY23: =Dataset[[#This Row],[2019/20_Source]]*Dataset[[#This Row],[Reporting level indicator]] -> 581 | AZ23: =Dataset[[#This Row],[2020/21 Main appropriation_Source]]*Dataset[[#This Row],[Reporting level indicator]] -> 443 | BA23: =Dataset[[#This Row],[2020/21 Adjusted appropriation_Source]]*Dataset[[#This Row],[Reporting level indicator]] -> 443 | BB23: =Dataset[[#This Row],[2020/21 Revised estimate_Source]]*Dataset[[#This Row],[Reporting level indicator]] -> 443 | BC23: =Dataset[[#This Row],[2020/21 Preliminary outcome_Source]]*Dataset[[#This Row],[Reporting level indicator]] -> 246 | BD23: =Dataset[[#This Row],[2021/22 Baseline_Source]]*Dataset[[#This Row],[Reporting level indicator]] -> 168 | BE23: =Dataset[[#This Row],[2022/23 Baseline_Source]]*Dataset[[#This Row],[Reporting level indicator]] -> 180 | BF23: =Dataset[[#This Row],[2023/24 Baseline_Source]]*Dataset[[#This Row],[Reporting level indicator]] -> 180 | BG23: =Dataset[[#This Row],[2024/25 Baseline_Source]]*Dataset[[#This Row],[Reporting level indicator]] -> 188 | CL23: =Dataset[[#This Row],[2022/23 From - Spending review Topic 1]]+Dataset[[#This Row],[2022/23 From - Spending review Topic 2]]+Dataset[[#This Row],[2022/23 From - Spending review Topic 3]]+Dataset[[#This Row],[2022/23 From - Spending review Topic 4]]+Dataset[[#This Row],[2022/23 From - Other reallocations]] -> 0 | CM23: =Dataset[[#This Row],[2023/24 From - Spending review Topic 1]]+Dataset[[#This Row],[2023/24 From - Spending review Topic 2]]+Dataset[[#This Row],[2023/24 From - Spending review Topic 3]]+Dataset[[#This Row],[2023/24 From - Spending review Topic 4]]+Dataset[[#This Row],[2023/24 From - Other reallocations]] -> 0 | CN23: =Dataset[[#This Row],[2024/25 From - Spending review Topic 1]]+Dataset[[#This Row],[2024/25 From - Spending review Topic 2]]+Dataset[[#This Row],[2024/25 From - Spending review Topic 3]]+Dataset[[#This Row],[2024/25 From - Spending review Topic 4]]+Dataset[[#This Row],[2024/25 From - Other reallocations]] -> 0 | CO23: =Dataset[[#This Row],[2022/23 To - Spending review Topic 1]]+Dataset[[#This Row],[2022/23 To - Spending review Topic 2]]+Dataset[[#This Row],[2022/23 To - Spending review Topic 3]]+Dataset[[#This Row],[2022/23 To - Spending review Topic 4]]+Dataset[[#This Row],[2022/23 To - Other reallocations]] -> 0 | CP23: =Dataset[[#This Row],[2023/24 To - Spending review Topic 1]]+Dataset[[#This Row],[2023/24 To - Spending review Topic 2]]+Dataset[[#This Row],[2023/24 To - Spending review Topic 3]]+Dataset[[#This Row],[2023/24 To - Spending review Topic 4]]+Dataset[[#This Row],[2023/24 To - Other reallocations]] -> 0 | CQ23: =Dataset[[#This Row],[2024/25 To - Spending review Topic 1]]+Dataset[[#This Row],[2024/25 To - Spending review Topic 2]]+Dataset[[#This Row],[2024/25 To - Spending review Topic 3]]+Dataset[[#This Row],[2024/25 To - Spending review Topic 4]]+Dataset[[#This Row],[2024/25 To - Other reallocations]] -> 0 | CR23: =Dataset[[#This Row],[2022/23 Baseline]]+Dataset[[#This Row],[2022/23 From - Total]]+Dataset[[#This Row],[2022/23 To - Total]] -> 180 | CS23: =Dataset[[#This Row],[2023/24 Baseline]]+Dataset[[#This Row],[2023/24 From - Total]]+Dataset[[#This Row],[2023/24 To - Total]] -> 180 | CT23: =Dataset[[#This Row],[2024/25 Baseline]]+Dataset[[#This Row],[2024/25 From - Total]]+Dataset[[#This Row],[2024/25 To - Total]] -> 188
A24: NAT|Non-transfer item | B24: 11|Advertising | C24: 2022_23 | D24: MTEF2022 | E24: 11 | F24: 1 | G24: 1 | H24: 16527 | I24: 6 | J24: 11 | K24: 01 | L24: 01 | M24: 16527 | N24: 6 | O24: 11|01|01 | P24: 1 | Q24: 1 | R24: 2 | S24: 4 | T24: 4 | U24: 01|01|02|04|04 | V24: National | W24: Public Service and Administration | X24: Administration | Y24: Ministry | Z24: Non-transfer item | AA24: Current | AB24: Current payments | AC24: Goods and services | AD24: Advertising | AE24: Advertising | AF24: General public services | AG24: Public administration and fiscal affairs | AH24: NAT | AI24: 0 | AJ24: 345 | AK24: 0 | AL24: 1421 | AM24: 1421 | AN24: 1421 | AO24: 0 | AP24: 0 | AQ24: 0 | AR24: 0 | AS24: 0 | AT24: 1 | AU24: =IF(Dataset[[#This Row],[Reporting level indicator]]=1,$AU$16,"Not applicable") -> Level 4 | AV24: =INDEX((t_ReportingLevelIndi[[Level 3]:[Level 4]]),MATCH(Dataset[[#This Row],[Econ4]],t_ReportingLevelIndi[Econ4],0),MATCH(Data!$AU$16,t_ReportingLevelIndi[[#Headers],[Level 3]:[Level 4]],0)) -> 1 | AW24: =Dataset[[#This Row],[2017/18_Source]]*Dataset[[#This Row],[Reporting level indicator]] -> 0 | AX24: =Dataset[[#This Row],[2018/19_Source]]*Dataset[[#This Row],[Reporting level indicator]] -> 345 | AY24: =Dataset[[#This Row],[2019/20_Source]]*Dataset[[#This Row],[Reporting level indicator]] -> 0 | AZ24: =Dataset[[#This Row],[2020/21 Main appropriation_Source]]*Dataset[[#This Row],[Reporting level indicator]] -> 1421 | BA24: =Dataset[[#This Row],[2020/21 Adjusted appropriation_Source]]*Dataset[[#This Row],[Reporting level indicator]] -> 1421 | BB24: =Dataset[[#This Row],[2020/21 Revised estimate_Source]]*Dataset[[#This Row],[Reporting level indicator]] -> 1421 | BC24: =Dataset[[#This Row],[2020/21 Preliminary outcome_Source]]*Dataset[[#This Row],[Reporting level indicator]] -> 0 | BD24: =Dataset[[#This Row],[2021/22 Baseline_Source]]*Dataset[[#This Row],[Reporting level indicator]] -> 0 | BE24: =Dataset[[#This Row],[2022/23 Baseline_Source]]*Dataset[[#This Row],[Reporting level indicator]] -> 0 | BF24: =Dataset[[#This Row],[2023/24 Baseline_Source]]*Dataset[[#This Row],[Reporting level indicator]] -> 0 | BG24: =Dataset[[#This Row],[2024/25 Baseline_Source]]*Dataset[[#This Row],[Reporting level indicator]] -> 0 | CL24: =Dataset[[#This Row],[2022/23 From - Spending review Topic 1]]+Dataset[[#This Row],[2022/23 From - Spending review Topic 2]]+Dataset[[#This Row],[2022/23 From - Spending review Topic 3]]+Dataset[[#This Row],[2022/23 From - Spending review Topic 4]]+Dataset[[#This Row],[2022/23 From - Other reallocations]] -> 0 | CM24: =Dataset[[#This Row],[2023/24 From - Spending review Topic 1]]+Dataset[[#This Row],[2023/24 From - Spending review Topic 2]]+Dataset[[#This Row],[2023/24 From - Spending review Topic 3]]+Dataset[[#This Row],[2023/24 From - Spending review Topic 4]]+Dataset[[#This Row],[2023/24 From - Other reallocations]] -> 0 | CN24: =Dataset[[#This Row],[2024/25 From - Spending review Topic 1]]+Dataset[[#This Row],[2024/25 From - Spending review Topic 2]]+Dataset[[#This Row],[2024/25 From - Spending review Topic 3]]+Dataset[[#This Row],[2024/25 From - Spending review Topic 4]]+Dataset[[#This Row],[2024/25 From - Other reallocations]] -> 0 | CO24: =Dataset[[#This Row],[2022/23 To - Spending review Topic 1]]+Dataset[[#This Row],[2022/23 To - Spending review Topic 2]]+Dataset[[#This Row],[2022/23 To - Spending review Topic 3]]+Dataset[[#This Row],[2022/23 To - Spending review Topic 4]]+Dataset[[#This Row],[2022/23 To - Other reallocations]] -> 0 | CP24: =Dataset[[#This Row],[2023/24 To - Spending review Topic 1]]+Dataset[[#This Row],[2023/24 To - Spending review Topic 2]]+Dataset[[#This Row],[2023/24 To - Spending review Topic 3]]+Dataset[[#This Row],[2023/24 To - Spending review Topic 4]]+Dataset[[#This Row],[2023/24 To - Other reallocations]] -> 0 | CQ24: =Dataset[[#This Row],[2024/25 To - Spending review Topic 1]]+Dataset[[#This Row],[2024/25 To - Spending review Topic 2]]+Dataset[[#This Row],[2024/25 To - Spending review Topic 3]]+Dataset[[#This Row],[2024/25 To - Spending review Topic 4]]+Dataset[[#This Row],[2024/25 To - Other reallocations]] -> 0 | CR24: =Dataset[[#This Row],[2022/23 Baseline]]+Dataset[[#This Row],[2022/23 From - Total]]+Dataset[[#This Row],[2022/23 To - Total]] -> 0 | CS24: =Dataset[[#This Row],[2023/24 Baseline]]+Dataset[[#This Row],[2023/24 From - Total]]+Dataset[[#This Row],[2023/24 To - Total]] -> 0 | CT24: =Dataset[[#This Row],[2024/25 Baseline]]+Dataset[[#This Row],[2024/25 From - Total]]+Dataset[[#This Row],[2024/25 To - Total]] -> 0
A25: NAT|Non-transfer item | B25: 11|Minor assets | C25: 2022_23 | D25: MTEF2022 | E25: 11 | F25: 1 | G25: 1 | H25: 16528 | I25: 7 | J25: 11 | K25: 01 | L25: 01 | M25: 16528 | N25: 7 | O25: 11|01|01 | P25: 1 | Q25: 1 | R25: 2 | S25: 5 | T25: 5 | U25: 01|01|02|05|05 | V25: National | W25: Public Service and Administration | X25: Administration | Y25: Ministry | Z25: Non-transfer item | AA25: Current | AB25: Current payments | AC25: Goods and services | AD25: Minor assets | AE25: Minor assets | AF25: General public services | AG25: Public administration and fiscal affairs | AH25: NAT | AI25: 31 | AJ25: 18 | AK25: 12 | AL25: 24 | AM25: 24 | AN25: 24 | AO25: 15 | AP25: 6 | AQ25: 6 | AR25: 7 | AS25: 7 | AT25: 1 | AU25: =IF(Dataset[[#This Row],[Reporting level indicator]]=1,$AU$16,"Not applicable") -> Level 4 | AV25: =INDEX((t_ReportingLevelIndi[[Level 3]:[Level 4]]),MATCH(Dataset[[#This Row],[Econ4]],t_ReportingLevelIndi[Econ4],0),MATCH(Data!$AU$16,t_ReportingLevelIndi[[#Headers],[Level 3]:[Level 4]],0)) -> 1 | AW25: =Dataset[[#This Row],[2017/18_Source]]*Dataset[[#This Row],[Reporting level indicator]] -> 31 | AX25: =Dataset[[#This Row],[2018/19_Source]]*Dataset[[#This Row],[Reporting level indicator]] -> 18 | AY25: =Dataset[[#This Row],[2019/20_Source]]*Dataset[[#This Row],[Reporting level indicator]] -> 12 | AZ25: =Dataset[[#This Row],[2020/21 Main appropriation_Source]]*Dataset[[#This Row],[Reporting level indicator]] -> 24 | BA25: =Dataset[[#This Row],[2020/21 Adjusted appropriation_Source]]*Dataset[[#This Row],[Reporting level indicator]] -> 24 | BB25: =Dataset[[#This Row],[2020/21 Revised estimate_Source]]*Dataset[[#This Row],[Reporting level indicator]] -> 24 | BC25: =Dataset[[#This Row],[2020/21 Preliminary outcome_Source]]*Dataset[[#This Row],[Reporting level indicator]] -> 15 | BD25: =Dataset[[#This Row],[2021/22 Baseline_Source]]*Dataset[[#This Row],[Reporting level indicator]] -> 6 | BE25: =Dataset[[#This Row],[2022/23 Baseline_Source]]*Dataset[[#This Row],[Reporting level indicator]] -> 6 | BF25: =Dataset[[#This Row],[2023/24 Baseline_Source]]*Dataset[[#This Row],[Reporting level indicator]] -> 7 | BG25: =Dataset[[#This Row],[2024/25 Baseline_Source]]*Dataset[[#This Row],[Reporting level indicator]] -> 7 | CL25: =Dataset[[#This Row],[2022/23 From - Spending review Topic 1]]+Dataset[[#This Row],[2022/23 From - Spending review Topic 2]]+Dataset[[#This Row],[2022/23 From - Spending review Topic 3]]+Dataset[[#This Row],[2022/23 From - Spending review Topic 4]]+Dataset[[#This Row],[2022/23 From - Other reallocations]] -> 0 | CM25: =Dataset[[#This Row],[2023/24 From - Spending review Topic 1]]+Dataset[[#This Row],[2023/24 From - Spending review Topic 2]]+Dataset[[#This Row],[2023/24 From - Spending review Topic 3]]+Dataset[[#This Row],[2023/24 From - Spending review Topic 4]]+Dataset[[#This Row],[2023/24 From - Other reallocations]] -> 0 | CN25: =Dataset[[#This Row],[2024/25 From - Spending review Topic 1]]+Dataset[[#This Row],[2024/25 From - Spending review Topic 2]]+Dataset[[#This Row],[2024/25 From - Spending review Topic 3]]+Dataset[[#This Row],[2024/25 From - Spending review Topic 4]]+Dataset[[#This Row],[2024/25 From - Other reallocations]] -> 0 | CO25: =Dataset[[#This Row],[2022/23 To - Spending review Topic 1]]+Dataset[[#This Row],[2022/23 To - Spending review Topic 2]]+Dataset[[#This Row],[2022/23 To - Spending review Topic 3]]+Dataset[[#This Row],[2022/23 To - Spending review Topic 4]]+Dataset[[#This Row],[2022/23 To - Other reallocations]] -> 0 | CP25: =Dataset[[#This Row],[2023/24 To - Spending review Topic 1]]+Dataset[[#This Row],[2023/24 To - Spending review Topic 2]]+Dataset[[#This Row],[2023/24 To - Spending review Topic 3]]+Dataset[[#This Row],[2023/24 To - Spending review Topic 4]]+Dataset[[#This Row],[2023/24 To - Other reallocations]] -> 0 | CQ25: =Dataset[[#This Row],[2024/25 To - Spending review Topic 1]]+Dataset[[#This Row],[2024/25 To - Spending review Topic 2]]+Dataset[[#This Row],[2024/25 To - Spending review Topic 3]]+Dataset[[#This Row],[2024/25 To - Spending review Topic 4]]+Dataset[[#This Row],[2024/25 To - Other reallocations]] -> 0 | CR25: =Dataset[[#This Row],[2022/23 Baseline]]+Dataset[[#This Row],[2022/23 From - Total]]+Dataset[[#This Row],[2022/23 To - Total]] -> 6 | CS25: =Dataset[[#This Row],[2023/24 Baseline]]+Dataset[[#This Row],[2023/24 From - Total]]+Dataset[[#This Row],[2023/24 To - Total]] -> 7 | CT25: =Dataset[[#This Row],[2024/25 Baseline]]+Dataset[[#This Row],[2024/25 From - Total]]+Dataset[[#This Row],[2024/25 To - Total]] -> 7
A26: NAT|Non-transfer item | B26: 11|Audit costs: External | C26: 2022_23 | D26: MTEF2022 | E26: 11 | F26: 1 | G26: 1 | H26: 16529 | I26: 8 | J26: 11 | K26: 01 | L26: 01 | M26: 16529 | N26: 8 | O26: 11|01|01 | P26: 1 | Q26: 1 | R26: 2 | S26: 6 | T26: 6 | U26: 01|01|02|06|06 | V26: National | W26: Public Service and Administration | X26: Administration | Y26: Ministry | Z26: Non-transfer item | AA26: Current | AB26: Current payments | AC26: Goods and services | AD26: Audit costs: External | AE26: Audit costs: External | AF26: General public services | AG26: Public administration and fiscal affairs | AH26: NAT | AI26: 0 | AJ26: 0 | AK26: 0 | AL26: 0 | AM26: 0 | AN26: 0 | AO26: 0 | AP26: 0 | AQ26: 0 | AR26: 0 | AS26: 0 | AT26: 0 | AU26: =IF(Dataset[[#This Row],[Reporting level indicator]]=1,$AU$16,"Not applicable") -> Level 4 | AV26: =INDEX((t_ReportingLevelIndi[[Level 3]:[Level 4]]),MATCH(Dataset[[#This Row],[Econ4]],t_ReportingLevelIndi[Econ4],0),MATCH(Data!$AU$16,t_ReportingLevelIndi[[#Headers],[Level 3]:[Level 4]],0)) -> 1 | AW26: =Dataset[[#This Row],[2017/18_Source]]*Dataset[[#This Row],[Reporting level indicator]] -> 0 | AX26: =Dataset[[#This Row],[2018/19_Source]]*Dataset[[#This Row],[Reporting level indicator]] -> 0 | AY26: =Dataset[[#This Row],[2019/20_Source]]*Dataset[[#This Row],[Reporting level indicator]] -> 0 | AZ26: =Dataset[[#This Row],[2020/21 Main appropriation_Source]]*Dataset[[#This Row],[Reporting level indicator]] -> 0 | BA26: =Dataset[[#This Row],[2020/21 Adjusted appropriation_Source]]*Dataset[[#This Row],[Reporting level indicator]] -> 0 | BB26: =Dataset[[#This Row],[2020/21 Revised estimate_Source]]*Dataset[[#This Row],[Reporting level indicator]] -> 0 | BC26: =Dataset[[#This Row],[2020/21 Preliminary outcome_Source]]*Dataset[[#This Row],[Reporting level indicator]] -> 0 | BD26: =Dataset[[#This Row],[2021/22 Baseline_Source]]*Dataset[[#This Row],[Reporting level indicator]] -> 0 | BE26: =Dataset[[#This Row],[2022/23 Baseline_Source]]*Dataset[[#This Row],[Reporting level indicator]] -> 0 | BF26: =Dataset[[#This Row],[2023/24 Baseline_Source]]*Dataset[[#This Row],[Reporting level indicator]] -> 0 | BG26: =Dataset[[#This Row],[2024/25 Baseline_Source]]*Dataset[[#This Row],[Reporting level indicator]] -> 0 | CL26: =Dataset[[#This Row],[2022/23 From - Spending review Topic 1]]+Dataset[[#This Row],[2022/23 From - Spending review Topic 2]]+Dataset[[#This Row],[2022/23 From - Spending review Topic 3]]+Dataset[[#This Row],[2022/23 From - Spending review Topic 4]]+Dataset[[#This Row],[2022/23 From - Other reallocations]] -> 0 | CM26: =Dataset[[#This Row],[2023/24 From - Spending review Topic 1]]+Dataset[[#This Row],[2023/24 From - Spending review Topic 2]]+Dataset[[#This Row],[2023/24 From - Spending review Topic 3]]+Dataset[[#This Row],[2023/24 From - Spending review Topic 4]]+Dataset[[#This Row],[2023/24 From - Other reallocations]] -> 0 | CN26: =Dataset[[#This Row],[2024/25 From - Spending review Topic 1]]+Dataset[[#This Row],[2024/25 From - Spending review Topic 2]]+Dataset[[#This Row],[2024/25 From - Spending review Topic 3]]+Dataset[[#This Row],[2024/25 From - Spending review Topic 4]]+Dataset[[#This Row],[2024/25 From - Other reallocations]] -> 0 | CO26: =Dataset[[#This Row],[2022/23 To - Spending review Topic 1]]+Dataset[[#This Row],[2022/23 To - Spending review Topic 2]]+Dataset[[#This Row],[2022/23 To - Spending review Topic 3]]+Dataset[[#This Row],[2022/23 To - Spending review Topic 4]]+Dataset[[#This Row],[2022/23 To - Other reallocations]] -> 0 | CP26: =Dataset[[#This Row],[2023/24 To - Spending review Topic 1]]+Dataset[[#This Row],[2023/24 To - Spending review Topic 2]]+Dataset[[#This Row],[2023/24 To - Spending review Topic 3]]+Dataset[[#This Row],[2023/24 To - Spending review Topic 4]]+Dataset[[#This Row],[2023/24 To - Other reallocations]] -> 0 | CQ26: =Dataset[[#This Row],[2024/25 To - Spending review Topic 1]]+Dataset[[#This Row],[2024/25 To - Spending review Topic 2]]+Dataset[[#This Row],[2024/25 To - Spending review Topic 3]]+Dataset[[#This Row],[2024/25 To - Spending review Topic 4]]+Dataset[[#This Row],[2024/25 To - Other reallocations]] -> 0 | CR26: =Dataset[[#This Row],[2022/23 Baseline]]+Dataset[[#This Row],[2022/23 From - Total]]+Dataset[[#This Row],[2022/23 To - Total]] -> 0 | CS26: =Dataset[[#This Row],[2023/24 Baseline]]+Dataset[[#This Row],[2023/24 From - Total]]+Dataset[[#This Row],[2023/24 To - Total]] -> 0 | CT26: =Dataset[[#This Row],[2024/25 Baseline]]+Dataset[[#This Row],[2024/25 From - Total]]+Dataset[[#This Row],[2024/25 To - Total]] -> 0
A27: NAT|Non-transfer item | B27: 11|Bursaries: Employees | C27: 2022_23 | D27: MTEF2022 | E27: 11 | F27: 1 | G27: 1 | H27: 16530 | I27: 9 | J27: 11 | K27: 01 | L27: 01 | M27: 16530 | N27: 9 | O27: 11|01|01 | P27: 1 | Q27: 1 | R27: 2 | S27: 7 | T27: 7 | U27: 01|01|02|07|07 | V27: National | W27: Public Service and Administration | X27: Administration | Y27: Ministry | Z27: Non-transfer item | AA27: Current | AB27: Current payments | AC27: Goods and services | AD27: Bursaries: Employees | AE27: Bursaries: Employees | AF27: General public services | AG27: Public administration and fiscal affairs | AH27: NAT | AI27: 0 | AJ27: 0 | AK27: 0 | AL27: 0 | AM27: 0 | AN27: 0 | AO27: 0 | AP27: 0 | AQ27: 0 | AR27: 0 | AS27: 0 | AT27: 0 | AU27: =IF(Dataset[[#This Row],[Reporting level indicator]]=1,$AU$16,"Not applicable") -> Level 4 | AV27: =INDEX((t_ReportingLevelIndi[[Level 3]:[Level 4]]),MATCH(Dataset[[#This Row],[Econ4]],t_ReportingLevelIndi[Econ4],0),MATCH(Data!$AU$16,t_ReportingLevelIndi[[#Headers],[Level 3]:[Level 4]],0)) -> 1 | AW27: =Dataset[[#This Row],[2017/18_Source]]*Dataset[[#This Row],[Reporting level indicator]] -> 0 | AX27: =Dataset[[#This Row],[2018/19_Source]]*Dataset[[#This Row],[Reporting level indicator]] -> 0 | AY27: =Dataset[[#This Row],[2019/20_Source]]*Dataset[[#This Row],[Reporting level indicator]] -> 0 | AZ27: =Dataset[[#This Row],[2020/21 Main appropriation_Source]]*Dataset[[#This Row],[Reporting level indicator]] -> 0 | BA27: =Dataset[[#This Row],[2020/21 Adjusted appropriation_Source]]*Dataset[[#This Row],[Reporting level indicator]] -> 0 | BB27: =Dataset[[#This Row],[2020/21 Revised estimate_Source]]*Dataset[[#This Row],[Reporting level indicator]] -> 0 | BC27: =Dataset[[#This Row],[2020/21 Preliminary outcome_Source]]*Dataset[[#This Row],[Reporting level indicator]] -> 0 | BD27: =Dataset[[#This Row],[2021/22 Baseline_Source]]*Dataset[[#This Row],[Reporting level indicator]] -> 0 | BE27: =Dataset[[#This Row],[2022/23 Baseline_Source]]*Dataset[[#This Row],[Reporting level indicator]] -> 0 | BF27: =Dataset[[#This Row],[2023/24 Baseline_Source]]*Dataset[[#This Row],[Reporting level indicator]] -> 0 | BG27: =Dataset[[#This Row],[2024/25 Baseline_Source]]*Dataset[[#This Row],[Reporting level indicator]] -> 0 | CL27: =Dataset[[#This Row],[2022/23 From - Spending review Topic 1]]+Dataset[[#This Row],[2022/23 From - Spending review Topic 2]]+Dataset[[#This Row],[2022/23 From - Spending review Topic 3]]+Dataset[[#This Row],[2022/23 From - Spending review Topic 4]]+Dataset[[#This Row],[2022/23 From - Other reallocations]] -> 0 | CM27: =Dataset[[#This Row],[2023/24 From - Spending review Topic 1]]+Dataset[[#This Row],[2023/24 From - Spending review Topic 2]]+Dataset[[#This Row],[2023/24 From - Spending review Topic 3]]+Dataset[[#This Row],[2023/24 From - Spending review Topic 4]]+Dataset[[#This Row],[2023/24 From - Other reallocations]] -> 0 | CN27: =Dataset[[#This Row],[2024/25 From - Spending review Topic 1]]+Dataset[[#This Row],[2024/25 From - Spending review Topic 2]]+Dataset[[#This Row],[2024/25 From - Spending review Topic 3]]+Dataset[[#This Row],[2024/25 From - Spending review Topic 4]]+Dataset[[#This Row],[2024/25 From - Other reallocations]] -> 0 | CO27: =Dataset[[#This Row],[2022/23 To - Spending review Topic 1]]+Dataset[[#This Row],[2022/23 To - Spending review Topic 2]]+Dataset[[#This Row],[2022/23 To - Spending review Topic 3]]+Dataset[[#This Row],[2022/23 To - Spending review Topic 4]]+Dataset[[#This Row],[2022/23 To - Other reallocations]] -> 0 | CP27: =Dataset[[#This Row],[2023/24 To - Spending review Topic 1]]+Dataset[[#This Row],[2023/24 To - Spending review Topic 2]]+Dataset[[#This Row],[2023/24 To - Spending review Topic 3]]+Dataset[[#This Row],[2023/24 To - Spending review Topic 4]]+Dataset[[#This Row],[2023/24 To - Other reallocations]] -> 0 | CQ27: =Dataset[[#This Row],[2024/25 To - Spending review Topic 1]]+Dataset[[#This Row],[2024/25 To - Spending review Topic 2]]+Dataset[[#This Row],[2024/25 To - Spending review Topic 3]]+Dataset[[#This Row],[2024/25 To - Spending review Topic 4]]+Dataset[[#This Row],[2024/25 To - Other reallocations]] -> 0 | CR27: =Dataset[[#This Row],[2022/23 Baseline]]+Dataset[[#This Row],[2022/23 From - Total]]+Dataset[[#This Row],[2022/23 To - Total]] -> 0 | CS27: =Dataset[[#This Row],[2023/24 Baseline]]+Dataset[[#This Row],[2023/24 From - Total]]+Dataset[[#This Row],[2023/24 To - Total]] -> 0 | CT27: =Dataset[[#This Row],[2024/25 Baseline]]+Dataset[[#This Row],[2024/25 From - Total]]+Dataset[[#This Row],[2024/25 To - Total]] -> 0
A28: NAT|Non-transfer item | B28: 11|Catering: Departmental activities | C28: 2022_23 | D28: MTEF2022 | E28: 11 | F28: 1 | G28: 1 | H28: 16531 | I28: 10 | J28: 11 | K28: 01 | L28: 01 | M28: 16531 | N28: 10 | O28: 11|01|01 | P28: 1 | Q28: 1 | R28: 2 | S28: 8 | T28: 8 | U28: 01|01|02|08|08 | V28: National | W28: Public Service and Administration | X28: Administration | Y28: Ministry | Z28: Non-transfer item | AA28: Current | AB28: Current payments | AC28: Goods and services | AD28: Catering: Departmental activities | AE28: Catering: Departmental activities | AF28: General public services | AG28: Public administration and fiscal affairs | AH28: NAT | AI28: 114 | AJ28: 232 | AK28: 534 | AL28: 521 | AM28: 521 | AN28: 521 | AO28: 394 | AP28: 130 | AQ28: 152 | AR28: 163 | AS28: 170 | AT28: 1 | AU28: =IF(Dataset[[#This Row],[Reporting level indicator]]=1,$AU$16,"Not applicable") -> Level 4 | AV28: =INDEX((t_ReportingLevelIndi[[Level 3]:[Level 4]]),MATCH(Dataset[[#This Row],[Econ4]],t_ReportingLevelIndi[Econ4],0),MATCH(Data!$AU$16,t_ReportingLevelIndi[[#Headers],[Level 3]:[Level 4]],0)) -> 1 | AW28: =Dataset[[#This Row],[2017/18_Source]]*Dataset[[#This Row],[Reporting level indicator]] -> 114 | AX28: =Dataset[[#This Row],[2018/19_Source]]*Dataset[[#This Row],[Reporting level indicator]] -> 232 | AY28: =Dataset[[#This Row],[2019/20_Source]]*Dataset[[#This Row],[Reporting level indicator]] -> 534 | AZ28: =Dataset[[#This Row],[2020/21 Main appropriation_Source]]*Dataset[[#This Row],[Reporting level indicator]] -> 521 | BA28: =Dataset[[#This Row],[2020/21 Adjusted appropriation_Source]]*Dataset[[#This Row],[Reporting level indicator]] -> 521 | BB28: =Dataset[[#This Row],[2020/21 Revised estimate_Source]]*Dataset[[#This Row],[Reporting level indicator]] -> 521 | BC28: =Dataset[[#This Row],[2020/21 Preliminary outcome_Source]]*Dataset[[#This Row],[Reporting level indicator]] -> 394 | BD28: =Dataset[[#This Row],[2021/22 Baseline_Source]]*Dataset[[#This Row],[Reporting level indicator]] -> 130 | BE28: =Dataset[[#This Row],[2022/23 Baseline_Source]]*Dataset[[#This Row],[Reporting level indicator]] -> 152 | BF28: =Dataset[[#This Row],[2023/24 Baseline_Source]]*Dataset[[#This Row],[Reporting level indicator]] -> 163 | BG28: =Dataset[[#This Row],[2024/25 Baseline_Source]]*Dataset[[#This Row],[Reporting level indicator]] -> 170 | CL28: =Dataset[[#This Row],[2022/23 From - Spending review Topic 1]]+Dataset[[#This Row],[2022/23 From - Spending review Topic 2]]+Dataset[[#This Row],[2022/23 From - Spending review Topic 3]]+Dataset[[#This Row],[2022/23 From - Spending review Topic 4]]+Dataset[[#This Row],[2022/23 From - Other reallocations]] -> 0 | CM28: =Dataset[[#This Row],[2023/24 From - Spending review Topic 1]]+Dataset[[#This Row],[2023/24 From - Spending review Topic 2]]+Dataset[[#This Row],[2023/24 From - Spending review Topic 3]]+Dataset[[#This Row],[2023/24 From - Spending review Topic 4]]+Dataset[[#This Row],[2023/24 From - Other reallocations]] -> 0 | CN28: =Dataset[[#This Row],[2024/25 From - Spending review Topic 1]]+Dataset[[#This Row],[2024/25 From - Spending review Topic 2]]+Dataset[[#This Row],[2024/25 From - Spending review Topic 3]]+Dataset[[#This Row],[2024/25 From - Spending review Topic 4]]+Dataset[[#This Row],[2024/25 From - Other reallocations]] -> 0 | CO28: =Dataset[[#This Row],[2022/23 To - Spending review Topic 1]]+Dataset[[#This Row],[2022/23 To - Spending review Topic 2]]+Dataset[[#This Row],[2022/23 To - Spending review Topic 3]]+Dataset[[#This Row],[2022/23 To - Spending review Topic 4]]+Dataset[[#This Row],[2022/23 To - Other reallocations]] -> 0 | CP28: =Dataset[[#This Row],[2023/24 To - Spending review Topic 1]]+Dataset[[#This Row],[2023/24 To - Spending review Topic 2]]+Dataset[[#This Row],[2023/24 To - Spending review Topic 3]]+Dataset[[#This Row],[2023/24 To - Spending review Topic 4]]+Dataset[[#This Row],[2023/24 To - Other reallocations]] -> 0 | CQ28: =Dataset[[#This Row],[2024/25 To - Spending review Topic 1]]+Dataset[[#This Row],[2024/25 To - Spending review Topic 2]]+Dataset[[#This Row],[2024/25 To - Spending review Topic 3]]+Dataset[[#This Row],[2024/25 To - Spending review Topic 4]]+Dataset[[#This Row],[2024/25 To - Other reallocations]] -> 0 | CR28: =Dataset[[#This Row],[2022/23 Baseline]]+Dataset[[#This Row],[2022/23 From - Total]]+Dataset[[#This Row],[2022/23 To - Total]] -> 152 | CS28: =Dataset[[#This Row],[2023/24 Baseline]]+Dataset[[#This Row],[2023/24 From - Total]]+Dataset[[#This Row],[2023/24 To - Total]] -> 163 | CT28: =Dataset[[#This Row],[2024/25 Baseline]]+Dataset[[#This Row],[2024/25 From - Total]]+Dataset[[#This Row],[2024/25 To - Total]] -> 170
A29: NAT|Non-transfer item | B29: 11|Communication (G&S) | C29: 2022_23 | D29: MTEF2022 | E29: 11 | F29: 1 | G29: 1 | H29: 16532 | I29: 11 | J29: 11 | K29: 01 | L29: 01 | M29: 16532 | N29: 11 | O29: 11|01|01 | P29: 1 | Q29: 1 | R29: 2 | S29: 9 | T29: 9 | U29: 01|01|02|09|09 | V29: National | W29: Public Service and Administration | X29: Administration | Y29: Ministry | Z29: Non-transfer item | AA29: Current | AB29: Current payments | AC29: Goods and services | AD29: Communication (G&S) | AE29: Communication (G&S) | AF29: General public services | AG29: Public administration and fiscal affairs | AH29: NAT | AI29: 2426 | AJ29: 2276 | AK29: 1714 | AL29: 2155 | AM29: 2130 | AN29: 2130 | AO29: 667 | AP29: 733 | AQ29: 750 | AR29: 766 | AS29: 800 | AT29: 1 | AU29: =IF(Dataset[[#This Row],[Reporting level indicator]]=1,$AU$16,"Not applicable") -> Level 4 | AV29: =INDEX((t_ReportingLevelIndi[[Level 3]:[Level 4]]),MATCH(Dataset[[#This Row],[Econ4]],t_ReportingLevelIndi[Econ4],0),MATCH(Data!$AU$16,t_ReportingLevelIndi[[#Headers],[Level 3]:[Level 4]],0)) -> 1 | AW29: =Dataset[[#This Row],[2017/18_Source]]*Dataset[[#This Row],[Reporting level indicator]] -> 2426 | AX29: =Dataset[[#This Row],[2018/19_Source]]*Dataset[[#This Row],[Reporting level indicator]] -> 2276 | AY29: =Dataset[[#This Row],[2019/20_Source]]*Dataset[[#This Row],[Reporting level indicator]] -> 1714 | AZ29: =Dataset[[#This Row],[2020/21 Main appropriation_Source]]*Dataset[[#This Row],[Reporting level indicator]] -> 2155 | BA29: =Dataset[[#This Row],[2020/21 Adjusted appropriation_Source]]*Dataset[[#This Row],[Reporting level indicator]] -> 2130 | BB29: =Dataset[[#This Row],[2020/21 Revised estimate_Source]]*Dataset[[#This Row],[Reporting level indicator]] -> 2130 | BC29: =Dataset[[#This Row],[2020/21 Preliminary outcome_Source]]*Dataset[[#This Row],[Reporting level indicator]] -> 667 | BD29: =Dataset[[#This Row],[2021/22 Baseline_Source]]*Dataset[[#This Row],[Reporting level indicator]] -> 733 | BE29: =Dataset[[#This Row],[2022/23 Baseline_Source]]*Dataset[[#This Row],[Reporting level indicator]] -> 750 | BF29: =Dataset[[#This Row],[2023/24 Baseline_Source]]*Dataset[[#This Row],[Reporting level indicator]] -> 766 | BG29: =Dataset[[#This Row],[2024/25 Baseline_Source]]*Dataset[[#This Row],[Reporting level indicator]] -> 800 | CL29: =Dataset[[#This Row],[2022/23 From - Spending review Topic 1]]+Dataset[[#This Row],[2022/23 From - Spending review Topic 2]]+Dataset[[#This Row],[2022/23 From - Spending review Topic 3]]+Dataset[[#This Row],[2022/23 From - Spending review Topic 4]]+Dataset[[#This Row],[2022/23 From - Other reallocations]] -> 0 | CM29: =Dataset[[#This Row],[2023/24 From - Spending review Topic 1]]+Dataset[[#This Row],[2023/24 From - Spending review Topic 2]]+Dataset[[#This Row],[2023/24 From - Spending review Topic 3]]+Dataset[[#This Row],[2023/24 From - Spending review Topic 4]]+Dataset[[#This Row],[2023/24 From - Other reallocations]] -> 0 | CN29: =Dataset[[#This Row],[2024/25 From - Spending review Topic 1]]+Dataset[[#This Row],[2024/25 From - Spending review Topic 2]]+Dataset[[#This Row],[2024/25 From - Spending review Topic 3]]+Dataset[[#This Row],[2024/25 From - Spending review Topic 4]]+Dataset[[#This Row],[2024/25 From - Other reallocations]] -> 0 | CO29: =Dataset[[#This Row],[2022/23 To - Spending review Topic 1]]+Dataset[[#This Row],[2022/23 To - Spending review Topic 2]]+Dataset[[#This Row],[2022/23 To - Spending review Topic 3]]+Dataset[[#This Row],[2022/23 To - Spending review Topic 4]]+Dataset[[#This Row],[2022/23 To - Other reallocations]] -> 0 | CP29: =Dataset[[#This Row],[2023/24 To - Spending review Topic 1]]+Dataset[[#This Row],[2023/24 To - Spending review Topic 2]]+Dataset[[#This Row],[2023/24 To - Spending review Topic 3]]+Dataset[[#This Row],[2023/24 To - Spending review Topic 4]]+Dataset[[#This Row],[2023/24 To - Other reallocations]] -> 0 | CQ29: =Dataset[[#This Row],[2024/25 To - Spending review Topic 1]]+Dataset[[#This Row],[2024/25 To - Spending review Topic 2]]+Dataset[[#This Row],[2024/25 To - Spending review Topic 3]]+Dataset[[#This Row],[2024/25 To - Spending review Topic 4]]+Dataset[[#This Row],[2024/25 To - Other reallocations]] -> 0 | CR29: =Dataset[[#This Row],[2022/23 Baseline]]+Dataset[[#This Row],[2022/23 From - Total]]+Dataset[[#This Row],[2022/23 To - Total]] -> 750 | CS29: =Dataset[[#This Row],[2023/24 Baseline]]+Dataset[[#This Row],[2023/24 From - Total]]+Dataset[[#This Row],[2023/24 To - Total]] -> 766 | CT29: =Dataset[[#This Row],[2024/25 Baseline]]+Dataset[[#This Row],[2024/25 From - Total]]+Dataset[[#This Row],[2024/25 To - Total]] -> 800
A30: NAT|Non-transfer item | B30: 11|Computer services | C30: 2022_23 | D30: MTEF2022 | E30: 11 | F30: 1 | G30: 1 | H30: 16533 | I30: 12 | J30: 11 | K30: 01 | L30: 01 | M30: 16533 | N30: 12 | O30: 11|01|01 | P30: 1 | Q30: 1 | R30: 2 | S30: 10 | T30: 10 | U30: 01|01|02|10|10 | V30: National | W30: Public Service and Administration | X30: Administration | Y30: Ministry | Z30: Non-transfer item | AA30: Current | AB30: Current payments | AC30: Goods and services | AD30: Computer services | AE30: Computer services | AF30: General public services | AG30: Public administration and fiscal affairs | AH30: NAT | AI30: 1014 | AJ30: 260 | AK30: 246 | AL30: 486 | AM30: 486 | AN30: 486 | AO30: 139 | AP30: 157 | AQ30: 160 | AR30: 165 | AS30: 172 | AT30: 1 | AU30: =IF(Dataset[[#This Row],[Reporting level indicator]]=1,$AU$16,"Not applicable") -> Level 4 | AV30: =INDEX((t_ReportingLevelIndi[[Level 3]:[Level 4]]),MATCH(Dataset[[#This Row],[Econ4]],t_ReportingLevelIndi[Econ4],0),MATCH(Data!$AU$16,t_ReportingLevelIndi[[#Headers],[Level 3]:[Level 4]],0)) -> 1 | AW30: =Dataset[[#This Row],[2017/18_Source]]*Dataset[[#This Row],[Reporting level indicator]] -> 1014 | AX30: =Dataset[[#This Row],[2018/19_Source]]*Dataset[[#This Row],[Reporting level indicator]] -> 260 | AY30: =Dataset[[#This Row],[2019/20_Source]]*Dataset[[#This Row],[Reporting level indicator]] -> 246 | AZ30: =Dataset[[#This Row],[2020/21 Main appropriation_Source]]*Dataset[[#This Row],[Reporting level indicator]] -> 486 | BA30: =Dataset[[#This Row],[2020/21 Adjusted appropriation_Source]]*Dataset[[#This Row],[Reporting level indicator]] -> 486 | BB30: =Dataset[[#This Row],[2020/21 Revised estimate_Source]]*Dataset[[#This Row],[Reporting level indicator]] -> 486 | BC30: =Dataset[[#This Row],[2020/21 Preliminary outcome_Source]]*Dataset[[#This Row],[Reporting level indicator]] -> 139 | BD30: =Dataset[[#This Row],[2021/22 Baseline_Source]]*Dataset[[#This Row],[Reporting level indicator]] -> 157 | BE30: =Dataset[[#This Row],[2022/23 Baseline_Source]]*Dataset[[#This Row],[Reporting level indicator]] -> 160 | BF30: =Dataset[[#This Row],[2023/24 Baseline_Source]]*Dataset[[#This Row],[Reporting level indicator]] -> 165 | BG30: =Dataset[[#This Row],[2024/25 Baseline_Source]]*Dataset[[#This Row],[Reporting level indicator]] -> 172 | CL30: =Dataset[[#This Row],[2022/23 From - Spending review Topic 1]]+Dataset[[#This Row],[2022/23 From - Spending review Topic 2]]+Dataset[[#This Row],[2022/23 From - Spending review Topic 3]]+Dataset[[#This Row],[2022/23 From - Spending review Topic 4]]+Dataset[[#This Row],[2022/23 From - Other reallocations]] -> 0 | CM30: =Dataset[[#This Row],[2023/24 From - Spending review Topic 1]]+Dataset[[#This Row],[2023/24 From - Spending review Topic 2]]+Dataset[[#This Row],[2023/24 From - Spending review Topic 3]]+Dataset[[#This Row],[2023/24 From - Spending review Topic 4]]+Dataset[[#This Row],[2023/24 From - Other reallocations]] -> 0 | CN30: =Dataset[[#This Row],[2024/25 From - Spending review Topic 1]]+Dataset[[#This Row],[2024/25 From - Spending review Topic 2]]+Dataset[[#This Row],[2024/25 From - Spending review Topic 3]]+Dataset[[#This Row],[2024/25 From - Spending review Topic 4]]+Dataset[[#This Row],[2024/25 From - Other reallocations]] -> 0 | CO30: =Dataset[[#This Row],[2022/23 To - Spending review Topic 1]]+Dataset[[#This Row],[2022/23 To - Spending review Topic 2]]+Dataset[[#This Row],[2022/23 To - Spending review Topic 3]]+Dataset[[#This Row],[2022/23 To - Spending review Topic 4]]+Dataset[[#This Row],[2022/23 To - Other reallocations]] -> 0 | CP30: =Dataset[[#This Row],[2023/24 To - Spending review Topic 1]]+Dataset[[#This Row],[2023/24 To - Spending review Topic 2]]+Dataset[[#This Row],[2023/24 To - Spending review Topic 3]]+Dataset[[#This Row],[2023/24 To - Spending review Topic 4]]+Dataset[[#This Row],[2023/24 To - Other reallocations]] -> 0 | CQ30: =Dataset[[#This Row],[2024/25 To - Spending review Topic 1]]+Dataset[[#This Row],[2024/25 To - Spending review Topic 2]]+Dataset[[#This Row],[2024/25 To - Spending review Topic 3]]+Dataset[[#This Row],[2024/25 To - Spending review Topic 4]]+Dataset[[#This Row],[2024/25 To - Other reallocations]] -> 0 | CR30: =Dataset[[#This Row],[2022/23 Baseline]]+Dataset[[#This Row],[2022/23 From - Total]]+Dataset[[#This Row],[2022/23 To - Total]] -> 160 | CS30: =Dataset[[#This Row],[2023/24 Baseline]]+Dataset[[#This Row],[2023/24 From - Total]]+Dataset[[#This Row],[2023/24 To - Total]] -> 165 | CT30: =Dataset[[#This Row],[2024/25 Baseline]]+Dataset[[#This Row],[2024/25 From - Total]]+Dataset[[#This Row],[2024/25 To - Total]] -> 172
A31: NAT|Non-transfer item | B31: 11|Consultants: Business and advisory services | C31: 2022_23 | D31: MTEF2022 | E31: 11 | F31: 1 | G31: 1 | H31: 16534 | I31: 13 | J31: 11 | K31: 01 | L31: 01 | M31: 16534 | N31: 13 | O31: 11|01|01 | P31: 1 | Q31: 1 | R31: 2 | S31: 11 | T31: 11 | U31: 01|01|02|11|11 | V31: National | W31: Public Service and Administration | X31: Administration | Y31: Ministry | Z31: Non-transfer item | AA31: Current | AB31: Current payments | AC31: Goods and services | AD31: Consultants: Business and advisory services | AE31: Consultants: Business and advisory services | AF31: General public services | AG31: Public administration and fiscal affairs | AH31: NAT | AI31: 0 | AJ31: 388 | AK31: 0 | AL31: 0 | AM31: 0 | AN31: 0 | AO31: 0 | AP31: 0 | AQ31: 0 | AR31: 0 | AS31: 0 | AT31: 1 | AU31: =IF(Dataset[[#This Row],[Reporting level indicator]]=1,$AU$16,"Not applicable") -> Level 4 | AV31: =INDEX((t_ReportingLevelIndi[[Level 3]:[Level 4]]),MATCH(Dataset[[#This Row],[Econ4]],t_ReportingLevelIndi[Econ4],0),MATCH(Data!$AU$16,t_ReportingLevelIndi[[#Headers],[Level 3]:[Level 4]],0)) -> 1 | AW31: =Dataset[[#This Row],[2017/18_Source]]*Dataset[[#This Row],[Reporting level indicator]] -> 0 | AX31: =Dataset[[#This Row],[2018/19_Source]]*Dataset[[#This Row],[Reporting level indicator]] -> 388 | AY31: =Dataset[[#This Row],[2019/20_Source]]*Dataset[[#This Row],[Reporting level indicator]] -> 0 | AZ31: =Dataset[[#This Row],[2020/21 Main appropriation_Source]]*Dataset[[#This Row],[Reporting level indicator]] -> 0 | BA31: =Dataset[[#This Row],[2020/21 Adjusted appropriation_Source]]*Dataset[[#This Row],[Reporting level indicator]] -> 0 | BB31: =Dataset[[#This Row],[2020/21 Revised estimate_Source]]*Dataset[[#This Row],[Reporting level indicator]] -> 0 | BC31: =Dataset[[#This Row],[2020/21 Preliminary outcome_Source]]*Dataset[[#This Row],[Reporting level indicator]] -> 0 | BD31: =Dataset[[#This Row],[2021/22 Baseline_Source]]*Dataset[[#This Row],[Reporting level indicator]] -> 0 | BE31: =Dataset[[#This Row],[2022/23 Baseline_Source]]*Dataset[[#This Row],[Reporting level indicator]] -> 0 | BF31: =Dataset[[#This Row],[2023/24 Baseline_Source]]*Dataset[[#This Row],[Reporting level indicator]] -> 0 | BG31: =Dataset[[#This Row],[2024/25 Baseline_Source]]*Dataset[[#This Row],[Reporting level indicator]] -> 0 | CL31: =Dataset[[#This Row],[2022/23 From - Spending review Topic 1]]+Dataset[[#This Row],[2022/23 From - Spending review Topic 2]]+Dataset[[#This Row],[2022/23 From - Spending review Topic 3]]+Dataset[[#This Row],[2022/23 From - Spending review Topic 4]]+Dataset[[#This Row],[2022/23 From - Other reallocations]] -> 0 | CM31: =Dataset[[#This Row],[2023/24 From - Spending review Topic 1]]+Dataset[[#This Row],[2023/24 From - Spending review Topic 2]]+Dataset[[#This Row],[2023/24 From - Spending review Topic 3]]+Dataset[[#This Row],[2023/24 From - Spending review Topic 4]]+Dataset[[#This Row],[2023/24 From - Other reallocations]] -> 0 | CN31: =Dataset[[#This Row],[2024/25 From - Spending review Topic 1]]+Dataset[[#This Row],[2024/25 From - Spending review Topic 2]]+Dataset[[#This Row],[2024/25 From - Spending review Topic 3]]+Dataset[[#This Row],[2024/25 From - Spending review Topic 4]]+Dataset[[#This Row],[2024/25 From - Other reallocations]] -> 0 | CO31: =Dataset[[#This Row],[2022/23 To - Spending review Topic 1]]+Dataset[[#This Row],[2022/23 To - Spending review Topic 2]]+Dataset[[#This Row],[2022/23 To - Spending review Topic 3]]+Dataset[[#This Row],[2022/23 To - Spending review Topic 4]]+Dataset[[#This Row],[2022/23 To - Other reallocations]] -> 0 | CP31: =Dataset[[#This Row],[2023/24 To - Spending review Topic 1]]+Dataset[[#This Row],[2023/24 To - Spending review Topic 2]]+Dataset[[#This Row],[2023/24 To - Spending review Topic 3]]+Dataset[[#This Row],[2023/24 To - Spending review Topic 4]]+Dataset[[#This Row],[2023/24 To - Other reallocations]] -> 0 | CQ31: =Dataset[[#This Row],[2024/25 To - Spending review Topic 1]]+Dataset[[#This Row],[2024/25 To - Spending review Topic 2]]+Dataset[[#This Row],[2024/25 To - Spending review Topic 3]]+Dataset[[#This Row],[2024/25 To - Spending review Topic 4]]+Dataset[[#This Row],[2024/25 To - Other reallocations]] -> 0 | CR31: =Dataset[[#This Row],[2022/23 Baseline]]+Dataset[[#This Row],[2022/23 From - Total]]+Dataset[[#This Row],[2022/23 To - Total]] -> 0 | CS31: =Dataset[[#This Row],[2023/24 Baseline]]+Dataset[[#This Row],[2023/24 From - Total]]+Dataset[[#This Row],[2023/24 To - Total]] -> 0 | CT31: =Dataset[[#This Row],[2024/25 Baseline]]+Dataset[[#This Row],[2024/25 From - Total]]+Dataset[[#This Row],[2024/25 To - Total]] -> 0
A32: NAT|Non-transfer item | B32: 11|Infrastructure and planning services | C32: 2022_23 | D32: MTEF2022 | E32: 11 | F32: 1 | G32: 1 | H32: 16535 | I32: 14 | J32: 11 | K32: 01 | L32: 01 | M32: 16535 | N32: 14 | O32: 11|01|01 | P32: 1 | Q32: 1 | R32: 2 | S32: 12 | T32: 12 | U32: 01|01|02|12|12 | V32: National | W32: Public Service and Administration | X32: Administration | Y32: Ministry | Z32: Non-transfer item | AA32: Current | AB32: Current payments | AC32: Goods and services | AD32: Infrastructure and planning services | AE32: Infrastructure and planning services | AF32: General public services | AG32: Public administration and fiscal affairs | AH32: NAT | AI32: 0 | AJ32: 0 | AK32: 0 | AL32: 0 | AM32: 0 | AN32: 0 | AO32: 0 | AP32: 0 | AQ32: 0 | AR32: 0 | AS32: 0 | AT32: 0 | AU32: =IF(Dataset[[#This Row],[Reporting level indicator]]=1,$AU$16,"Not applicable") -> Level 4 | AV32: =INDEX((t_ReportingLevelIndi[[Level 3]:[Level 4]]),MATCH(Dataset[[#This Row],[Econ4]],t_ReportingLevelIndi[Econ4],0),MATCH(Data!$AU$16,t_ReportingLevelIndi[[#Headers],[Level 3]:[Level 4]],0)) -> 1 | AW32: =Dataset[[#This Row],[2017/18_Source]]*Dataset[[#This Row],[Reporting level indicator]] -> 0 | AX32: =Dataset[[#This Row],[2018/19_Source]]*Dataset[[#This Row],[Reporting level indicator]] -> 0 | AY32: =Dataset[[#This Row],[2019/20_Source]]*Dataset[[#This Row],[Reporting level indicator]] -> 0 | AZ32: =Dataset[[#This Row],[2020/21 Main appropriation_Source]]*Dataset[[#This Row],[Reporting level indicator]] -> 0 | BA32: =Dataset[[#This Row],[2020/21 Adjusted appropriation_Source]]*Dataset[[#This Row],[Reporting level indicator]] -> 0 | BB32: =Dataset[[#This Row],[2020/21 Revised estimate_Source]]*Dataset[[#This Row],[Reporting level indicator]] -> 0 | BC32: =Dataset[[#This Row],[2020/21 Preliminary outcome_Source]]*Dataset[[#This Row],[Reporting level indicator]] -> 0 | BD32: =Dataset[[#This Row],[2021/22 Baseline_Source]]*Dataset[[#This Row],[Reporting level indicator]] -> 0 | BE32: =Dataset[[#This Row],[2022/23 Baseline_Source]]*Dataset[[#This Row],[Reporting level indicator]] -> 0 | BF32: =Dataset[[#This Row],[2023/24 Baseline_Source]]*Dataset[[#This Row],[Reporting level indicator]] -> 0 | BG32: =Dataset[[#This Row],[2024/25 Baseline_Source]]*Dataset[[#This Row],[Reporting level indicator]] -> 0 | CL32: =Dataset[[#This Row],[2022/23 From - Spending review Topic 1]]+Dataset[[#This Row],[2022/23 From - Spending review Topic 2]]+Dataset[[#This Row],[2022/23 From - Spending review Topic 3]]+Dataset[[#This Row],[2022/23 From - Spending review Topic 4]]+Dataset[[#This Row],[2022/23 From - Other reallocations]] -> 0 | CM32: =Dataset[[#This Row],[2023/24 From - Spending review Topic 1]]+Dataset[[#This Row],[2023/24 From - Spending review Topic 2]]+Dataset[[#This Row],[2023/24 From - Spending review Topic 3]]+Dataset[[#This Row],[2023/24 From - Spending review Topic 4]]+Dataset[[#This Row],[2023/24 From - Other reallocations]] -> 0 | CN32: =Dataset[[#This Row],[2024/25 From - Spending review Topic 1]]+Dataset[[#This Row],[2024/25 From - Spending review Topic 2]]+Dataset[[#This Row],[2024/25 From - Spending review Topic 3]]+Dataset[[#This Row],[2024/25 From - Spending review Topic 4]]+Dataset[[#This Row],[2024/25 From - Other reallocations]] -> 0 | CO32: =Dataset[[#This Row],[2022/23 To - Spending review Topic 1]]+Dataset[[#This Row],[2022/23 To - Spending review Topic 2]]+Dataset[[#This Row],[2022/23 To - Spending review Topic 3]]+Dataset[[#This Row],[2022/23 To - Spending review Topic 4]]+Dataset[[#This Row],[2022/23 To - Other reallocations]] -> 0 | CP32: =Dataset[[#This Row],[2023/24 To - Spending review Topic 1]]+Dataset[[#This Row],[2023/24 To - Spending review Topic 2]]+Dataset[[#This Row],[2023/24 To - Spending review Topic 3]]+Dataset[[#This Row],[2023/24 To - Spending review Topic 4]]+Dataset[[#This Row],[2023/24 To - Other reallocations]] -> 0 | CQ32: =Dataset[[#This Row],[2024/25 To - Spending review Topic 1]]+Dataset[[#This Row],[2024/25 To - Spending review Topic 2]]+Dataset[[#This Row],[2024/25 To - Spending review Topic 3]]+Dataset[[#This Row],[2024/25 To - Spending review Topic 4]]+Dataset[[#This Row],[2024/25 To - Other reallocations]] -> 0 | CR32: =Dataset[[#This Row],[2022/23 Baseline]]+Dataset[[#This Row],[2022/23 From - Total]]+Dataset[[#This Row],[2022/23 To - Total]] -> 0 | CS32: =Dataset[[#This Row],[2023/24 Baseline]]+Dataset[[#This Row],[2023/24 From - Total]]+Dataset[[#This Row],[2023/24 To - Total]] -> 0 | CT32: =Dataset[[#This Row],[2024/25 Baseline]]+Dataset[[#This Row],[2024/25 From - Total]]+Dataset[[#This Row],[2024/25 To - Total]] -> 0
A33: NAT|Non-transfer item | B33: 11|Laboratory services | C33: 2022_23 | D33: MTEF2022 | E33: 11 | F33: 1 | G33: 1 | H33: 16536 | I33: 15 | J33: 11 | K33: 01 | L33: 01 | M33: 16536 | N33: 15 | O33: 11|01|01 | P33: 1 | Q33: 1 | R33: 2 | S33: 13 | T33: 13 | U33: 01|01|02|13|13 | V33: National | W33: Public Service and Administration | X33: Administration | Y33: Ministry | Z33: Non-transfer item | AA33: Current | AB33: Current payments | AC33: Goods and services | AD33: Laboratory services | AE33: Laboratory services | AF33: General public services | AG33: Public administration and fiscal affairs | AH33: NAT | AI33: 0 | AJ33: 0 | AK33: 0 | AL33: 0 | AM33: 0 | AN33: 0 | AO33: 0 | AP33: 0 | AQ33: 0 | AR33: 0 | AS33: 0 | AT33: 0 | AU33: =IF(Dataset[[#This Row],[Reporting level indicator]]=1,$AU$16,"Not applicable") -> Level 4 | AV33: =INDEX((t_ReportingLevelIndi[[Level 3]:[Level 4]]),MATCH(Dataset[[#This Row],[Econ4]],t_ReportingLevelIndi[Econ4],0),MATCH(Data!$AU$16,t_ReportingLevelIndi[[#Headers],[Level 3]:[Level 4]],0)) -> 1 | AW33: =Dataset[[#This Row],[2017/18_Source]]*Dataset[[#This Row],[Reporting level indicator]] -> 0 | AX33: =Dataset[[#This Row],[2018/19_Source]]*Dataset[[#This Row],[Reporting level indicator]] -> 0 | AY33: =Dataset[[#This Row],[2019/20_Source]]*Dataset[[#This Row],[Reporting level indicator]] -> 0 | AZ33: =Dataset[[#This Row],[2020/21 Main appropriation_Source]]*Dataset[[#This Row],[Reporting level indicator]] -> 0 | BA33: =Dataset[[#This Row],[2020/21 Adjusted appropriation_Source]]*Dataset[[#This Row],[Reporting level indicator]] -> 0 | BB33: =Dataset[[#This Row],[2020/21 Revised estimate_Source]]*Dataset[[#This Row],[Reporting level indicator]] -> 0 | BC33: =Dataset[[#This Row],[2020/21 Preliminary outcome_Source]]*Dataset[[#This Row],[Reporting level indicator]] -> 0 | BD33: =Dataset[[#This Row],[2021/22 Baseline_Source]]*Dataset[[#This Row],[Reporting level indicator]] -> 0 | BE33: =Dataset[[#This Row],[2022/23 Baseline_Source]]*Dataset[[#This Row],[Reporting level indicator]] -> 0 | BF33: =Dataset[[#This Row],[2023/24 Baseline_Source]]*Dataset[[#This Row],[Reporting level indicator]] -> 0 | BG33: =Dataset[[#This Row],[2024/25 Baseline_Source]]*Dataset[[#This Row],[Reporting level indicator]] -> 0 | CL33: =Dataset[[#This Row],[2022/23 From - Spending review Topic 1]]+Dataset[[#This Row],[2022/23 From - Spending review Topic 2]]+Dataset[[#This Row],[2022/23 From - Spending review Topic 3]]+Dataset[[#This Row],[2022/23 From - Spending review Topic 4]]+Dataset[[#This Row],[2022/23 From - Other reallocations]] -> 0 | CM33: =Dataset[[#This Row],[2023/24 From - Spending review Topic 1]]+Dataset[[#This Row],[2023/24 From - Spending review Topic 2]]+Dataset[[#This Row],[2023/24 From - Spending review Topic 3]]+Dataset[[#This Row],[2023/24 From - Spending review Topic 4]]+Dataset[[#This Row],[2023/24 From - Other reallocations]] -> 0 | CN33: =Dataset[[#This Row],[2024/25 From - Spending review Topic 1]]+Dataset[[#This Row],[2024/25 From - Spending review Topic 2]]+Dataset[[#This Row],[2024/25 From - Spending review Topic 3]]+Dataset[[#This Row],[2024/25 From - Spending review Topic 4]]+Dataset[[#This Row],[2024/25 From - Other reallocations]] -> 0 | CO33: =Dataset[[#This Row],[2022/23 To - Spending review Topic 1]]+Dataset[[#This Row],[2022/23 To - Spending review Topic 2]]+Dataset[[#This Row],[2022/23 To - Spending review Topic 3]]+Dataset[[#This Row],[2022/23 To - Spending review Topic 4]]+Dataset[[#This Row],[2022/23 To - Other reallocations]] -> 0 | CP33: =Dataset[[#This Row],[2023/24 To - Spending review Topic 1]]+Dataset[[#This Row],[2023/24 To - Spending review Topic 2]]+Dataset[[#This Row],[2023/24 To - Spending review Topic 3]]+Dataset[[#This Row],[2023/24 To - Spending review Topic 4]]+Dataset[[#This Row],[2023/24 To - Other reallocations]] -> 0 | CQ33: =Dataset[[#This Row],[2024/25 To - Spending review Topic 1]]+Dataset[[#This Row],[2024/25 To - Spending review Topic 2]]+Dataset[[#This Row],[2024/25 To - Spending review Topic 3]]+Dataset[[#This Row],[2024/25 To - Spending review Topic 4]]+Dataset[[#This Row],[2024/25 To - Other reallocations]] -> 0 | CR33: =Dataset[[#This Row],[2022/23 Baseline]]+Dataset[[#This Row],[2022/23 From - Total]]+Dataset[[#This Row],[2022/23 To - Total]] -> 0 | CS33: =Dataset[[#This Row],[2023/24 Baseline]]+Dataset[[#This Row],[2023/24 From - Total]]+Dataset[[#This Row],[2023/24 To - Total]] -> 0 | CT33: =Dataset[[#This Row],[2024/25 Baseline]]+Dataset[[#This Row],[2024/25 From - Total]]+Dataset[[#This Row],[2024/25 To - Total]] -> 0
A34: NAT|Non-transfer item | B34: 11|Legal services (G&S) | C34: 2022_23 | D34: MTEF2022 | E34: 11 | F34: 1 | G34: 1 | H34: 16537 | I34: 16 | J34: 11 | K34: 01 | L34: 01 | M34: 16537 | N34: 16 | O34: 11|01|01 | P34: 1 | Q34: 1 | R34: 2 | S34: 14 | T34: 14 | U34: 01|01|02|14|14 | V34: National | W34: Public Service and Administration | X34: Administration | Y34: Ministry | Z34: Non-transfer item | AA34: Current | AB34: Current payments | AC34: Goods and services | AD34: Legal services (G&S) | AE34: Legal services (G&S) | AF34: General public services | AG34: Public administration and fiscal affairs | AH34: NAT | AI34: 0 | AJ34: 0 | AK34: 0 | AL34: 0 | AM34: 0 | AN34: 0 | AO34: 0 | AP34: 0 | AQ34: 0 | AR34: 0 | AS34: 0 | AT34: 0 | AU34: =IF(Dataset[[#This Row],[Reporting level indicator]]=1,$AU$16,"Not applicable") -> Level 4 | AV34: =INDEX((t_ReportingLevelIndi[[Level 3]:[Level 4]]),MATCH(Dataset[[#This Row],[Econ4]],t_ReportingLevelIndi[Econ4],0),MATCH(Data!$AU$16,t_ReportingLevelIndi[[#Headers],[Level 3]:[Level 4]],0)) -> 1 | AW34: =Dataset[[#This Row],[2017/18_Source]]*Dataset[[#This Row],[Reporting level indicator]] -> 0 | AX34: =Dataset[[#This Row],[2018/19_Source]]*Dataset[[#This Row],[Reporting level indicator]] -> 0 | AY34: =Dataset[[#This Row],[2019/20_Source]]*Dataset[[#This Row],[Reporting level indicator]] -> 0 | AZ34: =Dataset[[#This Row],[2020/21 Main appropriation_Source]]*Dataset[[#This Row],[Reporting level indicator]] -> 0 | BA34: =Dataset[[#This Row],[2020/21 Adjusted appropriation_Source]]*Dataset[[#This Row],[Reporting level indicator]] -> 0 | BB34: =Dataset[[#This Row],[2020/21 Revised estimate_Source]]*Dataset[[#This Row],[Reporting level indicator]] -> 0 | BC34: =Dataset[[#This Row],[2020/21 Preliminary outcome_Source]]*Dataset[[#This Row],[Reporting level indicator]] -> 0 | BD34: =Dataset[[#This Row],[2021/22 Baseline_Source]]*Dataset[[#This Row],[Reporting level indicator]] -> 0 | BE34: =Dataset[[#This Row],[2022/23 Baseline_Source]]*Dataset[[#This Row],[Reporting level indicator]] -> 0 | BF34: =Dataset[[#This Row],[2023/24 Baseline_Source]]*Dataset[[#This Row],[Reporting level indicator]] -> 0 | BG34: =Dataset[[#This Row],[2024/25 Baseline_Source]]*Dataset[[#This Row],[Reporting level indicator]] -> 0 | CL34: =Dataset[[#This Row],[2022/23 From - Spending review Topic 1]]+Dataset[[#This Row],[2022/23 From - Spending review Topic 2]]+Dataset[[#This Row],[2022/23 From - Spending review Topic 3]]+Dataset[[#This Row],[2022/23 From - Spending review Topic 4]]+Dataset[[#This Row],[2022/23 From - Other reallocations]] -> 0 | CM34: =Dataset[[#This Row],[2023/24 From - Spending review Topic 1]]+Dataset[[#This Row],[2023/24 From - Spending review Topic 2]]+Dataset[[#This Row],[2023/24 From - Spending review Topic 3]]+Dataset[[#This Row],[2023/24 From - Spending review Topic 4]]+Dataset[[#This Row],[2023/24 From - Other reallocations]] -> 0 | CN34: =Dataset[[#This Row],[2024/25 From - Spending review Topic 1]]+Dataset[[#This Row],[2024/25 From - Spending review Topic 2]]+Dataset[[#This Row],[2024/25 From - Spending review Topic 3]]+Dataset[[#This Row],[2024/25 From - Spending review Topic 4]]+Dataset[[#This Row],[2024/25 From - Other reallocations]] -> 0 | CO34: =Dataset[[#This Row],[2022/23 To - Spending review Topic 1]]+Dataset[[#This Row],[2022/23 To - Spending review Topic 2]]+Dataset[[#This Row],[2022/23 To - Spending review Topic 3]]+Dataset[[#This Row],[2022/23 To - Spending review Topic 4]]+Dataset[[#This Row],[2022/23 To - Other reallocations]] -> 0 | CP34: =Dataset[[#This Row],[2023/24 To - Spending review Topic 1]]+Dataset[[#This Row],[2023/24 To - Spending review Topic 2]]+Dataset[[#This Row],[2023/24 To - Spending review Topic 3]]+Dataset[[#This Row],[2023/24 To - Spending review Topic 4]]+Dataset[[#This Row],[2023/24 To - Other reallocations]] -> 0 | CQ34: =Dataset[[#This Row],[2024/25 To - Spending review Topic 1]]+Dataset[[#This Row],[2024/25 To - Spending review Topic 2]]+Dataset[[#This Row],[2024/25 To - Spending review Topic 3]]+Dataset[[#This Row],[2024/25 To - Spending review Topic 4]]+Dataset[[#This Row],[2024/25 To - Other reallocations]] -> 0 | CR34: =Dataset[[#This Row],[2022/23 Baseline]]+Dataset[[#This Row],[2022/23 From - Total]]+Dataset[[#This Row],[2022/23 To - Total]] -> 0 | CS34: =Dataset[[#This Row],[2023/24 Baseline]]+Dataset[[#This Row],[2023/24 From - Total]]+Dataset[[#This Row],[2023/24 To - Total]] -> 0 | CT34: =Dataset[[#This Row],[2024/25 Baseline]]+Dataset[[#This Row],[2024/25 From - Total]]+Dataset[[#This Row],[2024/25 To - Total]] -> 0
A35: NAT|Non-transfer item | B35: 11|Science and technological services | C35: 2022_23 | D35: MTEF2022 | E35: 11 | F35: 1 | G35: 1 | H35: 16538 | I35: 17 | J35: 11 | K35: 01 | L35: 01 | M35: 16538 | N35: 17 | O35: 11|01|01 | P35: 1 | Q35: 1 | R35: 2 | S35: 15 | T35: 15 | U35: 01|01|02|15|15 | V35: National | W35: Public Service and Administration | X35: Administration | Y35: Ministry | Z35: Non-transfer item | AA35: Current | AB35: Current payments | AC35: Goods and services | AD35: Science and technological services | AE35: Science and technological services | AF35: General public services | AG35: Public administration and fiscal affairs | AH35: NAT | AI35: 0 | AJ35: 0 | AK35: 0 | AL35: 0 | AM35: 0 | AN35: 0 | AO35: 0 | AP35: 0 | AQ35: 0 | AR35: 0 | AS35: 0 | AT35: 0 | AU35: =IF(Dataset[[#This Row],[Reporting level indicator]]=1,$AU$16,"Not applicable") -> Level 4 | AV35: =INDEX((t_ReportingLevelIndi[[Level 3]:[Level 4]]),MATCH(Dataset[[#This Row],[Econ4]],t_ReportingLevelIndi[Econ4],0),MATCH(Data!$AU$16,t_ReportingLevelIndi[[#Headers],[Level 3]:[Level 4]],0)) -> 1 | AW35: =Dataset[[#This Row],[2017/18_Source]]*Dataset[[#This Row],[Reporting level indicator]] -> 0 | AX35: =Dataset[[#This Row],[2018/19_Source]]*Dataset[[#This Row],[Reporting level indicator]] -> 0 | AY35: =Dataset[[#This Row],[2019/20_Source]]*Dataset[[#This Row],[Reporting level indicator]] -> 0 | AZ35: =Dataset[[#This Row],[2020/21 Main appropriation_Source]]*Dataset[[#This Row],[Reporting level indicator]] -> 0 | BA35: =Dataset[[#This Row],[2020/21 Adjusted appropriation_Source]]*Dataset[[#This Row],[Reporting level indicator]] -> 0 | BB35: =Dataset[[#This Row],[2020/21 Revised estimate_Source]]*Dataset[[#This Row],[Reporting level indicator]] -> 0 | BC35: =Dataset[[#This Row],[2020/21 Preliminary outcome_Source]]*Dataset[[#This Row],[Reporting level indicator]] -> 0 | BD35: =Dataset[[#This Row],[2021/22 Baseline_Source]]*Dataset[[#This Row],[Reporting level indicator]] -> 0 | BE35: =Dataset[[#This Row],[2022/23 Baseline_Source]]*Dataset[[#This Row],[Reporting level indicator]] -> 0 | BF35: =Dataset[[#This Row],[2023/24 Baseline_Source]]*Dataset[[#This Row],[Reporting level indicator]] -> 0 | BG35: =Dataset[[#This Row],[2024/25 Baseline_Source]]*Dataset[[#This Row],[Reporting level indicator]] -> 0 | CL35: =Dataset[[#This Row],[2022/23 From - Spending review Topic 1]]+Dataset[[#This Row],[2022/23 From - Spending review Topic 2]]+Dataset[[#This Row],[2022/23 From - Spending review Topic 3]]+Dataset[[#This Row],[2022/23 From - Spending review Topic 4]]+Dataset[[#This Row],[2022/23 From - Other reallocations]] -> 0 | CM35: =Dataset[[#This Row],[2023/24 From - Spending review Topic 1]]+Dataset[[#This Row],[2023/24 From - Spending review Topic 2]]+Dataset[[#This Row],[2023/24 From - Spending review Topic 3]]+Dataset[[#This Row],[2023/24 From - Spending review Topic 4]]+Dataset[[#This Row],[2023/24 From - Other reallocations]] -> 0 | CN35: =Dataset[[#This Row],[2024/25 From - Spending review Topic 1]]+Dataset[[#This Row],[2024/25 From - Spending review Topic 2]]+Dataset[[#This Row],[2024/25 From - Spending review Topic 3]]+Dataset[[#This Row],[2024/25 From - Spending review Topic 4]]+Dataset[[#This Row],[2024/25 From - Other reallocations]] -> 0 | CO35: =Dataset[[#This Row],[2022/23 To - Spending review Topic 1]]+Dataset[[#This Row],[2022/23 To - Spending review Topic 2]]+Dataset[[#This Row],[2022/23 To - Spending review Topic 3]]+Dataset[[#This Row],[2022/23 To - Spending review Topic 4]]+Dataset[[#This Row],[2022/23 To - Other reallocations]] -> 0 | CP35: =Dataset[[#This Row],[2023/24 To - Spending review Topic 1]]+Dataset[[#This Row],[2023/24 To - Spending review Topic 2]]+Dataset[[#This Row],[2023/24 To - Spending review Topic 3]]+Dataset[[#This Row],[2023/24 To - Spending review Topic 4]]+Dataset[[#This Row],[2023/24 To - Other reallocations]] -> 0 | CQ35: =Dataset[[#This Row],[2024/25 To - Spending review Topic 1]]+Dataset[[#This Row],[2024/25 To - Spending review Topic 2]]+Dataset[[#This Row],[2024/25 To - Spending review Topic 3]]+Dataset[[#This Row],[2024/25 To - Spending review Topic 4]]+Dataset[[#This Row],[2024/25 To - Other reallocations]] -> 0 | CR35: =Dataset[[#This Row],[2022/23 Baseline]]+Dataset[[#This Row],[2022/23 From - Total]]+Dataset[[#This Row],[2022/23 To - Total]] -> 0 | CS35: =Dataset[[#This Row],[2023/24 Baseline]]+Dataset[[#This Row],[2023/24 From - Total]]+Dataset[[#This Row],[2023/24 To - Total]] -> 0 | CT35: =Dataset[[#This Row],[2024/25 Baseline]]+Dataset[[#This Row],[2024/25 From - Total]]+Dataset[[#This Row],[2024/25 To - Total]] -> 0
A36: NAT|Non-transfer item | B36: 11|Contractors | C36: 2022_23 | D36: MTEF2022 | E36: 11 | F36: 1 | G36: 1 | H36: 16539 | I36: 18 | J36: 11 | K36: 01 | L36: 01 | M36: 16539 | N36: 18 | O36: 11|01|01 | P36: 1 | Q36: 1 | R36: 2 | S36: 16 | T36: 16 | U36: 01|01|02|16|16 | V36: National | W36: Public Service and Administration | X36: Administration | Y36: Ministry | Z36: Non-transfer item | AA36: Current | AB36: Current payments | AC36: Goods and services | AD36: Contractors | AE36: Contractors | AF36: General public services | AG36: Public administration and fiscal affairs | AH36: NAT | AI36: 30 | AJ36: 35 | AK36: 6 | AL36: 0 | AM36: 0 | AN36: 0 | AO36: 7 | AP36: 0 | AQ36: 0 | AR36: 0 | AS36: 0 | AT36: 1 | AU36: =IF(Dataset[[#This Row],[Reporting level indicator]]=1,$AU$16,"Not applicable") -> Level 4 | AV36: =INDEX((t_ReportingLevelIndi[[Level 3]:[Level 4]]),MATCH(Dataset[[#This Row],[Econ4]],t_ReportingLevelIndi[Econ4],0),MATCH(Data!$AU$16,t_ReportingLevelIndi[[#Headers],[Level 3]:[Level 4]],0)) -> 1 | AW36: =Dataset[[#This Row],[2017/18_Source]]*Dataset[[#This Row],[Reporting level indicator]] -> 30 | AX36: =Dataset[[#This Row],[2018/19_Source]]*Dataset[[#This Row],[Reporting level indicator]] -> 35 | AY36: =Dataset[[#This Row],[2019/20_Source]]*Dataset[[#This Row],[Reporting level indicator]] -> 6 | AZ36: =Dataset[[#This Row],[2020/21 Main appropriation_Source]]*Dataset[[#This Row],[Reporting level indicator]] -> 0 | BA36: =Dataset[[#This Row],[2020/21 Adjusted appropriation_Source]]*Dataset[[#This Row],[Reporting level indicator]] -> 0 | BB36: =Dataset[[#This Row],[2020/21 Revised estimate_Source]]*Dataset[[#This Row],[Reporting level indicator]] -> 0 | BC36: =Dataset[[#This Row],[2020/21 Preliminary outcome_Source]]*Dataset[[#This Row],[Reporting level indicator]] -> 7 | BD36: =Dataset[[#This Row],[2021/22 Baseline_Source]]*Dataset[[#This Row],[Reporting level indicator]] -> 0 | BE36: =Dataset[[#This Row],[2022/23 Baseline_Source]]*Dataset[[#This Row],[Reporting level indicator]] -> 0 | BF36: =Dataset[[#This Row],[2023/24 Baseline_Source]]*Dataset[[#This Row],[Reporting level indicator]] -> 0 | BG36: =Dataset[[#This Row],[2024/25 Baseline_Source]]*Dataset[[#This Row],[Reporting level indicator]] -> 0 | CL36: =Dataset[[#This Row],[2022/23 From - Spending review Topic 1]]+Dataset[[#This Row],[2022/23 From - Spending review Topic 2]]+Dataset[[#This Row],[2022/23 From - Spending review Topic 3]]+Dataset[[#This Row],[2022/23 From - Spending review Topic 4]]+Dataset[[#This Row],[2022/23 From - Other reallocations]] -> 0 | CM36: =Dataset[[#This Row],[2023/24 From - Spending review Topic 1]]+Dataset[[#This Row],[2023/24 From - Spending review Topic 2]]+Dataset[[#This Row],[2023/24 From - Spending review Topic 3]]+Dataset[[#This Row],[2023/24 From - Spending review Topic 4]]+Dataset[[#This Row],[2023/24 From - Other reallocations]] -> 0 | CN36: =Dataset[[#This Row],[2024/25 From - Spending review Topic 1]]+Dataset[[#This Row],[2024/25 From - Spending review Topic 2]]+Dataset[[#This Row],[2024/25 From - Spending review Topic 3]]+Dataset[[#This Row],[2024/25 From - Spending review Topic 4]]+Dataset[[#This Row],[2024/25 From - Other reallocations]] -> 0 | CO36: =Dataset[[#This Row],[2022/23 To - Spending review Topic 1]]+Dataset[[#This Row],[2022/23 To - Spending review Topic 2]]+Dataset[[#This Row],[2022/23 To - Spending review Topic 3]]+Dataset[[#This Row],[2022/23 To - Spending review Topic 4]]+Dataset[[#This Row],[2022/23 To - Other reallocations]] -> 0 | CP36: =Dataset[[#This Row],[2023/24 To - Spending review Topic 1]]+Dataset[[#This Row],[2023/24 To - Spending review Topic 2]]+Dataset[[#This Row],[2023/24 To - Spending review Topic 3]]+Dataset[[#This Row],[2023/24 To - Spending review Topic 4]]+Dataset[[#This Row],[2023/24 To - Other reallocations]] -> 0 | CQ36: =Dataset[[#This Row],[2024/25 To - Spending review Topic 1]]+Dataset[[#This Row],[2024/25 To - Spending review Topic 2]]+Dataset[[#This Row],[2024/25 To - Spending review Topic 3]]+Dataset[[#This Row],[2024/25 To - Spending review Topic 4]]+Dataset[[#This Row],[2024/25 To - Other reallocations]] -> 0 | CR36: =Dataset[[#This Row],[2022/23 Baseline]]+Dataset[[#This Row],[2022/23 From - Total]]+Dataset[[#This Row],[2022/23 To - Total]] -> 0 | CS36: =Dataset[[#This Row],[2023/24 Baseline]]+Dataset[[#This Row],[2023/24 From - Total]]+Dataset[[#This Row],[2023/24 To - Total]] -> 0 | CT36: =Dataset[[#This Row],[2024/25 Baseline]]+Dataset[[#This Row],[2024/25 From - Total]]+Dataset[[#This Row],[2024/25 To - Total]] -> 0
A37: NAT|Non-transfer item | B37: 11|Agency and support/outsourced services | C37: 2022_23 | D37: MTEF2022 | E37: 11 | F37: 1 | G37: 1 | H37: 16540 | I37: 19 | J37: 11 | K37: 01 | L37: 01 | M37: 16540 | N37: 19 | O37: 11|01|01 | P37: 1 | Q37: 1 | R37: 2 | S37: 17 | T37: 17 | U37: 01|01|02|17|17 | V37: National | W37: Public Service and Administration | X37: Administration | Y37: Ministry | Z37: Non-transfer item | AA37: Current | AB37: Current payments | AC37: Goods and services | AD37: Agency and support/outsourced services | AE37: Agency and support/outsourced services | AF37: General public services | AG37: Public administration and fiscal affairs | AH37: NAT | AI37: 0 | AJ37: 0 | AK37: 0 | AL37: 0 | AM37: 0 | AN37: 0 | AO37: 0 | AP37: 0 | AQ37: 0 | AR37: 0 | AS37: 0 | AT37: 0 | AU37: =IF(Dataset[[#This Row],[Reporting level indicator]]=1,$AU$16,"Not applicable") -> Level 4 | AV37: =INDEX((t_ReportingLevelIndi[[Level 3]:[Level 4]]),MATCH(Dataset[[#This Row],[Econ4]],t_ReportingLevelIndi[Econ4],0),MATCH(Data!$AU$16,t_ReportingLevelIndi[[#Headers],[Level 3]:[Level 4]],0)) -> 1 | AW37: =Dataset[[#This Row],[2017/18_Source]]*Dataset[[#This Row],[Reporting level indicator]] -> 0 | AX37: =Dataset[[#This Row],[2018/19_Source]]*Dataset[[#This Row],[Reporting level indicator]] -> 0 | AY37: =Dataset[[#This Row],[2019/20_Source]]*Dataset[[#This Row],[Reporting level indicator]] -> 0 | AZ37: =Dataset[[#This Row],[2020/21 Main appropriation_Source]]*Dataset[[#This Row],[Reporting level indicator]] -> 0 | BA37: =Dataset[[#This Row],[2020/21 Adjusted appropriation_Source]]*Dataset[[#This Row],[Reporting level indicator]] -> 0 | BB37: =Dataset[[#This Row],[2020/21 Revised estimate_Source]]*Dataset[[#This Row],[Reporting level indicator]] -> 0 | BC37: =Dataset[[#This Row],[2020/21 Preliminary outcome_Source]]*Dataset[[#This Row],[Reporting level indicator]] -> 0 | BD37: =Dataset[[#This Row],[2021/22 Baseline_Source]]*Dataset[[#This Row],[Reporting level indicator]] -> 0 | BE37: =Dataset[[#This Row],[2022/23 Baseline_Source]]*Dataset[[#This Row],[Reporting level indicator]] -> 0 | BF37: =Dataset[[#This Row],[2023/24 Baseline_Source]]*Dataset[[#This Row],[Reporting level indicator]] -> 0 | BG37: =Dataset[[#This Row],[2024/25 Baseline_Source]]*Dataset[[#This Row],[Reporting level indicator]] -> 0 | CL37: =Dataset[[#This Row],[2022/23 From - Spending review Topic 1]]+Dataset[[#This Row],[2022/23 From - Spending review Topic 2]]+Dataset[[#This Row],[2022/23 From - Spending review Topic 3]]+Dataset[[#This Row],[2022/23 From - Spending review Topic 4]]+Dataset[[#This Row],[2022/23 From - Other reallocations]] -> 0 | CM37: =Dataset[[#This Row],[2023/24 From - Spending review Topic 1]]+Dataset[[#This Row],[2023/24 From - Spending review Topic 2]]+Dataset[[#This Row],[2023/24 From - Spending review Topic 3]]+Dataset[[#This Row],[2023/24 From - Spending review Topic 4]]+Dataset[[#This Row],[2023/24 From - Other reallocations]] -> 0 | CN37: =Dataset[[#This Row],[2024/25 From - Spending review Topic 1]]+Dataset[[#This Row],[2024/25 From - Spending review Topic 2]]+Dataset[[#This Row],[2024/25 From - Spending review Topic 3]]+Dataset[[#This Row],[2024/25 From - Spending review Topic 4]]+Dataset[[#This Row],[2024/25 From - Other reallocations]] -> 0 | CO37: =Dataset[[#This Row],[2022/23 To - Spending review Topic 1]]+Dataset[[#This Row],[2022/23 To - Spending review Topic 2]]+Dataset[[#This Row],[2022/23 To - Spending review Topic 3]]+Dataset[[#This Row],[2022/23 To - Spending review Topic 4]]+Dataset[[#This Row],[2022/23 To - Other reallocations]] -> 0 | CP37: =Dataset[[#This Row],[2023/24 To - Spending review Topic 1]]+Dataset[[#This Row],[2023/24 To - Spending review Topic 2]]+Dataset[[#This Row],[2023/24 To - Spending review Topic 3]]+Dataset[[#This Row],[2023/24 To - Spending review Topic 4]]+Dataset[[#This Row],[2023/24 To - Other reallocations]] -> 0 | CQ37: =Dataset[[#This Row],[2024/25 To - Spending review Topic 1]]+Dataset[[#This Row],[2024/25 To - Spending review Topic 2]]+Dataset[[#This Row],[2024/25 To - Spending review Topic 3]]+Dataset[[#This Row],[2024/25 To - Spending review Topic 4]]+Dataset[[#This Row],[2024/25 To - Other reallocations]] -> 0 | CR37: =Dataset[[#This Row],[2022/23 Baseline]]+Dataset[[#This Row],[2022/23 From - Total]]+Dataset[[#This Row],[2022/23 To - Total]] -> 0 | CS37: =Dataset[[#This Row],[2023/24 Baseline]]+Dataset[[#This Row],[2023/24 From - Total]]+Dataset[[#This Row],[2023/24 To - Total]] -> 0 | CT37: =Dataset[[#This Row],[2024/25 Baseline]]+Dataset[[#This Row],[2024/25 From - Total]]+Dataset[[#This Row],[2024/25 To - Total]] -> 0
A38: NAT|Non-transfer item | B38: 11|Entertainment | C38: 2022_23 | D38: MTEF2022 | E38: 11 | F38: 1 | G38: 1 | H38: 16541 | I38: 20 | J38: 11 | K38: 01 | L38: 01 | M38: 16541 | N38: 20 | O38: 11|01|01 | P38: 1 | Q38: 1 | R38: 2 | S38: 18 | T38: 18 | U38: 01|01|02|18|18 | V38: National | W38: Public Service and Administration | X38: Administration | Y38: Ministry | Z38: Non-transfer item | AA38: Current | AB38: Current payments | AC38: Goods and services | AD38: Entertainment | AE38: Entertainment | AF38: General public services | AG38: Public administration and fiscal affairs | AH38: NAT | AI38: 27 | AJ38: 7 | AK38: 2 | AL38: 110 | AM38: 110 | AN38: 110 | AO38: 0 | AP38: 26 | AQ38: 26 | AR38: 26 | AS38: 27 | AT38: 1 | AU38: =IF(Dataset[[#This Row],[Reporting level indicator]]=1,$AU$16,"Not applicable") -> Level 4 | AV38: =INDEX((t_ReportingLevelIndi[[Level 3]:[Level 4]]),MATCH(Dataset[[#This Row],[Econ4]],t_ReportingLevelIndi[Econ4],0),MATCH(Data!$AU$16,t_ReportingLevelIndi[[#Headers],[Level 3]:[Level 4]],0)) -> 1 | AW38: =Dataset[[#This Row],[2017/18_Source]]*Dataset[[#This Row],[Reporting level indicator]] -> 27 | AX38: =Dataset[[#This Row],[2018/19_Source]]*Dataset[[#This Row],[Reporting level indicator]] -> 7 | AY38: =Dataset[[#This Row],[2019/20_Source]]*Dataset[[#This Row],[Reporting level indicator]] -> 2 | AZ38: =Dataset[[#This Row],[2020/21 Main appropriation_Source]]*Dataset[[#This Row],[Reporting level indicator]] -> 110 | BA38: =Dataset[[#This Row],[2020/21 Adjusted appropriation_Source]]*Dataset[[#This Row],[Reporting level indicator]] -> 110 | BB38: =Dataset[[#This Row],[2020/21 Revised estimate_Source]]*Dataset[[#This Row],[Reporting level indicator]] -> 110 | BC38: =Dataset[[#This Row],[2020/21 Preliminary outcome_Source]]*Dataset[[#This Row],[Reporting level indicator]] -> 0 | BD38: =Dataset[[#This Row],[2021/22 Baseline_Source]]*Dataset[[#This Row],[Reporting level indicator]] -> 26 | BE38: =Dataset[[#This Row],[2022/23 Baseline_Source]]*Dataset[[#This Row],[Reporting level indicator]] -> 26 | BF38: =Dataset[[#This Row],[2023/24 Baseline_Source]]*Dataset[[#This Row],[Reporting level indicator]] -> 26 | BG38: =Dataset[[#This Row],[2024/25 Baseline_Source]]*Dataset[[#This Row],[Reporting level indicator]] -> 27 | CL38: =Dataset[[#This Row],[2022/23 From - Spending review Topic 1]]+Dataset[[#This Row],[2022/23 From - Spending review Topic 2]]+Dataset[[#This Row],[2022/23 From - Spending review Topic 3]]+Dataset[[#This Row],[2022/23 From - Spending review Topic 4]]+Dataset[[#This Row],[2022/23 From - Other reallocations]] -> 0 | CM38: =Dataset[[#This Row],[2023/24 From - Spending review Topic 1]]+Dataset[[#This Row],[2023/24 From - Spending review Topic 2]]+Dataset[[#This Row],[2023/24 From - Spending review Topic 3]]+Dataset[[#This Row],[2023/24 From - Spending review Topic 4]]+Dataset[[#This Row],[2023/24 From - Other reallocations]] -> 0 | CN38: =Dataset[[#This Row],[2024/25 From - Spending review Topic 1]]+Dataset[[#This Row],[2024/25 From - Spending review Topic 2]]+Dataset[[#This Row],[2024/25 From - Spending review Topic 3]]+Dataset[[#This Row],[2024/25 From - Spending review Topic 4]]+Dataset[[#This Row],[2024/25 From - Other reallocations]] -> 0 | CO38: =Dataset[[#This Row],[2022/23 To - Spending review Topic 1]]+Dataset[[#This Row],[2022/23 To - Spending review Topic 2]]+Dataset[[#This Row],[2022/23 To - Spending review Topic 3]]+Dataset[[#This Row],[2022/23 To - Spending review Topic 4]]+Dataset[[#This Row],[2022/23 To - Other reallocations]] -> 0 | CP38: =Dataset[[#This Row],[2023/24 To - Spending review Topic 1]]+Dataset[[#This Row],[2023/24 To - Spending review Topic 2]]+Dataset[[#This Row],[2023/24 To - Spending review Topic 3]]+Dataset[[#This Row],[2023/24 To - Spending review Topic 4]]+Dataset[[#This Row],[2023/24 To - Other reallocations]] -> 0 | CQ38: =Dataset[[#This Row],[2024/25 To - Spending review Topic 1]]+Dataset[[#This Row],[2024/25 To - Spending review Topic 2]]+Dataset[[#This Row],[2024/25 To - Spending review Topic 3]]+Dataset[[#This Row],[2024/25 To - Spending review Topic 4]]+Dataset[[#This Row],[2024/25 To - Other reallocations]] -> 0 | CR38: =Dataset[[#This Row],[2022/23 Baseline]]+Dataset[[#This Row],[2022/23 From - Total]]+Dataset[[#This Row],[2022/23 To - Total]] -> 26 | CS38: =Dataset[[#This Row],[2023/24 Baseline]]+Dataset[[#This Row],[2023/24 From - Total]]+Dataset[[#This Row],[2023/24 To - Total]] -> 26 | CT38: =Dataset[[#This Row],[2024/25 Baseline]]+Dataset[[#This Row],[2024/25 From - Total]]+Dataset[[#This Row],[2024/25 To - Total]] -> 27
A39: NAT|Non-transfer item | B39: 11|Fleet services (including government motor transport) | C39: 2022_23 | D39: MTEF2022 | E39: 11 | F39: 1 | G39: 1 | H39: 16542 | I39: 21 | J39: 11 | K39: 01 | L39: 01 | M39: 16542 | N39: 21 | O39: 11|01|01 | P39: 1 | Q39: 1 | R39: 2 | S39: 19 | T39: 19 | U39: 01|01|02|19|19 | V39: National | W39: Public Service and Administration | X39: Administration | Y39: Ministry | Z39: Non-transfer item | AA39: Current | AB39: Current payments | AC39: Goods and services | AD39: Fleet services (including government motor transport) | AE39: Fleet services (including government motor transport) | AF39: General public services | AG39: Public administration and fiscal affairs | AH39: NAT | AI39: 1525 | AJ39: 1619 | AK39: 1341 | AL39: 1344 | AM39: 1344 | AN39: 1344 | AO39: 343 | AP39: 228 | AQ39: 232 | AR39: 239 | AS39: 250 | AT39: 1 | AU39: =IF(Dataset[[#This Row],[Reporting level indicator]]=1,$AU$16,"Not applicable") -> Level 4 | AV39: =INDEX((t_ReportingLevelIndi[[Level 3]:[Level 4]]),MATCH(Dataset[[#This Row],[Econ4]],t_ReportingLevelIndi[Econ4],0),MATCH(Data!$AU$16,t_ReportingLevelIndi[[#Headers],[Level 3]:[Level 4]],0)) -> 1 | AW39: =Dataset[[#This Row],[2017/18_Source]]*Dataset[[#This Row],[Reporting level indicator]] -> 1525 | AX39: =Dataset[[#This Row],[2018/19_Source]]*Dataset[[#This Row],[Reporting level indicator]] -> 1619 | AY39: =Dataset[[#This Row],[2019/20_Source]]*Dataset[[#This Row],[Reporting level indicator]] -> 1341 | AZ39: =Dataset[[#This Row],[2020/21 Main appropriation_Source]]*Dataset[[#This Row],[Reporting level indicator]] -> 1344 | BA39: =Dataset[[#This Row],[2020/21 Adjusted appropriation_Source]]*Dataset[[#This Row],[Reporting level indicator]] -> 1344 | BB39: =Dataset[[#This Row],[2020/21 Revised estimate_Source]]*Dataset[[#This Row],[Reporting level indicator]] -> 1344 | BC39: =Dataset[[#This Row],[2020/21 Preliminary outcome_Source]]*Dataset[[#This Row],[Reporting level indicator]] -> 343 | BD39: =Dataset[[#This Row],[2021/22 Baseline_Source]]*Dataset[[#This Row],[Reporting level indicator]] -> 228 | BE39: =Dataset[[#This Row],[2022/23 Baseline_Source]]*Dataset[[#This Row],[Reporting level indicator]] -> 232 | BF39: =Dataset[[#This Row],[2023/24 Baseline_Source]]*Dataset[[#This Row],[Reporting level indicator]] -> 239 | BG39: =Dataset[[#This Row],[2024/25 Baseline_Source]]*Dataset[[#This Row],[Reporting level indicator]] -> 250 | CL39: =Dataset[[#This Row],[2022/23 From - Spending review Topic 1]]+Dataset[[#This Row],[2022/23 From - Spending review Topic 2]]+Dataset[[#This Row],[2022/23 From - Spending review Topic 3]]+Dataset[[#This Row],[2022/23 From - Spending review Topic 4]]+Dataset[[#This Row],[2022/23 From - Other reallocations]] -> 0 | CM39: =Dataset[[#This Row],[2023/24 From - Spending review Topic 1]]+Dataset[[#This Row],[2023/24 From - Spending review Topic 2]]+Dataset[[#This Row],[2023/24 From - Spending review Topic 3]]+Dataset[[#This Row],[2023/24 From - Spending review Topic 4]]+Dataset[[#This Row],[2023/24 From - Other reallocations]] -> 0 | CN39: =Dataset[[#This Row],[2024/25 From - Spending review Topic 1]]+Dataset[[#This Row],[2024/25 From - Spending review Topic 2]]+Dataset[[#This Row],[2024/25 From - Spending review Topic 3]]+Dataset[[#This Row],[2024/25 From - Spending review Topic 4]]+Dataset[[#This Row],[2024/25 From - Other reallocations]] -> 0 | CO39: =Dataset[[#This Row],[2022/23 To - Spending review Topic 1]]+Dataset[[#This Row],[2022/23 To - Spending review Topic 2]]+Dataset[[#This Row],[2022/23 To - Spending review Topic 3]]+Dataset[[#This Row],[2022/23 To - Spending review Topic 4]]+Dataset[[#This Row],[2022/23 To - Other reallocations]] -> 0 | CP39: =Dataset[[#This Row],[2023/24 To - Spending review Topic 1]]+Dataset[[#This Row],[2023/24 To - Spending review Topic 2]]+Dataset[[#This Row],[2023/24 To - Spending review Topic 3]]+Dataset[[#This Row],[2023/24 To - Spending review Topic 4]]+Dataset[[#This Row],[2023/24 To - Other reallocations]] -> 0 | CQ39: =Dataset[[#This Row],[2024/25 To - Spending review Topic 1]]+Dataset[[#This Row],[2024/25 To - Spending review Topic 2]]+Dataset[[#This Row],[2024/25 To - Spending review Topic 3]]+Dataset[[#This Row],[2024/25 To - Spending review Topic 4]]+Dataset[[#This Row],[2024/25 To - Other reallocations]] -> 0 | CR39: =Dataset[[#This Row],[2022/23 Baseline]]+Dataset[[#This Row],[2022/23 From - Total]]+Dataset[[#This Row],[2022/23 To - Total]] -> 232 | CS39: =Dataset[[#This Row],[2023/24 Baseline]]+Dataset[[#This Row],[2023/24 From - Total]]+Dataset[[#This Row],[2023/24 To - Total]] -> 239 | CT39: =Dataset[[#This Row],[2024/25 Baseline]]+Dataset[[#This Row],[2024/25 From - Total]]+Dataset[[#This Row],[2024/25 To - Total]] -> 250
A40: NAT|Non-transfer item | B40: 11|Housing | C40: 2022_23 | D40: MTEF2022 | E40: 11 | F40: 1 | G40: 1 | H40: 16543 | I40: 22 | J40: 11 | K40: 01 | L40: 01 | M40: 16543 | N40: 22 | O40: 11|01|01 | P40: 1 | Q40: 1 | R40: 2 | S40: 20 | T40: 20 | U40: 01|01|02|20|20 | V40: National | W40: Public Service and Administration | X40: Administration | Y40: Ministry | Z40: Non-transfer item | AA40: Current | AB40: Current payments | AC40: Goods and services | AD40: Housing | AE40: Housing | AF40: General public services | AG40: Public administration and fiscal affairs | AH40: NAT | AI40: 0 | AJ40: 0 | AK40: 0 | AL40: 0 | AM40: 0 | AN40: 0 | AO40: 0 | AP40: 0 | AQ40: 0 | AR40: 0 | AS40: 0 | AT40: 0 | AU40: =IF(Dataset[[#This Row],[Reporting level indicator]]=1,$AU$16,"Not applicable") -> Level 4 | AV40: =INDEX((t_ReportingLevelIndi[[Level 3]:[Level 4]]),MATCH(Dataset[[#This Row],[Econ4]],t_ReportingLevelIndi[Econ4],0),MATCH(Data!$AU$16,t_ReportingLevelIndi[[#Headers],[Level 3]:[Level 4]],0)) -> 1 | AW40: =Dataset[[#This Row],[2017/18_Source]]*Dataset[[#This Row],[Reporting level indicator]] -> 0 | AX40: =Dataset[[#This Row],[2018/19_Source]]*Dataset[[#This Row],[Reporting level indicator]] -> 0 | AY40: =Dataset[[#This Row],[2019/20_Source]]*Dataset[[#This Row],[Reporting level indicator]] -> 0 | AZ40: =Dataset[[#This Row],[2020/21 Main appropriation_Source]]*Dataset[[#This Row],[Reporting level indicator]] -> 0 | BA40: =Dataset[[#This Row],[2020/21 Adjusted appropriation_Source]]*Dataset[[#This Row],[Reporting level indicator]] -> 0 | BB40: =Dataset[[#This Row],[2020/21 Revised estimate_Source]]*Dataset[[#This Row],[Reporting level indicator]] -> 0 | BC40: =Dataset[[#This Row],[2020/21 Preliminary outcome_Source]]*Dataset[[#This Row],[Reporting level indicator]] -> 0 | BD40: =Dataset[[#This Row],[2021/22 Baseline_Source]]*Dataset[[#This Row],[Reporting level indicator]] -> 0 | BE40: =Dataset[[#This Row],[2022/23 Baseline_Source]]*Dataset[[#This Row],[Reporting level indicator]] -> 0 | BF40: =Dataset[[#This Row],[2023/24 Baseline_Source]]*Dataset[[#This Row],[Reporting level indicator]] -> 0 | BG40: =Dataset[[#This Row],[2024/25 Baseline_Source]]*Dataset[[#This Row],[Reporting level indicator]] -> 0 | CL40: =Dataset[[#This Row],[2022/23 From - Spending review Topic 1]]+Dataset[[#This Row],[2022/23 From - Spending review Topic 2]]+Dataset[[#This Row],[2022/23 From - Spending review Topic 3]]+Dataset[[#This Row],[2022/23 From - Spending review Topic 4]]+Dataset[[#This Row],[2022/23 From - Other reallocations]] -> 0 | CM40: =Dataset[[#This Row],[2023/24 From - Spending review Topic 1]]+Dataset[[#This Row],[2023/24 From - Spending review Topic 2]]+Dataset[[#This Row],[2023/24 From - Spending review Topic 3]]+Dataset[[#This Row],[2023/24 From - Spending review Topic 4]]+Dataset[[#This Row],[2023/24 From - Other reallocations]] -> 0 | CN40: =Dataset[[#This Row],[2024/25 From - Spending review Topic 1]]+Dataset[[#This Row],[2024/25 From - Spending review Topic 2]]+Dataset[[#This Row],[2024/25 From - Spending review Topic 3]]+Dataset[[#This Row],[2024/25 From - Spending review Topic 4]]+Dataset[[#This Row],[2024/25 From - Other reallocations]] -> 0 | CO40: =Dataset[[#This Row],[2022/23 To - Spending review Topic 1]]+Dataset[[#This Row],[2022/23 To - Spending review Topic 2]]+Dataset[[#This Row],[2022/23 To - Spending review Topic 3]]+Dataset[[#This Row],[2022/23 To - Spending review Topic 4]]+Dataset[[#This Row],[2022/23 To - Other reallocations]] -> 0 | CP40: =Dataset[[#This Row],[2023/24 To - Spending review Topic 1]]+Dataset[[#This Row],[2023/24 To - Spending review Topic 2]]+Dataset[[#This Row],[2023/24 To - Spending review Topic 3]]+Dataset[[#This Row],[2023/24 To - Spending review Topic 4]]+Dataset[[#This Row],[2023/24 To - Other reallocations]] -> 0 | CQ40: =Dataset[[#This Row],[2024/25 To - Spending review Topic 1]]+Dataset[[#This Row],[2024/25 To - Spending review Topic 2]]+Dataset[[#This Row],[2024/25 To - Spending review Topic 3]]+Dataset[[#This Row],[2024/25 To - Spending review Topic 4]]+Dataset[[#This Row],[2024/25 To - Other reallocations]] -> 0 | CR40: =Dataset[[#This Row],[2022/23 Baseline]]+Dataset[[#This Row],[2022/23 From - Total]]+Dataset[[#This Row],[2022/23 To - Total]] -> 0 | CS40: =Dataset[[#This Row],[2023/24 Baseline]]+Dataset[[#This Row],[2023/24 From - Total]]+Dataset[[#This Row],[2023/24 To - Total]] -> 0 | CT40: =Dataset[[#This Row],[2024/25 Baseline]]+Dataset[[#This Row],[2024/25 From - Total]]+Dataset[[#This Row],[2024/25 To - Total]] -> 0
A41: NAT|Non-transfer item | B41: 11|Inventory: Clothing material and accessories | C41: 2022_23 | D41: MTEF2022 | E41: 11 | F41: 1 | G41: 1 | H41: 16544 | I41: 23 | J41: 11 | K41: 01 | L41: 01 | M41: 16544 | N41: 23 | O41: 11|01|01 | P41: 1 | Q41: 1 | R41: 2 | S41: 21 | T41: 21 | U41: 01|01|02|21|21 | V41: National | W41: Public Service and Administration | X41: Administration | Y41: Ministry | Z41: Non-transfer item | AA41: Current | AB41: Current payments | AC41: Goods and services | AD41: Inventory: Clothing material and accessories | AE41: Inventory: Clothing material and accessories | AF41: General public services | AG41: Public administration and fiscal affairs | AH41: NAT | AI41: 0 | AJ41: 0 | AK41: 0 | AL41: 0 | AM41: 0 | AN41: 0 | AO41: 0 | AP41: 0 | AQ41: 0 | AR41: 0 | AS41: 0 | AT41: 0 | AU41: =IF(Dataset[[#This Row],[Reporting level indicator]]=1,$AU$16,"Not applicable") -> Level 4 | AV41: =INDEX((t_ReportingLevelIndi[[Level 3]:[Level 4]]),MATCH(Dataset[[#This Row],[Econ4]],t_ReportingLevelIndi[Econ4],0),MATCH(Data!$AU$16,t_ReportingLevelIndi[[#Headers],[Level 3]:[Level 4]],0)) -> 1 | AW41: =Dataset[[#This Row],[2017/18_Source]]*Dataset[[#This Row],[Reporting level indicator]] -> 0 | AX41: =Dataset[[#This Row],[2018/19_Source]]*Dataset[[#This Row],[Reporting level indicator]] -> 0 | AY41: =Dataset[[#This Row],[2019/20_Source]]*Dataset[[#This Row],[Reporting level indicator]] -> 0 | AZ41: =Dataset[[#This Row],[2020/21 Main appropriation_Source]]*Dataset[[#This Row],[Reporting level indicator]] -> 0 | BA41: =Dataset[[#This Row],[2020/21 Adjusted appropriation_Source]]*Dataset[[#This Row],[Reporting level indicator]] -> 0 | BB41: =Dataset[[#This Row],[2020/21 Revised estimate_Source]]*Dataset[[#This Row],[Reporting level indicator]] -> 0 | BC41: =Dataset[[#This Row],[2020/21 Preliminary outcome_Source]]*Dataset[[#This Row],[Reporting level indicator]] -> 0 | BD41: =Dataset[[#This Row],[2021/22 Baseline_Source]]*Dataset[[#This Row],[Reporting level indicator]] -> 0 | BE41: =Dataset[[#This Row],[2022/23 Baseline_Source]]*Dataset[[#This Row],[Reporting level indicator]] -> 0 | BF41: =Dataset[[#This Row],[2023/24 Baseline_Source]]*Dataset[[#This Row],[Reporting level indicator]] -> 0 | BG41: =Dataset[[#This Row],[2024/25 Baseline_Source]]*Dataset[[#This Row],[Reporting level indicator]] -> 0 | CL41: =Dataset[[#This Row],[2022/23 From - Spending review Topic 1]]+Dataset[[#This Row],[2022/23 From - Spending review Topic 2]]+Dataset[[#This Row],[2022/23 From - Spending review Topic 3]]+Dataset[[#This Row],[2022/23 From - Spending review Topic 4]]+Dataset[[#This Row],[2022/23 From - Other reallocations]] -> 0 | CM41: =Dataset[[#This Row],[2023/24 From - Spending review Topic 1]]+Dataset[[#This Row],[2023/24 From - Spending review Topic 2]]+Dataset[[#This Row],[2023/24 From - Spending review Topic 3]]+Dataset[[#This Row],[2023/24 From - Spending review Topic 4]]+Dataset[[#This Row],[2023/24 From - Other reallocations]] -> 0 | CN41: =Dataset[[#This Row],[2024/25 From - Spending review Topic 1]]+Dataset[[#This Row],[2024/25 From - Spending review Topic 2]]+Dataset[[#This Row],[2024/25 From - Spending review Topic 3]]+Dataset[[#This Row],[2024/25 From - Spending review Topic 4]]+Dataset[[#This Row],[2024/25 From - Other reallocations]] -> 0 | CO41: =Dataset[[#This Row],[2022/23 To - Spending review Topic 1]]+Dataset[[#This Row],[2022/23 To - Spending review Topic 2]]+Dataset[[#This Row],[2022/23 To - Spending review Topic 3]]+Dataset[[#This Row],[2022/23 To - Spending review Topic 4]]+Dataset[[#This Row],[2022/23 To - Other reallocations]] -> 0 | CP41: =Dataset[[#This Row],[2023/24 To - Spending review Topic 1]]+Dataset[[#This Row],[2023/24 To - Spending review Topic 2]]+Dataset[[#This Row],[2023/24 To - Spending review Topic 3]]+Dataset[[#This Row],[2023/24 To - Spending review Topic 4]]+Dataset[[#This Row],[2023/24 To - Other reallocations]] -> 0 | CQ41: =Dataset[[#This Row],[2024/25 To - Spending review Topic 1]]+Dataset[[#This Row],[2024/25 To - Spending review Topic 2]]+Dataset[[#This Row],[2024/25 To - Spending review Topic 3]]+Dataset[[#This Row],[2024/25 To - Spending review Topic 4]]+Dataset[[#This Row],[2024/25 To - Other reallocations]] -> 0 | CR41: =Dataset[[#This Row],[2022/23 Baseline]]+Dataset[[#This Row],[2022/23 From - Total]]+Dataset[[#This Row],[2022/23 To - Total]] -> 0 | CS41: =Dataset[[#This Row],[2023/24 Baseline]]+Dataset[[#This Row],[2023/24 From - Total]]+Dataset[[#This Row],[2023/24 To - Total]] -> 0 | CT41: =Dataset[[#This Row],[2024/25 Baseline]]+Dataset[[#This Row],[2024/25 From - Total]]+Dataset[[#This Row],[2024/25 To - Total]] -> 0
A42: NAT|Non-transfer item | B42: 11|Inventory: Farming supplies | C42: 2022_23 | D42: MTEF2022 | E42: 11 | F42: 1 | G42: 1 | H42: 16545 | I42: 24 | J42: 11 | K42: 01 | L42: 01 | M42: 16545 | N42: 24 | O42: 11|01|01 | P42: 1 | Q42: 1 | R42: 2 | S42: 22 | T42: 22 | U42: 01|01|02|22|22 | V42: National | W42: Public Service and Administration | X42: Administration | Y42: Ministry | Z42: Non-transfer item | AA42: Current | AB42: Current payments | AC42: Goods and services | AD42: Inventory: Farming supplies | AE42: Inventory: Farming supplies | AF42: General public services | AG42: Public administration and fiscal affairs | AH42: NAT | AI42: 0 | AJ42: 0 | AK42: 0 | AL42: 0 | AM42: 0 | AN42: 0 | AO42: 0 | AP42: 0 | AQ42: 0 | AR42: 0 | AS42: 0 | AT42: 0 | AU42: =IF(Dataset[[#This Row],[Reporting level indicator]]=1,$AU$16,"Not applicable") -> Level 4 | AV42: =INDEX((t_ReportingLevelIndi[[Level 3]:[Level 4]]),MATCH(Dataset[[#This Row],[Econ4]],t_ReportingLevelIndi[Econ4],0),MATCH(Data!$AU$16,t_ReportingLevelIndi[[#Headers],[Level 3]:[Level 4]],0)) -> 1 | AW42: =Dataset[[#This Row],[2017/18_Source]]*Dataset[[#This Row],[Reporting level indicator]] -> 0 | AX42: =Dataset[[#This Row],[2018/19_Source]]*Dataset[[#This Row],[Reporting level indicator]] -> 0 | AY42: =Dataset[[#This Row],[2019/20_Source]]*Dataset[[#This Row],[Reporting level indicator]] -> 0 | AZ42: =Dataset[[#This Row],[2020/21 Main appropriation_Source]]*Dataset[[#This Row],[Reporting level indicator]] -> 0 | BA42: =Dataset[[#This Row],[2020/21 Adjusted appropriation_Source]]*Dataset[[#This Row],[Reporting level indicator]] -> 0 | BB42: =Dataset[[#This Row],[2020/21 Revised estimate_Source]]*Dataset[[#This Row],[Reporting level indicator]] -> 0 | BC42: =Dataset[[#This Row],[2020/21 Preliminary outcome_Source]]*Dataset[[#This Row],[Reporting level indicator]] -> 0 | BD42: =Dataset[[#This Row],[2021/22 Baseline_Source]]*Dataset[[#This Row],[Reporting level indicator]] -> 0 | BE42: =Dataset[[#This Row],[2022/23 Baseline_Source]]*Dataset[[#This Row],[Reporting level indicator]] -> 0 | BF42: =Dataset[[#This Row],[2023/24 Baseline_Source]]*Dataset[[#This Row],[Reporting level indicator]] -> 0 | BG42: =Dataset[[#This Row],[2024/25 Baseline_Source]]*Dataset[[#This Row],[Reporting level indicator]] -> 0 | CL42: =Dataset[[#This Row],[2022/23 From - Spending review Topic 1]]+Dataset[[#This Row],[2022/23 From - Spending review Topic 2]]+Dataset[[#This Row],[2022/23 From - Spending review Topic 3]]+Dataset[[#This Row],[2022/23 From - Spending review Topic 4]]+Dataset[[#This Row],[2022/23 From - Other reallocations]] -> 0 | CM42: =Dataset[[#This Row],[2023/24 From - Spending review Topic 1]]+Dataset[[#This Row],[2023/24 From - Spending review Topic 2]]+Dataset[[#This Row],[2023/24 From - Spending review Topic 3]]+Dataset[[#This Row],[2023/24 From - Spending review Topic 4]]+Dataset[[#This Row],[2023/24 From - Other reallocations]] -> 0 | CN42: =Dataset[[#This Row],[2024/25 From - Spending review Topic 1]]+Dataset[[#This Row],[2024/25 From - Spending review Topic 2]]+Dataset[[#This Row],[2024/25 From - Spending review Topic 3]]+Dataset[[#This Row],[2024/25 From - Spending review Topic 4]]+Dataset[[#This Row],[2024/25 From - Other reallocations]] -> 0 | CO42: =Dataset[[#This Row],[2022/23 To - Spending review Topic 1]]+Dataset[[#This Row],[2022/23 To - Spending review Topic 2]]+Dataset[[#This Row],[2022/23 To - Spending review Topic 3]]+Dataset[[#This Row],[2022/23 To - Spending review Topic 4]]+Dataset[[#This Row],[2022/23 To - Other reallocations]] -> 0 | CP42: =Dataset[[#This Row],[2023/24 To - Spending review Topic 1]]+Dataset[[#This Row],[2023/24 To - Spending review Topic 2]]+Dataset[[#This Row],[2023/24 To - Spending review Topic 3]]+Dataset[[#This Row],[2023/24 To - Spending review Topic 4]]+Dataset[[#This Row],[2023/24 To - Other reallocations]] -> 0 | CQ42: =Dataset[[#This Row],[2024/25 To - Spending review Topic 1]]+Dataset[[#This Row],[2024/25 To - Spending review Topic 2]]+Dataset[[#This Row],[2024/25 To - Spending review Topic 3]]+Dataset[[#This Row],[2024/25 To - Spending review Topic 4]]+Dataset[[#This Row],[2024/25 To - Other reallocations]] -> 0 | CR42: =Dataset[[#This Row],[2022/23 Baseline]]+Dataset[[#This Row],[2022/23 From - Total]]+Dataset[[#This Row],[2022/23 To - Total]] -> 0 | CS42: =Dataset[[#This Row],[2023/24 Baseline]]+Dataset[[#This Row],[2023/24 From - Total]]+Dataset[[#This Row],[2023/24 To - Total]] -> 0 | CT42: =Dataset[[#This Row],[2024/25 Baseline]]+Dataset[[#This Row],[2024/25 From - Total]]+Dataset[[#This Row],[2024/25 To - Total]] -> 0
A43: NAT|Non-transfer item | B43: 11|Inventory: Food and food supplies | C43: 2022_23 | D43: MTEF2022 | E43: 11 | F43: 1 | G43: 1 | H43: 16546 | I43: 25 | J43: 11 | K43: 01 | L43: 01 | M43: 16546 | N43: 25 | O43: 11|01|01 | P43: 1 | Q43: 1 | R43: 2 | S43: 23 | T43: 23 | U43: 01|01|02|23|23 | V43: National | W43: Public Service and Administration | X43: Administration | Y43: Ministry | Z43: Non-transfer item | AA43: Current | AB43: Current payments | AC43: Goods and services | AD43: Inventory: Food and food supplies | AE43: Inventory: Food and food supplies | AF43: General public services | AG43: Public administration and fiscal affairs | AH43: NAT | AI43: 0 | AJ43: 0 | AK43: 0 | AL43: 0 | AM43: 0 | AN43: 0 | AO43: 0 | AP43: 0 | AQ43: 0 | AR43: 0 | AS43: 0 | AT43: 0 | AU43: =IF(Dataset[[#This Row],[Reporting level indicator]]=1,$AU$16,"Not applicable") -> Level 4 | AV43: =INDEX((t_ReportingLevelIndi[[Level 3]:[Level 4]]),MATCH(Dataset[[#This Row],[Econ4]],t_ReportingLevelIndi[Econ4],0),MATCH(Data!$AU$16,t_ReportingLevelIndi[[#Headers],[Level 3]:[Level 4]],0)) -> 1 | AW43: =Dataset[[#This Row],[2017/18_Source]]*Dataset[[#This Row],[Reporting level indicator]] -> 0 | AX43: =Dataset[[#This Row],[2018/19_Source]]*Dataset[[#This Row],[Reporting level indicator]] -> 0 | AY43: =Dataset[[#This Row],[2019/20_Source]]*Dataset[[#This Row],[Reporting level indicator]] -> 0 | AZ43: =Dataset[[#This Row],[2020/21 Main appropriation_Source]]*Dataset[[#This Row],[Reporting level indicator]] -> 0 | BA43: =Dataset[[#This Row],[2020/21 Adjusted appropriation_Source]]*Dataset[[#This Row],[Reporting level indicator]] -> 0 | BB43: =Dataset[[#This Row],[2020/21 Revised estimate_Source]]*Dataset[[#This Row],[Reporting level indicator]] -> 0 | BC43: =Dataset[[#This Row],[2020/21 Preliminary outcome_Source]]*Dataset[[#This Row],[Reporting level indicator]] -> 0 | BD43: =Dataset[[#This Row],[2021/22 Baseline_Source]]*Dataset[[#This Row],[Reporting level indicator]] -> 0 | BE43: =Dataset[[#This Row],[2022/23 Baseline_Source]]*Dataset[[#This Row],[Reporting level indicator]] -> 0 | BF43: =Dataset[[#This Row],[2023/24 Baseline_Source]]*Dataset[[#This Row],[Reporting level indicator]] -> 0 | BG43: =Dataset[[#This Row],[2024/25 Baseline_Source]]*Dataset[[#This Row],[Reporting level indicator]] -> 0 | CL43: =Dataset[[#This Row],[2022/23 From - Spending review Topic 1]]+Dataset[[#This Row],[2022/23 From - Spending review Topic 2]]+Dataset[[#This Row],[2022/23 From - Spending review Topic 3]]+Dataset[[#This Row],[2022/23 From - Spending review Topic 4]]+Dataset[[#This Row],[2022/23 From - Other reallocations]] -> 0 | CM43: =Dataset[[#This Row],[2023/24 From - Spending review Topic 1]]+Dataset[[#This Row],[2023/24 From - Spending review Topic 2]]+Dataset[[#This Row],[2023/24 From - Spending review Topic 3]]+Dataset[[#This Row],[2023/24 From - Spending review Topic 4]]+Dataset[[#This Row],[2023/24 From - Other reallocations]] -> 0 | CN43: =Dataset[[#This Row],[2024/25 From - Spending review Topic 1]]+Dataset[[#This Row],[2024/25 From - Spending review Topic 2]]+Dataset[[#This Row],[2024/25 From - Spending review Topic 3]]+Dataset[[#This Row],[2024/25 From - Spending review Topic 4]]+Dataset[[#This Row],[2024/25 From - Other reallocations]] -> 0 | CO43: =Dataset[[#This Row],[2022/23 To - Spending review Topic 1]]+Dataset[[#This Row],[2022/23 To - Spending review Topic 2]]+Dataset[[#This Row],[2022/23 To - Spending review Topic 3]]+Dataset[[#This Row],[2022/23 To - Spending review Topic 4]]+Dataset[[#This Row],[2022/23 To - Other reallocations]] -> 0 | CP43: =Dataset[[#This Row],[2023/24 To - Spending review Topic 1]]+Dataset[[#This Row],[2023/24 To - Spending review Topic 2]]+Dataset[[#This Row],[2023/24 To - Spending review Topic 3]]+Dataset[[#This Row],[2023/24 To - Spending review Topic 4]]+Dataset[[#This Row],[2023/24 To - Other reallocations]] -> 0 | CQ43: =Dataset[[#This Row],[2024/25 To - Spending review Topic 1]]+Dataset[[#This Row],[2024/25 To - Spending review Topic 2]]+Dataset[[#This Row],[2024/25 To - Spending review Topic 3]]+Dataset[[#This Row],[2024/25 To - Spending review Topic 4]]+Dataset[[#This Row],[2024/25 To - Other reallocations]] -> 0 | CR43: =Dataset[[#This Row],[2022/23 Baseline]]+Dataset[[#This Row],[2022/23 From - Total]]+Dataset[[#This Row],[2022/23 To - Total]] -> 0 | CS43: =Dataset[[#This Row],[2023/24 Baseline]]+Dataset[[#This Row],[2023/24 From - Total]]+Dataset[[#This Row],[2023/24 To - Total]] -> 0 | CT43: =Dataset[[#This Row],[2024/25 Baseline]]+Dataset[[#This Row],[2024/25 From - Total]]+Dataset[[#This Row],[2024/25 To - Total]] -> 0
A44: NAT|Non-transfer item | B44: 11|Inventory: Fuel, oil and gas | C44: 2022_23 | D44: MTEF2022 | E44: 11 | F44: 1 | G44: 1 | H44: 16547 | I44: 26 | J44: 11 | K44: 01 | L44: 01 | M44: 16547 | N44: 26 | O44: 11|01|01 | P44: 1 | Q44: 1 | R44: 2 | S44: 24 | T44: 24 | U44: 01|01|02|24|24 | V44: National | W44: Public Service and Administration | X44: Administration | Y44: Ministry | Z44: Non-transfer item | AA44: Current | AB44: Current payments | AC44: Goods and services | AD44: Inventory: Fuel, oil and gas | AE44: Inventory: Fuel, oil and gas | AF44: General public services | AG44: Public administration and fiscal affairs | AH44: NAT | AI44: 0 | AJ44: 0 | AK44: 0 | AL44: 0 | AM44: 0 | AN44: 0 | AO44: 0 | AP44: 0 | AQ44: 0 | AR44: 0 | AS44: 0 | AT44: 0 | AU44: =IF(Dataset[[#This Row],[Reporting level indicator]]=1,$AU$16,"Not applicable") -> Level 4 | AV44: =INDEX((t_ReportingLevelIndi[[Level 3]:[Level 4]]),MATCH(Dataset[[#This Row],[Econ4]],t_ReportingLevelIndi[Econ4],0),MATCH(Data!$AU$16,t_ReportingLevelIndi[[#Headers],[Level 3]:[Level 4]],0)) -> 1 | AW44: =Dataset[[#This Row],[2017/18_Source]]*Dataset[[#This Row],[Reporting level indicator]] -> 0 | AX44: =Dataset[[#This Row],[2018/19_Source]]*Dataset[[#This Row],[Reporting level indicator]] -> 0 | AY44: =Dataset[[#This Row],[2019/20_Source]]*Dataset[[#This Row],[Reporting level indicator]] -> 0 | AZ44: =Dataset[[#This Row],[2020/21 Main appropriation_Source]]*Dataset[[#This Row],[Reporting level indicator]] -> 0 | BA44: =Dataset[[#This Row],[2020/21 Adjusted appropriation_Source]]*Dataset[[#This Row],[Reporting level indicator]] -> 0 | BB44: =Dataset[[#This Row],[2020/21 Revised estimate_Source]]*Dataset[[#This Row],[Reporting level indicator]] -> 0 | BC44: =Dataset[[#This Row],[2020/21 Preliminary outcome_Source]]*Dataset[[#This Row],[Reporting level indicator]] -> 0 | BD44: =Dataset[[#This Row],[2021/22 Baseline_Source]]*Dataset[[#This Row],[Reporting level indicator]] -> 0 | BE44: =Dataset[[#This Row],[2022/23 Baseline_Source]]*Dataset[[#This Row],[Reporting level indicator]] -> 0 | BF44: =Dataset[[#This Row],[2023/24 Baseline_Source]]*Dataset[[#This Row],[Reporting level indicator]] -> 0 | BG44: =Dataset[[#This Row],[2024/25 Baseline_Source]]*Dataset[[#This Row],[Reporting level indicator]] -> 0 | CL44: =Dataset[[#This Row],[2022/23 From - Spending review Topic 1]]+Dataset[[#This Row],[2022/23 From - Spending review Topic 2]]+Dataset[[#This Row],[2022/23 From - Spending review Topic 3]]+Dataset[[#This Row],[2022/23 From - Spending review Topic 4]]+Dataset[[#This Row],[2022/23 From - Other reallocations]] -> 0 | CM44: =Dataset[[#This Row],[2023/24 From - Spending review Topic 1]]+Dataset[[#This Row],[2023/24 From - Spending review Topic 2]]+Dataset[[#This Row],[2023/24 From - Spending review Topic 3]]+Dataset[[#This Row],[2023/24 From - Spending review Topic 4]]+Dataset[[#This Row],[2023/24 From - Other reallocations]] -> 0 | CN44: =Dataset[[#This Row],[2024/25 From - Spending review Topic 1]]+Dataset[[#This Row],[2024/25 From - Spending review Topic 2]]+Dataset[[#This Row],[2024/25 From - Spending review Topic 3]]+Dataset[[#This Row],[2024/25 From - Spending review Topic 4]]+Dataset[[#This Row],[2024/25 From - Other reallocations]] -> 0 | CO44: =Dataset[[#This Row],[2022/23 To - Spending review Topic 1]]+Dataset[[#This Row],[2022/23 To - Spending review Topic 2]]+Dataset[[#This Row],[2022/23 To - Spending review Topic 3]]+Dataset[[#This Row],[2022/23 To - Spending review Topic 4]]+Dataset[[#This Row],[2022/23 To - Other reallocations]] -> 0 | CP44: =Dataset[[#This Row],[2023/24 To - Spending review Topic 1]]+Dataset[[#This Row],[2023/24 To - Spending review Topic 2]]+Dataset[[#This Row],[2023/24 To - Spending review Topic 3]]+Dataset[[#This Row],[2023/24 To - Spending review Topic 4]]+Dataset[[#This Row],[2023/24 To - Other reallocations]] -> 0 | CQ44: =Dataset[[#This Row],[2024/25 To - Spending review Topic 1]]+Dataset[[#This Row],[2024/25 To - Spending review Topic 2]]+Dataset[[#This Row],[2024/25 To - Spending review Topic 3]]+Dataset[[#This Row],[2024/25 To - Spending review Topic 4]]+Dataset[[#This Row],[2024/25 To - Other reallocations]] -> 0 | CR44: =Dataset[[#This Row],[2022/23 Baseline]]+Dataset[[#This Row],[2022/23 From - Total]]+Dataset[[#This Row],[2022/23 To - Total]] -> 0 | CS44: =Dataset[[#This Row],[2023/24 Baseline]]+Dataset[[#This Row],[2023/24 From - Total]]+Dataset[[#This Row],[2023/24 To - Total]] -> 0 | CT44: =Dataset[[#This Row],[2024/25 Baseline]]+Dataset[[#This Row],[2024/25 From - Total]]+Dataset[[#This Row],[2024/25 To - Total]] -> 0
A45: NAT|Non-transfer item | B45: 11|Inventory: Learner and teacher support material | C45: 2022_23 | D45: MTEF2022 | E45: 11 | F45: 1 | G45: 1 | H45: 16548 | I45: 27 | J45: 11 | K45: 01 | L45: 01 | M45: 16548 | N45: 27 | O45: 11|01|01 | P45: 1 | Q45: 1 | R45: 2 | S45: 25 | T45: 25 | U45: 01|01|02|25|25 | V45: National | W45: Public Service and Administration | X45: Administration | Y45: Ministry | Z45: Non-transfer item | AA45: Current | AB45: Current payments | AC45: Goods and services | AD45: Inventory: Learner and teacher support material | AE45: Inventory: Learner and teacher support material | AF45: General public services | AG45: Public administration and fiscal affairs | AH45: NAT | AI45: 0 | AJ45: 0 | AK45: 0 | AL45: 0 | AM45: 0 | AN45: 0 | AO45: 0 | AP45: 0 | AQ45: 0 | AR45: 0 | AS45: 0 | AT45: 0 | AU45: =IF(Dataset[[#This Row],[Reporting level indicator]]=1,$AU$16,"Not applicable") -> Level 4 | AV45: =INDEX((t_ReportingLevelIndi[[Level 3]:[Level 4]]),MATCH(Dataset[[#This Row],[Econ4]],t_ReportingLevelIndi[Econ4],0),MATCH(Data!$AU$16,t_ReportingLevelIndi[[#Headers],[Level 3]:[Level 4]],0)) -> 1 | AW45: =Dataset[[#This Row],[2017/18_Source]]*Dataset[[#This Row],[Reporting level indicator]] -> 0 | AX45: =Dataset[[#This Row],[2018/19_Source]]*Dataset[[#This Row],[Reporting level indicator]] -> 0 | AY45: =Dataset[[#This Row],[2019/20_Source]]*Dataset[[#This Row],[Reporting level indicator]] -> 0 | AZ45: =Dataset[[#This Row],[2020/21 Main appropriation_Source]]*Dataset[[#This Row],[Reporting level indicator]] -> 0 | BA45: =Dataset[[#This Row],[2020/21 Adjusted appropriation_Source]]*Dataset[[#This Row],[Reporting level indicator]] -> 0 | BB45: =Dataset[[#This Row],[2020/21 Revised estimate_Source]]*Dataset[[#This Row],[Reporting level indicator]] -> 0 | BC45: =Dataset[[#This Row],[2020/21 Preliminary outcome_Source]]*Dataset[[#This Row],[Reporting level indicator]] -> 0 | BD45: =Dataset[[#This Row],[2021/22 Baseline_Source]]*Dataset[[#This Row],[Reporting level indicator]] -> 0 | BE45: =Dataset[[#This Row],[2022/23 Baseline_Source]]*Dataset[[#This Row],[Reporting level indicator]] -> 0 | BF45: =Dataset[[#This Row],[2023/24 Baseline_Source]]*Dataset[[#This Row],[Reporting level indicator]] -> 0 | BG45: =Dataset[[#This Row],[2024/25 Baseline_Source]]*Dataset[[#This Row],[Reporting level indicator]] -> 0 | CL45: =Dataset[[#This Row],[2022/23 From - Spending review Topic 1]]+Dataset[[#This Row],[2022/23 From - Spending review Topic 2]]+Dataset[[#This Row],[2022/23 From - Spending review Topic 3]]+Dataset[[#This Row],[2022/23 From - Spending review Topic 4]]+Dataset[[#This Row],[2022/23 From - Other reallocations]] -> 0 | CM45: =Dataset[[#This Row],[2023/24 From - Spending review Topic 1]]+Dataset[[#This Row],[2023/24 From - Spending review Topic 2]]+Dataset[[#This Row],[2023/24 From - Spending review Topic 3]]+Dataset[[#This Row],[2023/24 From - Spending review Topic 4]]+Dataset[[#This Row],[2023/24 From - Other reallocations]] -> 0 | CN45: =Dataset[[#This Row],[2024/25 From - Spending review Topic 1]]+Dataset[[#This Row],[2024/25 From - Spending review Topic 2]]+Dataset[[#This Row],[2024/25 From - Spending review Topic 3]]+Dataset[[#This Row],[2024/25 From - Spending review Topic 4]]+Dataset[[#This Row],[2024/25 From - Other reallocations]] -> 0 | CO45: =Dataset[[#This Row],[2022/23 To - Spending review Topic 1]]+Dataset[[#This Row],[2022/23 To - Spending review Topic 2]]+Dataset[[#This Row],[2022/23 To - Spending review Topic 3]]+Dataset[[#This Row],[2022/23 To - Spending review Topic 4]]+Dataset[[#This Row],[2022/23 To - Other reallocations]] -> 0 | CP45: =Dataset[[#This Row],[2023/24 To - Spending review Topic 1]]+Dataset[[#This Row],[2023/24 To - Spending review Topic 2]]+Dataset[[#This Row],[2023/24 To - Spending review Topic 3]]+Dataset[[#This Row],[2023/24 To - Spending review Topic 4]]+Dataset[[#This Row],[2023/24 To - Other reallocations]] -> 0 | CQ45: =Dataset[[#This Row],[2024/25 To - Spending review Topic 1]]+Dataset[[#This Row],[2024/25 To - Spending review Topic 2]]+Dataset[[#This Row],[2024/25 To - Spending review Topic 3]]+Dataset[[#This Row],[2024/25 To - Spending review Topic 4]]+Dataset[[#This Row],[2024/25 To - Other reallocations]] -> 0 | CR45: =Dataset[[#This Row],[2022/23 Baseline]]+Dataset[[#This Row],[2022/23 From - Total]]+Dataset[[#This Row],[2022/23 To - Total]] -> 0 | CS45: =Dataset[[#This Row],[2023/24 Baseline]]+Dataset[[#This Row],[2023/24 From - Total]]+Dataset[[#This Row],[2023/24 To - Total]] -> 0 | CT45: =Dataset[[#This Row],[2024/25 Baseline]]+Dataset[[#This Row],[2024/25 From - Total]]+Dataset[[#This Row],[2024/25 To - Total]] -> 0
A46: NAT|Non-transfer item | B46: 11|Inventory: Materials and supplies | C46: 2022_23 | D46: MTEF2022 | E46: 11 | F46: 1 | G46: 1 | H46: 16549 | I46: 28 | J46: 11 | K46: 01 | L46: 01 | M46: 16549 | N46: 28 | O46: 11|01|01 | P46: 1 | Q46: 1 | R46: 2 | S46: 26 | T46: 26 | U46: 01|01|02|26|26 | V46: National | W46: Public Service and Administration | X46: Administration | Y46: Ministry | Z46: Non-transfer item | AA46: Current | AB46: Current payments | AC46: Goods and services | AD46: Inventory: Materials and supplies | AE46: Inventory: Materials and supplies | AF46: General public services | AG46: Public administration and fiscal affairs | AH46: NAT | AI46: 0 | AJ46: 0 | AK46: 0 | AL46: 0 | AM46: 0 | AN46: 0 | AO46: 0 | AP46: 0 | AQ46: 0 | AR46: 0 | AS46: 0 | AT46: 0 | AU46: =IF(Dataset[[#This Row],[Reporting level indicator]]=1,$AU$16,"Not applicable") -> Level 4 | AV46: =INDEX((t_ReportingLevelIndi[[Level 3]:[Level 4]]),MATCH(Dataset[[#This Row],[Econ4]],t_ReportingLevelIndi[Econ4],0),MATCH(Data!$AU$16,t_ReportingLevelIndi[[#Headers],[Level 3]:[Level 4]],0)) -> 1 | AW46: =Dataset[[#This Row],[2017/18_Source]]*Dataset[[#This Row],[Reporting level indicator]] -> 0 | AX46: =Dataset[[#This Row],[2018/19_Source]]*Dataset[[#This Row],[Reporting level indicator]] -> 0 | AY46: =Dataset[[#This Row],[2019/20_Source]]*Dataset[[#This Row],[Reporting level indicator]] -> 0 | AZ46: =Dataset[[#This Row],[2020/21 Main appropriation_Source]]*Dataset[[#This Row],[Reporting level indicator]] -> 0 | BA46: =Dataset[[#This Row],[2020/21 Adjusted appropriation_Source]]*Dataset[[#This Row],[Reporting level indicator]] -> 0 | BB46: =Dataset[[#This Row],[2020/21 Revised estimate_Source]]*Dataset[[#This Row],[Reporting level indicator]] -> 0 | BC46: =Dataset[[#This Row],[2020/21 Preliminary outcome_Source]]*Dataset[[#This Row],[Reporting level indicator]] -> 0 | BD46: =Dataset[[#This Row],[2021/22 Baseline_Source]]*Dataset[[#This Row],[Reporting level indicator]] -> 0 | BE46: =Dataset[[#This Row],[2022/23 Baseline_Source]]*Dataset[[#This Row],[Reporting level indicator]] -> 0 | BF46: =Dataset[[#This Row],[2023/24 Baseline_Source]]*Dataset[[#This Row],[Reporting level indicator]] -> 0 | BG46: =Dataset[[#This Row],[2024/25 Baseline_Source]]*Dataset[[#This Row],[Reporting level indicator]] -> 0 | CL46: =Dataset[[#This Row],[2022/23 From - Spending review Topic 1]]+Dataset[[#This Row],[2022/23 From - Spending review Topic 2]]+Dataset[[#This Row],[2022/23 From - Spending review Topic 3]]+Dataset[[#This Row],[2022/23 From - Spending review Topic 4]]+Dataset[[#This Row],[2022/23 From - Other reallocations]] -> 0 | CM46: =Dataset[[#This Row],[2023/24 From - Spending review Topic 1]]+Dataset[[#This Row],[2023/24 From - Spending review Topic 2]]+Dataset[[#This Row],[2023/24 From - Spending review Topic 3]]+Dataset[[#This Row],[2023/24 From - Spending review Topic 4]]+Dataset[[#This Row],[2023/24 From - Other reallocations]] -> 0 | CN46: =Dataset[[#This Row],[2024/25 From - Spending review Topic 1]]+Dataset[[#This Row],[2024/25 From - Spending review Topic 2]]+Dataset[[#This Row],[2024/25 From - Spending review Topic 3]]+Dataset[[#This Row],[2024/25 From - Spending review Topic 4]]+Dataset[[#This Row],[2024/25 From - Other reallocations]] -> 0 | CO46: =Dataset[[#This Row],[2022/23 To - Spending review Topic 1]]+Dataset[[#This Row],[2022/23 To - Spending review Topic 2]]+Dataset[[#This Row],[2022/23 To - Spending review Topic 3]]+Dataset[[#This Row],[2022/23 To - Spending review Topic 4]]+Dataset[[#This Row],[2022/23 To - Other reallocations]] -> 0 | CP46: =Dataset[[#This Row],[2023/24 To - Spending review Topic 1]]+Dataset[[#This Row],[2023/24 To - Spending review Topic 2]]+Dataset[[#This Row],[2023/24 To - Spending review Topic 3]]+Dataset[[#This Row],[2023/24 To - Spending review Topic 4]]+Dataset[[#This Row],[2023/24 To - Other reallocations]] -> 0 | CQ46: =Dataset[[#This Row],[2024/25 To - Spending review Topic 1]]+Dataset[[#This Row],[2024/25 To - Spending review Topic 2]]+Dataset[[#This Row],[2024/25 To - Spending review Topic 3]]+Dataset[[#This Row],[2024/25 To - Spending review Topic 4]]+Dataset[[#This Row],[2024/25 To - Other reallocations]] -> 0 | CR46: =Dataset[[#This Row],[2022/23 Baseline]]+Dataset[[#This Row],[2022/23 From - Total]]+Dataset[[#This Row],[2022/23 To - Total]] -> 0 | CS46: =Dataset[[#This Row],[2023/24 Baseline]]+Dataset[[#This Row],[2023/24 From - Total]]+Dataset[[#This Row],[2023/24 To - Total]] -> 0 | CT46: =Dataset[[#This Row],[2024/25 Baseline]]+Dataset[[#This Row],[2024/25 From - Total]]+Dataset[[#This Row],[2024/25 To - Total]] -> 0
A47: NAT|Non-transfer item | B47: 11|Inventory: Medical supplies | C47: 2022_23 | D47: MTEF2022 | E47: 11 | F47: 1 | G47: 1 | H47: 16550 | I47: 29 | J47: 11 | K47: 01 | L47: 01 | M47: 16550 | N47: 29 | O47: 11|01|01 | P47: 1 | Q47: 1 | R47: 2 | S47: 27 | T47: 27 | U47: 01|01|02|27|27 | V47: National | W47: Public Service and Administration | X47: Administration | Y47: Ministry | Z47: Non-transfer item | AA47: Current | AB47: Current payments | AC47: Goods and services | AD47: Inventory: Medical supplies | AE47: Inventory: Medical supplies | AF47: General public services | AG47: Public administration and fiscal affairs | AH47: NAT | AI47: 0 | AJ47: 0 | AK47: 0 | AL47: 0 | AM47: 0 | AN47: 0 | AO47: 0 | AP47: 0 | AQ47: 0 | AR47: 0 | AS47: 0 | AT47: 0 | AU47: =IF(Dataset[[#This Row],[Reporting level indicator]]=1,$AU$16,"Not applicable") -> Level 4 | AV47: =INDEX((t_ReportingLevelIndi[[Level 3]:[Level 4]]),MATCH(Dataset[[#This Row],[Econ4]],t_ReportingLevelIndi[Econ4],0),MATCH(Data!$AU$16,t_ReportingLevelIndi[[#Headers],[Level 3]:[Level 4]],0)) -> 1 | AW47: =Dataset[[#This Row],[2017/18_Source]]*Dataset[[#This Row],[Reporting level indicator]] -> 0 | AX47: =Dataset[[#This Row],[2018/19_Source]]*Dataset[[#This Row],[Reporting level indicator]] -> 0 | AY47: =Dataset[[#This Row],[2019/20_Source]]*Dataset[[#This Row],[Reporting level indicator]] -> 0 | AZ47: =Dataset[[#This Row],[2020/21 Main appropriation_Source]]*Dataset[[#This Row],[Reporting level indicator]] -> 0 | BA47: =Dataset[[#This Row],[2020/21 Adjusted appropriation_Source]]*Dataset[[#This Row],[Reporting level indicator]] -> 0 | BB47: =Dataset[[#This Row],[2020/21 Revised estimate_Source]]*Dataset[[#This Row],[Reporting level indicator]] -> 0 | BC47: =Dataset[[#This Row],[2020/21 Preliminary outcome_Source]]*Dataset[[#This Row],[Reporting level indicator]] -> 0 | BD47: =Dataset[[#This Row],[2021/22 Baseline_Source]]*Dataset[[#This Row],[Reporting level indicator]] -> 0 | BE47: =Dataset[[#This Row],[2022/23 Baseline_Source]]*Dataset[[#This Row],[Reporting level indicator]] -> 0 | BF47: =Dataset[[#This Row],[2023/24 Baseline_Source]]*Dataset[[#This Row],[Reporting level indicator]] -> 0 | BG47: =Dataset[[#This Row],[2024/25 Baseline_Source]]*Dataset[[#This Row],[Reporting level indicator]] -> 0 | CL47: =Dataset[[#This Row],[2022/23 From - Spending review Topic 1]]+Dataset[[#This Row],[2022/23 From - Spending review Topic 2]]+Dataset[[#This Row],[2022/23 From - Spending review Topic 3]]+Dataset[[#This Row],[2022/23 From - Spending review Topic 4]]+Dataset[[#This Row],[2022/23 From - Other reallocations]] -> 0 | CM47: =Dataset[[#This Row],[2023/24 From - Spending review Topic 1]]+Dataset[[#This Row],[2023/24 From - Spending review Topic 2]]+Dataset[[#This Row],[2023/24 From - Spending review Topic 3]]+Dataset[[#This Row],[2023/24 From - Spending review Topic 4]]+Dataset[[#This Row],[2023/24 From - Other reallocations]] -> 0 | CN47: =Dataset[[#This Row],[2024/25 From - Spending review Topic 1]]+Dataset[[#This Row],[2024/25 From - Spending review Topic 2]]+Dataset[[#This Row],[2024/25 From - Spending review Topic 3]]+Dataset[[#This Row],[2024/25 From - Spending review Topic 4]]+Dataset[[#This Row],[2024/25 From - Other reallocations]] -> 0 | CO47: =Dataset[[#This Row],[2022/23 To - Spending review Topic 1]]+Dataset[[#This Row],[2022/23 To - Spending review Topic 2]]+Dataset[[#This Row],[2022/23 To - Spending review Topic 3]]+Dataset[[#This Row],[2022/23 To - Spending review Topic 4]]+Dataset[[#This Row],[2022/23 To - Other reallocations]] -> 0 | CP47: =Dataset[[#This Row],[2023/24 To - Spending review Topic 1]]+Dataset[[#This Row],[2023/24 To - Spending review Topic 2]]+Dataset[[#This Row],[2023/24 To - Spending review Topic 3]]+Dataset[[#This Row],[2023/24 To - Spending review Topic 4]]+Dataset[[#This Row],[2023/24 To - Other reallocations]] -> 0 | CQ47: =Dataset[[#This Row],[2024/25 To - Spending review Topic 1]]+Dataset[[#This Row],[2024/25 To - Spending review Topic 2]]+Dataset[[#This Row],[2024/25 To - Spending review Topic 3]]+Dataset[[#This Row],[2024/25 To - Spending review Topic 4]]+Dataset[[#This Row],[2024/25 To - Other reallocations]] -> 0 | CR47: =Dataset[[#This Row],[2022/23 Baseline]]+Dataset[[#This Row],[2022/23 From - Total]]+Dataset[[#This Row],[2022/23 To - Total]] -> 0 | CS47: =Dataset[[#This Row],[2023/24 Baseline]]+Dataset[[#This Row],[2023/24 From - Total]]+Dataset[[#This Row],[2023/24 To - Total]] -> 0 | CT47: =Dataset[[#This Row],[2024/25 Baseline]]+Dataset[[#This Row],[2024/25 From - Total]]+Dataset[[#This Row],[2024/25 To - Total]] -> 0
A48: NAT|Non-transfer item | B48: 11|Inventory: Medicine | C48: 2022_23 | D48: MTEF2022 | E48: 11 | F48: 1 | G48: 1 | H48: 16551 | I48: 30 | J48: 11 | K48: 01 | L48: 01 | M48: 16551 | N48: 30 | O48: 11|01|01 | P48: 1 | Q48: 1 | R48: 2 | S48: 28 | T48: 28 | U48: 01|01|02|28|28 | V48: National | W48: Public Service and Administration | X48: Administration | Y48: Ministry | Z48: Non-transfer item | AA48: Current | AB48: Current payments | AC48: Goods and services | AD48: Inventory: Medicine | AE48: Inventory: Medicine | AF48: General public services | AG48: Public administration and fiscal affairs | AH48: NAT | AI48: 0 | AJ48: 0 | AK48: 0 | AL48: 0 | AM48: 0 | AN48: 0 | AO48: 0 | AP48: 0 | AQ48: 0 | AR48: 0 | AS48: 0 | AT48: 0 | AU48: =IF(Dataset[[#This Row],[Reporting level indicator]]=1,$AU$16,"Not applicable") -> Level 4 | AV48: =INDEX((t_ReportingLevelIndi[[Level 3]:[Level 4]]),MATCH(Dataset[[#This Row],[Econ4]],t_ReportingLevelIndi[Econ4],0),MATCH(Data!$AU$16,t_ReportingLevelIndi[[#Headers],[Level 3]:[Level 4]],0)) -> 1 | AW48: =Dataset[[#This Row],[2017/18_Source]]*Dataset[[#This Row],[Reporting level indicator]] -> 0 | AX48: =Dataset[[#This Row],[2018/19_Source]]*Dataset[[#This Row],[Reporting level indicator]] -> 0 | AY48: =Dataset[[#This Row],[2019/20_Source]]*Dataset[[#This Row],[Reporting level indicator]] -> 0 | AZ48: =Dataset[[#This Row],[2020/21 Main appropriation_Source]]*Dataset[[#This Row],[Reporting level indicator]] -> 0 | BA48: =Dataset[[#This Row],[2020/21 Adjusted appropriation_Source]]*Dataset[[#This Row],[Reporting level indicator]] -> 0 | BB48: =Dataset[[#This Row],[2020/21 Revised estimate_Source]]*Dataset[[#This Row],[Reporting level indicator]] -> 0 | BC48: =Dataset[[#This Row],[2020/21 Preliminary outcome_Source]]*Dataset[[#This Row],[Reporting level indicator]] -> 0 | BD48: =Dataset[[#This Row],[2021/22 Baseline_Source]]*Dataset[[#This Row],[Reporting level indicator]] -> 0 | BE48: =Dataset[[#This Row],[2022/23 Baseline_Source]]*Dataset[[#This Row],[Reporting level indicator]] -> 0 | BF48: =Dataset[[#This Row],[2023/24 Baseline_Source]]*Dataset[[#This Row],[Reporting level indicator]] -> 0 | BG48: =Dataset[[#This Row],[2024/25 Baseline_Source]]*Dataset[[#This Row],[Reporting level indicator]] -> 0 | CL48: =Dataset[[#This Row],[2022/23 From - Spending review Topic 1]]+Dataset[[#This Row],[2022/23 From - Spending review Topic 2]]+Dataset[[#This Row],[2022/23 From - Spending review Topic 3]]+Dataset[[#This Row],[2022/23 From - Spending review Topic 4]]+Dataset[[#This Row],[2022/23 From - Other reallocations]] -> 0 | CM48: =Dataset[[#This Row],[2023/24 From - Spending review Topic 1]]+Dataset[[#This Row],[2023/24 From - Spending review Topic 2]]+Dataset[[#This Row],[2023/24 From - Spending review Topic 3]]+Dataset[[#This Row],[2023/24 From - Spending review Topic 4]]+Dataset[[#This Row],[2023/24 From - Other reallocations]] -> 0 | CN48: =Dataset[[#This Row],[2024/25 From - Spending review Topic 1]]+Dataset[[#This Row],[2024/25 From - Spending review Topic 2]]+Dataset[[#This Row],[2024/25 From - Spending review Topic 3]]+Dataset[[#This Row],[2024/25 From - Spending review Topic 4]]+Dataset[[#This Row],[2024/25 From - Other reallocations]] -> 0 | CO48: =Dataset[[#This Row],[2022/23 To - Spending review Topic 1]]+Dataset[[#This Row],[2022/23 To - Spending review Topic 2]]+Dataset[[#This Row],[2022/23 To - Spending review Topic 3]]+Dataset[[#This Row],[2022/23 To - Spending review Topic 4]]+Dataset[[#This Row],[2022/23 To - Other reallocations]] -> 0 | CP48: =Dataset[[#This Row],[2023/24 To - Spending review Topic 1]]+Dataset[[#This Row],[2023/24 To - Spending review Topic 2]]+Dataset[[#This Row],[2023/24 To - Spending review Topic 3]]+Dataset[[#This Row],[2023/24 To - Spending review Topic 4]]+Dataset[[#This Row],[2023/24 To - Other reallocations]] -> 0 | CQ48: =Dataset[[#This Row],[2024/25 To - Spending review Topic 1]]+Dataset[[#This Row],[2024/25 To - Spending review Topic 2]]+Dataset[[#This Row],[2024/25 To - Spending review Topic 3]]+Dataset[[#This Row],[2024/25 To - Spending review Topic 4]]+Dataset[[#This Row],[2024/25 To - Other reallocations]] -> 0 | CR48: =Dataset[[#This Row],[2022/23 Baseline]]+Dataset[[#This Row],[2022/23 From - Total]]+Dataset[[#This Row],[2022/23 To - Total]] -> 0 | CS48: =Dataset[[#This Row],[2023/24 Baseline]]+Dataset[[#This Row],[2023/24 From - Total]]+Dataset[[#This Row],[2023/24 To - Total]] -> 0 | CT48: =Dataset[[#This Row],[2024/25 Baseline]]+Dataset[[#This Row],[2024/25 From - Total]]+Dataset[[#This Row],[2024/25 To - Total]] -> 0
A49: NAT|Non-transfer item | B49: 11|Medsas inventory interface | C49: 2022_23 | D49: MTEF2022 | E49: 11 | F49: 1 | G49: 1 | H49: 16552 | I49: 31 | J49: 11 | K49: 01 | L49: 01 | M49: 16552 | N49: 31 | O49: 11|01|01 | P49: 1 | Q49: 1 | R49: 2 | S49: 29 | T49: 29 | U49: 01|01|02|29|29 | V49: National | W49: Public Service and Administration | X49: Administration | Y49: Ministry | Z49: Non-transfer item | AA49: Current | AB49: Current payments | AC49: Goods and services | AD49: Medsas inventory interface | AE49: Medsas inventory interface | AF49: General public services | AG49: Public administration and fiscal affairs | AH49: NAT | AI49: 0 | AJ49: 0 | AK49: 0 | AL49: 0 | AM49: 0 | AN49: 0 | AO49: 0 | AP49: 0 | AQ49: 0 | AR49: 0 | AS49: 0 | AT49: 0 | AU49: =IF(Dataset[[#This Row],[Reporting level indicator]]=1,$AU$16,"Not applicable") -> Level 4 | AV49: =INDEX((t_ReportingLevelIndi[[Level 3]:[Level 4]]),MATCH(Dataset[[#This Row],[Econ4]],t_ReportingLevelIndi[Econ4],0),MATCH(Data!$AU$16,t_ReportingLevelIndi[[#Headers],[Level 3]:[Level 4]],0)) -> 1 | AW49: =Dataset[[#This Row],[2017/18_Source]]*Dataset[[#This Row],[Reporting level indicator]] -> 0 | AX49: =Dataset[[#This Row],[2018/19_Source]]*Dataset[[#This Row],[Reporting level indicator]] -> 0 | AY49: =Dataset[[#This Row],[2019/20_Source]]*Dataset[[#This Row],[Reporting level indicator]] -> 0 | AZ49: =Dataset[[#This Row],[2020/21 Main appropriation_Source]]*Dataset[[#This Row],[Reporting level indicator]] -> 0 | BA49: =Dataset[[#This Row],[2020/21 Adjusted appropriation_Source]]*Dataset[[#This Row],[Reporting level indicator]] -> 0 | BB49: =Dataset[[#This Row],[2020/21 Revised estimate_Source]]*Dataset[[#This Row],[Reporting level indicator]] -> 0 | BC49: =Dataset[[#This Row],[2020/21 Preliminary outcome_Source]]*Dataset[[#This Row],[Reporting level indicator]] -> 0 | BD49: =Dataset[[#This Row],[2021/22 Baseline_Source]]*Dataset[[#This Row],[Reporting level indicator]] -> 0 | BE49: =Dataset[[#This Row],[2022/23 Baseline_Source]]*Dataset[[#This Row],[Reporting level indicator]] -> 0 | BF49: =Dataset[[#This Row],[2023/24 Baseline_Source]]*Dataset[[#This Row],[Reporting level indicator]] -> 0 | BG49: =Dataset[[#This Row],[2024/25 Baseline_Source]]*Dataset[[#This Row],[Reporting level indicator]] -> 0 | CL49: =Dataset[[#This Row],[2022/23 From - Spending review Topic 1]]+Dataset[[#This Row],[2022/23 From - Spending review Topic 2]]+Dataset[[#This Row],[2022/23 From - Spending review Topic 3]]+Dataset[[#This Row],[2022/23 From - Spending review Topic 4]]+Dataset[[#This Row],[2022/23 From - Other reallocations]] -> 0 | CM49: =Dataset[[#This Row],[2023/24 From - Spending review Topic 1]]+Dataset[[#This Row],[2023/24 From - Spending review Topic 2]]+Dataset[[#This Row],[2023/24 From - Spending review Topic 3]]+Dataset[[#This Row],[2023/24 From - Spending review Topic 4]]+Dataset[[#This Row],[2023/24 From - Other reallocations]] -> 0 | CN49: =Dataset[[#This Row],[2024/25 From - Spending review Topic 1]]+Dataset[[#This Row],[2024/25 From - Spending review Topic 2]]+Dataset[[#This Row],[2024/25 From - Spending review Topic 3]]+Dataset[[#This Row],[2024/25 From - Spending review Topic 4]]+Dataset[[#This Row],[2024/25 From - Other reallocations]] -> 0 | CO49: =Dataset[[#This Row],[2022/23 To - Spending review Topic 1]]+Dataset[[#This Row],[2022/23 To - Spending review Topic 2]]+Dataset[[#This Row],[2022/23 To - Spending review Topic 3]]+Dataset[[#This Row],[2022/23 To - Spending review Topic 4]]+Dataset[[#This Row],[2022/23 To - Other reallocations]] -> 0 | CP49: =Dataset[[#This Row],[2023/24 To - Spending review Topic 1]]+Dataset[[#This Row],[2023/24 To - Spending review Topic 2]]+Dataset[[#This Row],[2023/24 To - Spending review Topic 3]]+Dataset[[#This Row],[2023/24 To - Spending review Topic 4]]+Dataset[[#This Row],[2023/24 To - Other reallocations]] -> 0 | CQ49: =Dataset[[#This Row],[2024/25 To - Spending review Topic 1]]+Dataset[[#This Row],[2024/25 To - Spending review Topic 2]]+Dataset[[#This Row],[2024/25 To - Spending review Topic 3]]+Dataset[[#This Row],[2024/25 To - Spending review Topic 4]]+Dataset[[#This Row],[2024/25 To - Other reallocations]] -> 0 | CR49: =Dataset[[#This Row],[2022/23 Baseline]]+Dataset[[#This Row],[2022/23 From - Total]]+Dataset[[#This Row],[2022/23 To - Total]] -> 0 | CS49: =Dataset[[#This Row],[2023/24 Baseline]]+Dataset[[#This Row],[2023/24 From - Total]]+Dataset[[#This Row],[2023/24 To - Total]] -> 0 | CT49: =Dataset[[#This Row],[2024/25 Baseline]]+Dataset[[#This Row],[2024/25 From - Total]]+Dataset[[#This Row],[2024/25 To - Total]] -> 0
A50: NAT|Non-transfer item | B50: 11|Inventory: Other supplies | C50: 2022_23 | D50: MTEF2022 | E50: 11 | F50: 1 | G50: 1 | H50: 16553 | I50: 32 | J50: 11 | K50: 01 | L50: 01 | M50: 16553 | N50: 32 | O50: 11|01|01 | P50: 1 | Q50: 1 | R50: 2 | S50: 30 | T50: 30 | U50: 01|01|02|30|30 | V50: National | W50: Public Service and Administration | X50: Administration | Y50: Ministry | Z50: Non-transfer item | AA50: Current | AB50: Current payments | AC50: Goods and services | AD50: Inventory: Other supplies | AE50: Inventory: Other supplies | AF50: General public services | AG50: Public administration and fiscal affairs | AH50: NAT | AI50: 0 | AJ50: 0 | AK50: 0 | AL50: 0 | AM50: 0 | AN50: 0 | AO50: 0 | AP50: 0 | AQ50: 0 | AR50: 0 | AS50: 0 | AT50: 0 | AU50: =IF(Dataset[[#This Row],[Reporting level indicator]]=1,$AU$16,"Not applicable") -> Level 4 | AV50: =INDEX((t_ReportingLevelIndi[[Level 3]:[Level 4]]),MATCH(Dataset[[#This Row],[Econ4]],t_ReportingLevelIndi[Econ4],0),MATCH(Data!$AU$16,t_ReportingLevelIndi[[#Headers],[Level 3]:[Level 4]],0)) -> 1 | AW50: =Dataset[[#This Row],[2017/18_Source]]*Dataset[[#This Row],[Reporting level indicator]] -> 0 | AX50: =Dataset[[#This Row],[2018/19_Source]]*Dataset[[#This Row],[Reporting level indicator]] -> 0 | AY50: =Dataset[[#This Row],[2019/20_Source]]*Dataset[[#This Row],[Reporting level indicator]] -> 0 | AZ50: =Dataset[[#This Row],[2020/21 Main appropriation_Source]]*Dataset[[#This Row],[Reporting level indicator]] -> 0 | BA50: =Dataset[[#This Row],[2020/21 Adjusted appropriation_Source]]*Dataset[[#This Row],[Reporting level indicator]] -> 0 | BB50: =Dataset[[#This Row],[2020/21 Revised estimate_Source]]*Dataset[[#This Row],[Reporting level indicator]] -> 0 | BC50: =Dataset[[#This Row],[2020/21 Preliminary outcome_Source]]*Dataset[[#This Row],[Reporting level indicator]] -> 0 | BD50: =Dataset[[#This Row],[2021/22 Baseline_Source]]*Dataset[[#This Row],[Reporting level indicator]] -> 0 | BE50: =Dataset[[#This Row],[2022/23 Baseline_Source]]*Dataset[[#This Row],[Reporting level indicator]] -> 0 | BF50: =Dataset[[#This Row],[2023/24 Baseline_Source]]*Dataset[[#This Row],[Reporting level indicator]] -> 0 | BG50: =Dataset[[#This Row],[2024/25 Baseline_Source]]*Dataset[[#This Row],[Reporting level indicator]] -> 0 | CL50: =Dataset[[#This Row],[2022/23 From - Spending review Topic 1]]+Dataset[[#This Row],[2022/23 From - Spending review Topic 2]]+Dataset[[#This Row],[2022/23 From - Spending review Topic 3]]+Dataset[[#This Row],[2022/23 From - Spending review Topic 4]]+Dataset[[#This Row],[2022/23 From - Other reallocations]] -> 0 | CM50: =Dataset[[#This Row],[2023/24 From - Spending review Topic 1]]+Dataset[[#This Row],[2023/24 From - Spending review Topic 2]]+Dataset[[#This Row],[2023/24 From - Spending review Topic 3]]+Dataset[[#This Row],[2023/24 From - Spending review Topic 4]]+Dataset[[#This Row],[2023/24 From - Other reallocations]] -> 0 | CN50: =Dataset[[#This Row],[2024/25 From - Spending review Topic 1]]+Dataset[[#This Row],[2024/25 From - Spending review Topic 2]]+Dataset[[#This Row],[2024/25 From - Spending review Topic 3]]+Dataset[[#This Row],[2024/25 From - Spending review Topic 4]]+Dataset[[#This Row],[2024/25 From - Other reallocations]] -> 0 | CO50: =Dataset[[#This Row],[2022/23 To - Spending review Topic 1]]+Dataset[[#This Row],[2022/23 To - Spending review Topic 2]]+Dataset[[#This Row],[2022/23 To - Spending review Topic 3]]+Dataset[[#This Row],[2022/23 To - Spending review Topic 4]]+Dataset[[#This Row],[2022/23 To - Other reallocations]] -> 0 | CP50: =Dataset[[#This Row],[2023/24 To - Spending review Topic 1]]+Dataset[[#This Row],[2023/24 To - Spending review Topic 2]]+Dataset[[#This Row],[2023/24 To - Spending review Topic 3]]+Dataset[[#This Row],[2023/24 To - Spending review Topic 4]]+Dataset[[#This Row],[2023/24 To - Other reallocations]] -> 0 | CQ50: =Dataset[[#This Row],[2024/25 To - Spending review Topic 1]]+Dataset[[#This Row],[2024/25 To - Spending review Topic 2]]+Dataset[[#This Row],[2024/25 To - Spending review Topic 3]]+Dataset[[#This Row],[2024/25 To - Spending review Topic 4]]+Dataset[[#This Row],[2024/25 To - Other reallocations]] -> 0 | CR50: =Dataset[[#This Row],[2022/23 Baseline]]+Dataset[[#This Row],[2022/23 From - Total]]+Dataset[[#This Row],[2022/23 To - Total]] -> 0 | CS50: =Dataset[[#This Row],[2023/24 Baseline]]+Dataset[[#This Row],[2023/24 From - Total]]+Dataset[[#This Row],[2023/24 To - Total]] -> 0 | CT50: =Dataset[[#This Row],[2024/25 Baseline]]+Dataset[[#This Row],[2024/25 From - Total]]+Dataset[[#This Row],[2024/25 To - Total]] -> 0
A51: NAT|Non-transfer item | B51: 11|Consumable supplies | C51: 2022_23 | D51: MTEF2022 | E51: 11 | F51: 1 | G51: 1 | H51: 16554 | I51: 33 | J51: 11 | K51: 01 | L51: 01 | M51: 16554 | N51: 33 | O51: 11|01|01 | P51: 1 | Q51: 1 | R51: 2 | S51: 31 | T51: 31 | U51: 01|01|02|31|31 | V51: National | W51: Public Service and Administration | X51: Administration | Y51: Ministry | Z51: Non-transfer item | AA51: Current | AB51: Current payments | AC51: Goods and services | AD51: Consumable supplies | AE51: Consumable supplies | AF51: General public services | AG51: Public administration and fiscal affairs | AH51: NAT | AI51: 178 | AJ51: 185 | AK51: 169 | AL51: 246 | AM51: 246 | AN51: 246 | AO51: 68 | AP51: 75 | AQ51: 76 | AR51: 79 | AS51: 83 | AT51: 1 | AU51: =IF(Dataset[[#This Row],[Reporting level indicator]]=1,$AU$16,"Not applicable") -> Level 4 | AV51: =INDEX((t_ReportingLevelIndi[[Level 3]:[Level 4]]),MATCH(Dataset[[#This Row],[Econ4]],t_ReportingLevelIndi[Econ4],0),MATCH(Data!$AU$16,t_ReportingLevelIndi[[#Headers],[Level 3]:[Level 4]],0)) -> 1 | AW51: =Dataset[[#This Row],[2017/18_Source]]*Dataset[[#This Row],[Reporting level indicator]] -> 178 | AX51: =Dataset[[#This Row],[2018/19_Source]]*Dataset[[#This Row],[Reporting level indicator]] -> 185 | AY51: =Dataset[[#This Row],[2019/20_Source]]*Dataset[[#This Row],[Reporting level indicator]] -> 169 | AZ51: =Dataset[[#This Row],[2020/21 Main appropriation_Source]]*Dataset[[#This Row],[Reporting level indicator]] -> 246 | BA51: =Dataset[[#This Row],[2020/21 Adjusted appropriation_Source]]*Dataset[[#This Row],[Reporting level indicator]] -> 246 | BB51: =Dataset[[#This Row],[2020/21 Revised estimate_Source]]*Dataset[[#This Row],[Reporting level indicator]] -> 246 | BC51: =Dataset[[#This Row],[2020/21 Preliminary outcome_Source]]*Dataset[[#This Row],[Reporting level indicator]] -> 68 | BD51: =Dataset[[#This Row],[2021/22 Baseline_Source]]*Dataset[[#This Row],[Reporting level indicator]] -> 75 | BE51: =Dataset[[#This Row],[2022/23 Baseline_Source]]*Dataset[[#This Row],[Reporting level indicator]] -> 76 | BF51: =Dataset[[#This Row],[2023/24 Baseline_Source]]*Dataset[[#This Row],[Reporting level indicator]] -> 79 | BG51: =Dataset[[#This Row],[2024/25 Baseline_Source]]*Dataset[[#This Row],[Reporting level indicator]] -> 83 | CL51: =Dataset[[#This Row],[2022/23 From - Spending review Topic 1]]+Dataset[[#This Row],[2022/23 From - Spending review Topic 2]]+Dataset[[#This Row],[2022/23 From - Spending review Topic 3]]+Dataset[[#This Row],[2022/23 From - Spending review Topic 4]]+Dataset[[#This Row],[2022/23 From - Other reallocations]] -> 0 | CM51: =Dataset[[#This Row],[2023/24 From - Spending review Topic 1]]+Dataset[[#This Row],[2023/24 From - Spending review Topic 2]]+Dataset[[#This Row],[2023/24 From - Spending review Topic 3]]+Dataset[[#This Row],[2023/24 From - Spending review Topic 4]]+Dataset[[#This Row],[2023/24 From - Other reallocations]] -> 0 | CN51: =Dataset[[#This Row],[2024/25 From - Spending review Topic 1]]+Dataset[[#This Row],[2024/25 From - Spending review Topic 2]]+Dataset[[#This Row],[2024/25 From - Spending review Topic 3]]+Dataset[[#This Row],[2024/25 From - Spending review Topic 4]]+Dataset[[#This Row],[2024/25 From - Other reallocations]] -> 0 | CO51: =Dataset[[#This Row],[2022/23 To - Spending review Topic 1]]+Dataset[[#This Row],[2022/23 To - Spending review Topic 2]]+Dataset[[#This Row],[2022/23 To - Spending review Topic 3]]+Dataset[[#This Row],[2022/23 To - Spending review Topic 4]]+Dataset[[#This Row],[2022/23 To - Other reallocations]] -> 0 | CP51: =Dataset[[#This Row],[2023/24 To - Spending review Topic 1]]+Dataset[[#This Row],[2023/24 To - Spending review Topic 2]]+Dataset[[#This Row],[2023/24 To - Spending review Topic 3]]+Dataset[[#This Row],[2023/24 To - Spending review Topic 4]]+Dataset[[#This Row],[2023/24 To - Other reallocations]] -> 0 | CQ51: =Dataset[[#This Row],[2024/25 To - Spending review Topic 1]]+Dataset[[#This Row],[2024/25 To - Spending review Topic 2]]+Dataset[[#This Row],[2024/25 To - Spending review Topic 3]]+Dataset[[#This Row],[2024/25 To - Spending review Topic 4]]+Dataset[[#This Row],[2024/25 To - Other reallocations]] -> 0 | CR51: =Dataset[[#This Row],[2022/23 Baseline]]+Dataset[[#This Row],[2022/23 From - Total]]+Dataset[[#This Row],[2022/23 To - Total]] -> 76 | CS51: =Dataset[[#This Row],[2023/24 Baseline]]+Dataset[[#This Row],[2023/24 From - Total]]+Dataset[[#This Row],[2023/24 To - Total]] -> 79 | CT51: =Dataset[[#This Row],[2024/25 Baseline]]+Dataset[[#This Row],[2024/25 From - Total]]+Dataset[[#This Row],[2024/25 To - Total]] -> 83
A52: NAT|Non-transfer item | B52: 11|Consumables: Stationery, printing and office supplies | C52: 2022_23 | D52: MTEF2022 | E52: 11 | F52: 1 | G52: 1 | H52: 16555 | I52: 34 | J52: 11 | K52: 01 | L52: 01 | M52: 16555 | N52: 34 | O52: 11|01|01 | P52: 1 | Q52: 1 | R52: 2 | S52: 32 | T52: 32 | U52: 01|01|02|32|32 | V52: National | W52: Public Service and Administration | X52: Administration | Y52: Ministry | Z52: Non-transfer item | AA52: Current | AB52: Current payments | AC52: Goods and services | AD52: Consumables: Stationery, printing and office supplies | AE52: Consumables: Stationery, printing and office supplies | AF52: General public services | AG52: Public administration and fiscal affairs | AH52: NAT | AI52: 602 | AJ52: 313 | AK52: 321 | AL52: 497 | AM52: 149 | AN52: 149 | AO52: 175 | AP52: 65 | AQ52: 65 | AR52: 65 | AS52: 68 | AT52: 1 | AU52: =IF(Dataset[[#This Row],[Reporting level indicator]]=1,$AU$16,"Not applicable") -> Level 4 | AV52: =INDEX((t_ReportingLevelIndi[[Level 3]:[Level 4]]),MATCH(Dataset[[#This Row],[Econ4]],t_ReportingLevelIndi[Econ4],0),MATCH(Data!$AU$16,t_ReportingLevelIndi[[#Headers],[Level 3]:[Level 4]],0)) -> 1 | AW52: =Dataset[[#This Row],[2017/18_Source]]*Dataset[[#This Row],[Reporting level indicator]] -> 602 | AX52: =Dataset[[#This Row],[2018/19_Source]]*Dataset[[#This Row],[Reporting level indicator]] -> 313 | AY52: =Dataset[[#This Row],[2019/20_Source]]*Dataset[[#This Row],[Reporting level indicator]] -> 321 | AZ52: =Dataset[[#This Row],[2020/21 Main appropriation_Source]]*Dataset[[#This Row],[Reporting level indicator]] -> 497 | BA52: =Dataset[[#This Row],[2020/21 Adjusted appropriation_Source]]*Dataset[[#This Row],[Reporting level indicator]] -> 149 | BB52: =Dataset[[#This Row],[2020/21 Revised estimate_Source]]*Dataset[[#This Row],[Reporting level indicator]] -> 149 | BC52: =Dataset[[#This Row],[2020/21 Preliminary outcome_Source]]*Dataset[[#This Row],[Reporting level indicator]] -> 175 | BD52: =Dataset[[#This Row],[2021/22 Baseline_Source]]*Dataset[[#This Row],[Reporting level indicator]] -> 65 | BE52: =Dataset[[#This Row],[2022/23 Baseline_Source]]*Dataset[[#This Row],[Reporting level indicator]] -> 65 | BF52: =Dataset[[#This Row],[2023/24 Baseline_Source]]*Dataset[[#This Row],[Reporting level indicator]] -> 65 | BG52: =Dataset[[#This Row],[2024/25 Baseline_Source]]*Dataset[[#This Row],[Reporting level indicator]] -> 68 | CL52: =Dataset[[#This Row],[2022/23 From - Spending review Topic 1]]+Dataset[[#This Row],[2022/23 From - Spending review Topic 2]]+Dataset[[#This Row],[2022/23 From - Spending review Topic 3]]+Dataset[[#This Row],[2022/23 From - Spending review Topic 4]]+Dataset[[#This Row],[2022/23 From - Other reallocations]] -> 0 | CM52: =Dataset[[#This Row],[2023/24 From - Spending review Topic 1]]+Dataset[[#This Row],[2023/24 From - Spending review Topic 2]]+Dataset[[#This Row],[2023/24 From - Spending review Topic 3]]+Dataset[[#This Row],[2023/24 From - Spending review Topic 4]]+Dataset[[#This Row],[2023/24 From - Other reallocations]] -> 0 | CN52: =Dataset[[#This Row],[2024/25 From - Spending review Topic 1]]+Dataset[[#This Row],[2024/25 From - Spending review Topic 2]]+Dataset[[#This Row],[2024/25 From - Spending review Topic 3]]+Dataset[[#This Row],[2024/25 From - Spending review Topic 4]]+Dataset[[#This Row],[2024/25 From - Other reallocations]] -> 0 | CO52: =Dataset[[#This Row],[2022/23 To - Spending review Topic 1]]+Dataset[[#This Row],[2022/23 To - Spending review Topic 2]]+Dataset[[#This Row],[2022/23 To - Spending review Topic 3]]+Dataset[[#This Row],[2022/23 To - Spending review Topic 4]]+Dataset[[#This Row],[2022/23 To - Other reallocations]] -> 0 | CP52: =Dataset[[#This Row],[2023/24 To - Spending review Topic 1]]+Dataset[[#This Row],[2023/24 To - Spending review Topic 2]]+Dataset[[#This Row],[2023/24 To - Spending review Topic 3]]+Dataset[[#This Row],[2023/24 To - Spending review Topic 4]]+Dataset[[#This Row],[2023/24 To - Other reallocations]] -> 0 | CQ52: =Dataset[[#This Row],[2024/25 To - Spending review Topic 1]]+Dataset[[#This Row],[2024/25 To - Spending review Topic 2]]+Dataset[[#This Row],[2024/25 To - Spending review Topic 3]]+Dataset[[#This Row],[2024/25 To - Spending review Topic 4]]+Dataset[[#This Row],[2024/25 To - Other reallocations]] -> 0 | CR52: =Dataset[[#This Row],[2022/23 Baseline]]+Dataset[[#This Row],[2022/23 From - Total]]+Dataset[[#This Row],[2022/23 To - Total]] -> 65 | CS52: =Dataset[[#This Row],[2023/24 Baseline]]+Dataset[[#This Row],[2023/24 From - Total]]+Dataset[[#This Row],[2023/24 To - Total]] -> 65 | CT52: =Dataset[[#This Row],[2024/25 Baseline]]+Dataset[[#This Row],[2024/25 From - Total]]+Dataset[[#This Row],[2024/25 To - Total]] -> 68
A53: NAT|Non-transfer item | B53: 11|Operating leases | C53: 2022_23 | D53: MTEF2022 | E53: 11 | F53: 1 | G53: 1 | H53: 16556 | I53: 35 | J53: 11 | K53: 01 | L53: 01 | M53: 16556 | N53: 35 | O53: 11|01|01 | P53: 1 | Q53: 1 | R53: 2 | S53: 33 | T53: 33 | U53: 01|01|02|33|33 | V53: National | W53: Public Service and Administration | X53: Administration | Y53: Ministry | Z53: Non-transfer item | AA53: Current | AB53: Current payments | AC53: Goods and services | AD53: Operating leases | AE53: Operating leases | AF53: General public services | AG53: Public administration and fiscal affairs | AH53: NAT | AI53: 0 | AJ53: 0 | AK53: 1167 | AL53: 402 | AM53: 402 | AN53: 402 | AO53: 0 | AP53: 490 | AQ53: 506 | AR53: 522 | AS53: 545 | AT53: 1 | AU53: =IF(Dataset[[#This Row],[Reporting level indicator]]=1,$AU$16,"Not applicable") -> Level 4 | AV53: =INDEX((t_ReportingLevelIndi[[Level 3]:[Level 4]]),MATCH(Dataset[[#This Row],[Econ4]],t_ReportingLevelIndi[Econ4],0),MATCH(Data!$AU$16,t_ReportingLevelIndi[[#Headers],[Level 3]:[Level 4]],0)) -> 1 | AW53: =Dataset[[#This Row],[2017/18_Source]]*Dataset[[#This Row],[Reporting level indicator]] -> 0 | AX53: =Dataset[[#This Row],[2018/19_Source]]*Dataset[[#This Row],[Reporting level indicator]] -> 0 | AY53: =Dataset[[#This Row],[2019/20_Source]]*Dataset[[#This Row],[Reporting level indicator]] -> 1167 | AZ53: =Dataset[[#This Row],[2020/21 Main appropriation_Source]]*Dataset[[#This Row],[Reporting level indicator]] -> 402 | BA53: =Dataset[[#This Row],[2020/21 Adjusted appropriation_Source]]*Dataset[[#This Row],[Reporting level indicator]] -> 402 | BB53: =Dataset[[#This Row],[2020/21 Revised estimate_Source]]*Dataset[[#This Row],[Reporting level indicator]] -> 402 | BC53: =Dataset[[#This Row],[2020/21 Preliminary outcome_Source]]*Dataset[[#This Row],[Reporting level indicator]] -> 0 | BD53: =Dataset[[#This Row],[2021/22 Baseline_Source]]*Dataset[[#This Row],[Reporting level indicator]] -> 490 | BE53: =Dataset[[#This Row],[2022/23 Baseline_Source]]*Dataset[[#This Row],[Reporting level indicator]] -> 506 | BF53: =Dataset[[#This Row],[2023/24 Baseline_Source]]*Dataset[[#This Row],[Reporting level indicator]] -> 522 | BG53: =Dataset[[#This Row],[2024/25 Baseline_Source]]*Dataset[[#This Row],[Reporting level indicator]] -> 545 | CL53: =Dataset[[#This Row],[2022/23 From - Spending review Topic 1]]+Dataset[[#This Row],[2022/23 From - Spending review Topic 2]]+Dataset[[#This Row],[2022/23 From - Spending review Topic 3]]+Dataset[[#This Row],[2022/23 From - Spending review Topic 4]]+Dataset[[#This Row],[2022/23 From - Other reallocations]] -> 0 | CM53: =Dataset[[#This Row],[2023/24 From - Spending review Topic 1]]+Dataset[[#This Row],[2023/24 From - Spending review Topic 2]]+Dataset[[#This Row],[2023/24 From - Spending review Topic 3]]+Dataset[[#This Row],[2023/24 From - Spending review Topic 4]]+Dataset[[#This Row],[2023/24 From - Other reallocations]] -> 0 | CN53: =Dataset[[#This Row],[2024/25 From - Spending review Topic 1]]+Dataset[[#This Row],[2024/25 From - Spending review Topic 2]]+Dataset[[#This Row],[2024/25 From - Spending review Topic 3]]+Dataset[[#This Row],[2024/25 From - Spending review Topic 4]]+Dataset[[#This Row],[2024/25 From - Other reallocations]] -> 0 | CO53: =Dataset[[#This Row],[2022/23 To - Spending review Topic 1]]+Dataset[[#This Row],[2022/23 To - Spending review Topic 2]]+Dataset[[#This Row],[2022/23 To - Spending review Topic 3]]+Dataset[[#This Row],[2022/23 To - Spending review Topic 4]]+Dataset[[#This Row],[2022/23 To - Other reallocations]] -> 0 | CP53: =Dataset[[#This Row],[2023/24 To - Spending review Topic 1]]+Dataset[[#This Row],[2023/24 To - Spending review Topic 2]]+Dataset[[#This Row],[2023/24 To - Spending review Topic 3]]+Dataset[[#This Row],[2023/24 To - Spending review Topic 4]]+Dataset[[#This Row],[2023/24 To - Other reallocations]] -> 0 | CQ53: =Dataset[[#This Row],[2024/25 To - Spending review Topic 1]]+Dataset[[#This Row],[2024/25 To - Spending review Topic 2]]+Dataset[[#This Row],[2024/25 To - Spending review Topic 3]]+Dataset[[#This Row],[2024/25 To - Spending review Topic 4]]+Dataset[[#This Row],[2024/25 To - Other reallocations]] -> 0 | CR53: =Dataset[[#This Row],[2022/23 Baseline]]+Dataset[[#This Row],[2022/23 From - Total]]+Dataset[[#This Row],[2022/23 To - Total]] -> 506 | CS53: =Dataset[[#This Row],[2023/24 Baseline]]+Dataset[[#This Row],[2023/24 From - Total]]+Dataset[[#This Row],[2023/24 To - Total]] -> 522 | CT53: =Dataset[[#This Row],[2024/25 Baseline]]+Dataset[[#This Row],[2024/25 From - Total]]+Dataset[[#This Row],[2024/25 To - Total]] -> 545
A54: NAT|Non-transfer item | B54: 11|Rental and hiring | C54: 2022_23 | D54: MTEF2022 | E54: 11 | F54: 1 | G54: 1 | H54: 16557 | I54: 36 | J54: 11 | K54: 01 | L54: 01 | M54: 16557 | N54: 36 | O54: 11|01|01 | P54: 1 | Q54: 1 | R54: 2 | S54: 34 | T54: 34 | U54: 01|01|02|34|34 | V54: National | W54: Public Service and Administration | X54: Administration | Y54: Ministry | Z54: Non-transfer item | AA54: Current | AB54: Current payments | AC54: Goods and services | AD54: Rental and hiring | AE54: Rental and hiring | AF54: General public services | AG54: Public administration and fiscal affairs | AH54: NAT | AI54: 0 | AJ54: 0 | AK54: 0 | AL54: 0 | AM54: 0 | AN54: 0 | AO54: 37 | AP54: 1009 | AQ54: 1130 | AR54: 1256 | AS54: 1312 | AT54: 1 | AU54: =IF(Dataset[[#This Row],[Reporting level indicator]]=1,$AU$16,"Not applicable") -> Level 4 | AV54: =INDEX((t_ReportingLevelIndi[[Level 3]:[Level 4]]),MATCH(Dataset[[#This Row],[Econ4]],t_ReportingLevelIndi[Econ4],0),MATCH(Data!$AU$16,t_ReportingLevelIndi[[#Headers],[Level 3]:[Level 4]],0)) -> 1 | AW54: =Dataset[[#This Row],[2017/18_Source]]*Dataset[[#This Row],[Reporting level indicator]] -> 0 | AX54: =Dataset[[#This Row],[2018/19_Source]]*Dataset[[#This Row],[Reporting level indicator]] -> 0 | AY54: =Dataset[[#This Row],[2019/20_Source]]*Dataset[[#This Row],[Reporting level indicator]] -> 0 | AZ54: =Dataset[[#This Row],[2020/21 Main appropriation_Source]]*Dataset[[#This Row],[Reporting level indicator]] -> 0 | BA54: =Dataset[[#This Row],[2020/21 Adjusted appropriation_Source]]*Dataset[[#This Row],[Reporting level indicator]] -> 0 | BB54: =Dataset[[#This Row],[2020/21 Revised estimate_Source]]*Dataset[[#This Row],[Reporting level indicator]] -> 0 | BC54: =Dataset[[#This Row],[2020/21 Preliminary outcome_Source]]*Dataset[[#This Row],[Reporting level indicator]] -> 37 | BD54: =Dataset[[#This Row],[2021/22 Baseline_Source]]*Dataset[[#This Row],[Reporting level indicator]] -> 1009 | BE54: =Dataset[[#This Row],[2022/23 Baseline_Source]]*Dataset[[#This Row],[Reporting level indicator]] -> 1130 | BF54: =Dataset[[#This Row],[2023/24 Baseline_Source]]*Dataset[[#This Row],[Reporting level indicator]] -> 1256 | BG54: =Dataset[[#This Row],[2024/25 Baseline_Source]]*Dataset[[#This Row],[Reporting level indicator]] -> 1312 | CL54: =Dataset[[#This Row],[2022/23 From - Spending review Topic 1]]+Dataset[[#This Row],[2022/23 From - Spending review Topic 2]]+Dataset[[#This Row],[2022/23 From - Spending review Topic 3]]+Dataset[[#This Row],[2022/23 From - Spending review Topic 4]]+Dataset[[#This Row],[2022/23 From - Other reallocations]] -> 0 | CM54: =Dataset[[#This Row],[2023/24 From - Spending review Topic 1]]+Dataset[[#This Row],[2023/24 From - Spending review Topic 2]]+Dataset[[#This Row],[2023/24 From - Spending review Topic 3]]+Dataset[[#This Row],[2023/24 From - Spending review Topic 4]]+Dataset[[#This Row],[2023/24 From - Other reallocations]] -> 0 | CN54: =Dataset[[#This Row],[2024/25 From - Spending review Topic 1]]+Dataset[[#This Row],[2024/25 From - Spending review Topic 2]]+Dataset[[#This Row],[2024/25 From - Spending review Topic 3]]+Dataset[[#This Row],[2024/25 From - Spending review Topic 4]]+Dataset[[#This Row],[2024/25 From - Other reallocations]] -> 0 | CO54: =Dataset[[#This Row],[2022/23 To - Spending review Topic 1]]+Dataset[[#This Row],[2022/23 To - Spending review Topic 2]]+Dataset[[#This Row],[2022/23 To - Spending review Topic 3]]+Dataset[[#This Row],[2022/23 To - Spending review Topic 4]]+Dataset[[#This Row],[2022/23 To - Other reallocations]] -> 0 | CP54: =Dataset[[#This Row],[2023/24 To - Spending review Topic 1]]+Dataset[[#This Row],[2023/24 To - Spending review Topic 2]]+Dataset[[#This Row],[2023/24 To - Spending review Topic 3]]+Dataset[[#This Row],[2023/24 To - Spending review Topic 4]]+Dataset[[#This Row],[2023/24 To - Other reallocations]] -> 0 | CQ54: =Dataset[[#This Row],[2024/25 To - Spending review Topic 1]]+Dataset[[#This Row],[2024/25 To - Spending review Topic 2]]+Dataset[[#This Row],[2024/25 To - Spending review Topic 3]]+Dataset[[#This Row],[2024/25 To - Spending review Topic 4]]+Dataset[[#This Row],[2024/25 To - Other reallocations]] -> 0 | CR54: =Dataset[[#This Row],[2022/23 Baseline]]+Dataset[[#This Row],[2022/23 From - Total]]+Dataset[[#This Row],[2022/23 To - Total]] -> 1130 | CS54: =Dataset[[#This Row],[2023/24 Baseline]]+Dataset[[#This Row],[2023/24 From - Total]]+Dataset[[#This Row],[2023/24 To - Total]] -> 1256 | CT54: =Dataset[[#This Row],[2024/25 Baseline]]+Dataset[[#This Row],[2024/25 From - Total]]+Dataset[[#This Row],[2024/25 To - Total]] -> 1312
A55: NAT|Non-transfer item | B55: 11|Property payments | C55: 2022_23 | D55: MTEF2022 | E55: 11 | F55: 1 | G55: 1 | H55: 16558 | I55: 37 | J55: 11 | K55: 01 | L55: 01 | M55: 16558 | N55: 37 | O55: 11|01|01 | P55: 1 | Q55: 1 | R55: 2 | S55: 35 | T55: 35 | U55: 01|01|02|35|35 | V55: National | W55: Public Service and Administration | X55: Administration | Y55: Ministry | Z55: Non-transfer item | AA55: Current | AB55: Current payments | AC55: Goods and services | AD55: Property payments | AE55: Property payments | AF55: General public services | AG55: Public administration and fiscal affairs | AH55: NAT | AI55: 0 | AJ55: 0 | AK55: 4 | AL55: 0 | AM55: 0 | AN55: 0 | AO55: 0 | AP55: 0 | AQ55: 0 | AR55: 0 | AS55: 0 | AT55: 1 | AU55: =IF(Dataset[[#This Row],[Reporting level indicator]]=1,$AU$16,"Not applicable") -> Level 4 | AV55: =INDEX((t_ReportingLevelIndi[[Level 3]:[Level 4]]),MATCH(Dataset[[#This Row],[Econ4]],t_ReportingLevelIndi[Econ4],0),MATCH(Data!$AU$16,t_ReportingLevelIndi[[#Headers],[Level 3]:[Level 4]],0)) -> 1 | AW55: =Dataset[[#This Row],[2017/18_Source]]*Dataset[[#This Row],[Reporting level indicator]] -> 0 | AX55: =Dataset[[#This Row],[2018/19_Source]]*Dataset[[#This Row],[Reporting level indicator]] -> 0 | AY55: =Dataset[[#This Row],[2019/20_Source]]*Dataset[[#This Row],[Reporting level indicator]] -> 4 | AZ55: =Dataset[[#This Row],[2020/21 Main appropriation_Source]]*Dataset[[#This Row],[Reporting level indicator]] -> 0 | BA55: =Dataset[[#This Row],[2020/21 Adjusted appropriation_Source]]*Dataset[[#This Row],[Reporting level indicator]] -> 0 | BB55: =Dataset[[#This Row],[2020/21 Revised estimate_Source]]*Dataset[[#This Row],[Reporting level indicator]] -> 0 | BC55: =Dataset[[#This Row],[2020/21 Preliminary outcome_Source]]*Dataset[[#This Row],[Reporting level indicator]] -> 0 | BD55: =Dataset[[#This Row],[2021/22 Baseline_Source]]*Dataset[[#This Row],[Reporting level indicator]] -> 0 | BE55: =Dataset[[#This Row],[2022/23 Baseline_Source]]*Dataset[[#This Row],[Reporting level indicator]] -> 0 | BF55: =Dataset[[#This Row],[2023/24 Baseline_Source]]*Dataset[[#This Row],[Reporting level indicator]] -> 0 | BG55: =Dataset[[#This Row],[2024/25 Baseline_Source]]*Dataset[[#This Row],[Reporting level indicator]] -> 0 | CL55: =Dataset[[#This Row],[2022/23 From - Spending review Topic 1]]+Dataset[[#This Row],[2022/23 From - Spending review Topic 2]]+Dataset[[#This Row],[2022/23 From - Spending review Topic 3]]+Dataset[[#This Row],[2022/23 From - Spending review Topic 4]]+Dataset[[#This Row],[2022/23 From - Other reallocations]] -> 0 | CM55: =Dataset[[#This Row],[2023/24 From - Spending review Topic 1]]+Dataset[[#This Row],[2023/24 From - Spending review Topic 2]]+Dataset[[#This Row],[2023/24 From - Spending review Topic 3]]+Dataset[[#This Row],[2023/24 From - Spending review Topic 4]]+Dataset[[#This Row],[2023/24 From - Other reallocations]] -> 0 | CN55: =Dataset[[#This Row],[2024/25 From - Spending review Topic 1]]+Dataset[[#This Row],[2024/25 From - Spending review Topic 2]]+Dataset[[#This Row],[2024/25 From - Spending review Topic 3]]+Dataset[[#This Row],[2024/25 From - Spending review Topic 4]]+Dataset[[#This Row],[2024/25 From - Other reallocations]] -> 0 | CO55: =Dataset[[#This Row],[2022/23 To - Spending review Topic 1]]+Dataset[[#This Row],[2022/23 To - Spending review Topic 2]]+Dataset[[#This Row],[2022/23 To - Spending review Topic 3]]+Dataset[[#This Row],[2022/23 To - Spending review Topic 4]]+Dataset[[#This Row],[2022/23 To - Other reallocations]] -> 0 | CP55: =Dataset[[#This Row],[2023/24 To - Spending review Topic 1]]+Dataset[[#This Row],[2023/24 To - Spending review Topic 2]]+Dataset[[#This Row],[2023/24 To - Spending review Topic 3]]+Dataset[[#This Row],[2023/24 To - Spending review Topic 4]]+Dataset[[#This Row],[2023/24 To - Other reallocations]] -> 0 | CQ55: =Dataset[[#This Row],[2024/25 To - Spending review Topic 1]]+Dataset[[#This Row],[2024/25 To - Spending review Topic 2]]+Dataset[[#This Row],[2024/25 To - Spending review Topic 3]]+Dataset[[#This Row],[2024/25 To - Spending review Topic 4]]+Dataset[[#This Row],[2024/25 To - Other reallocations]] -> 0 | CR55: =Dataset[[#This Row],[2022/23 Baseline]]+Dataset[[#This Row],[2022/23 From - Total]]+Dataset[[#This Row],[2022/23 To - Total]] -> 0 | CS55: =Dataset[[#This Row],[2023/24 Baseline]]+Dataset[[#This Row],[2023/24 From - Total]]+Dataset[[#This Row],[2023/24 To - Total]] -> 0 | CT55: =Dataset[[#This Row],[2024/25 Baseline]]+Dataset[[#This Row],[2024/25 From - Total]]+Dataset[[#This Row],[2024/25 To - Total]] -> 0
A56: NAT|Non-transfer item | B56: 11|Transport provided: Departmental activity | C56: 2022_23 | D56: MTEF2022 | E56: 11 | F56: 1 | G56: 1 | H56: 16559 | I56: 38 | J56: 11 | K56: 01 | L56: 01 | M56: 16559 | N56: 38 | O56: 11|01|01 | P56: 1 | Q56: 1 | R56: 2 | S56: 36 | T56: 36 | U56: 01|01|02|36|36 | V56: National | W56: Public Service and Administration | X56: Administration | Y56: Ministry | Z56: Non-transfer item | AA56: Current | AB56: Current payments | AC56: Goods and services | AD56: Transport provided: Departmental activity | AE56: Transport provided: Departmental activity | AF56: General public services | AG56: Public administration and fiscal affairs | AH56: NAT | AI56: 0 | AJ56: 57 | AK56: 0 | AL56: 0 | AM56: 0 | AN56: 0 | AO56: 0 | AP56: 0 | AQ56: 0 | AR56: 0 | AS56: 0 | AT56: 1 | AU56: =IF(Dataset[[#This Row],[Reporting level indicator]]=1,$AU$16,"Not applicable") -> Level 4 | AV56: =INDEX((t_ReportingLevelIndi[[Level 3]:[Level 4]]),MATCH(Dataset[[#This Row],[Econ4]],t_ReportingLevelIndi[Econ4],0),MATCH(Data!$AU$16,t_ReportingLevelIndi[[#Headers],[Level 3]:[Level 4]],0)) -> 1 | AW56: =Dataset[[#This Row],[2017/18_Source]]*Dataset[[#This Row],[Reporting level indicator]] -> 0 | AX56: =Dataset[[#This Row],[2018/19_Source]]*Dataset[[#This Row],[Reporting level indicator]] -> 57 | AY56: =Dataset[[#This Row],[2019/20_Source]]*Dataset[[#This Row],[Reporting level indicator]] -> 0 | AZ56: =Dataset[[#This Row],[2020/21 Main appropriation_Source]]*Dataset[[#This Row],[Reporting level indicator]] -> 0 | BA56: =Dataset[[#This Row],[2020/21 Adjusted appropriation_Source]]*Dataset[[#This Row],[Reporting level indicator]] -> 0 | BB56: =Dataset[[#This Row],[2020/21 Revised estimate_Source]]*Dataset[[#This Row],[Reporting level indicator]] -> 0 | BC56: =Dataset[[#This Row],[2020/21 Preliminary outcome_Source]]*Dataset[[#This Row],[Reporting level indicator]] -> 0 | BD56: =Dataset[[#This Row],[2021/22 Baseline_Source]]*Dataset[[#This Row],[Reporting level indicator]] -> 0 | BE56: =Dataset[[#This Row],[2022/23 Baseline_Source]]*Dataset[[#This Row],[Reporting level indicator]] -> 0 | BF56: =Dataset[[#This Row],[2023/24 Baseline_Source]]*Dataset[[#This Row],[Reporting level indicator]] -> 0 | BG56: =Dataset[[#This Row],[2024/25 Baseline_Source]]*Dataset[[#This Row],[Reporting level indicator]] -> 0 | CL56: =Dataset[[#This Row],[2022/23 From - Spending review Topic 1]]+Dataset[[#This Row],[2022/23 From - Spending review Topic 2]]+Dataset[[#This Row],[2022/23 From - Spending review Topic 3]]+Dataset[[#This Row],[2022/23 From - Spending review Topic 4]]+Dataset[[#This Row],[2022/23 From - Other reallocations]] -> 0 | CM56: =Dataset[[#This Row],[2023/24 From - Spending review Topic 1]]+Dataset[[#This Row],[2023/24 From - Spending review Topic 2]]+Dataset[[#This Row],[2023/24 From - Spending review Topic 3]]+Dataset[[#This Row],[2023/24 From - Spending review Topic 4]]+Dataset[[#This Row],[2023/24 From - Other reallocations]] -> 0 | CN56: =Dataset[[#This Row],[2024/25 From - Spending review Topic 1]]+Dataset[[#This Row],[2024/25 From - Spending review Topic 2]]+Dataset[[#This Row],[2024/25 From - Spending review Topic 3]]+Dataset[[#This Row],[2024/25 From - Spending review Topic 4]]+Dataset[[#This Row],[2024/25 From - Other reallocations]] -> 0 | CO56: =Dataset[[#This Row],[2022/23 To - Spending review Topic 1]]+Dataset[[#This Row],[2022/23 To - Spending review Topic 2]]+Dataset[[#This Row],[2022/23 To - Spending review Topic 3]]+Dataset[[#This Row],[2022/23 To - Spending review Topic 4]]+Dataset[[#This Row],[2022/23 To - Other reallocations]] -> 0 | CP56: =Dataset[[#This Row],[2023/24 To - Spending review Topic 1]]+Dataset[[#This Row],[2023/24 To - Spending review Topic 2]]+Dataset[[#This Row],[2023/24 To - Spending review Topic 3]]+Dataset[[#This Row],[2023/24 To - Spending review Topic 4]]+Dataset[[#This Row],[2023/24 To - Other reallocations]] -> 0 | CQ56: =Dataset[[#This Row],[2024/25 To - Spending review Topic 1]]+Dataset[[#This Row],[2024/25 To - Spending review Topic 2]]+Dataset[[#This Row],[2024/25 To - Spending review Topic 3]]+Dataset[[#This Row],[2024/25 To - Spending review Topic 4]]+Dataset[[#This Row],[2024/25 To - Other reallocations]] -> 0 | CR56: =Dataset[[#This Row],[2022/23 Baseline]]+Dataset[[#This Row],[2022/23 From - Total]]+Dataset[[#This Row],[2022/23 To - Total]] -> 0 | CS56: =Dataset[[#This Row],[2023/24 Baseline]]+Dataset[[#This Row],[2023/24 From - Total]]+Dataset[[#This Row],[2023/24 To - Total]] -> 0 | CT56: =Dataset[[#This Row],[2024/25 Baseline]]+Dataset[[#This Row],[2024/25 From - Total]]+Dataset[[#This Row],[2024/25 To - Total]] -> 0
A57: NAT|Non-transfer item | B57: 11|Travel and subsistence | C57: 2022_23 | D57: MTEF2022 | E57: 11 | F57: 1 | G57: 1 | H57: 16560 | I57: 39 | J57: 11 | K57: 01 | L57: 01 | M57: 16560 | N57: 39 | O57: 11|01|01 | P57: 1 | Q57: 1 | R57: 2 | S57: 37 | T57: 37 | U57: 01|01|02|37|37 | V57: National | W57: Public Service and Administration | X57: Administration | Y57: Ministry | Z57: Non-transfer item | AA57: Current | AB57: Current payments | AC57: Goods and services | AD57: Travel and subsistence | AE57: Travel and subsistence | AF57: General public services | AG57: Public administration and fiscal affairs | AH57: NAT | AI57: 9477 | AJ57: 11130 | AK57: 9215 | AL57: 7236 | AM57: 762 | AN57: 762 | AO57: 5957 | AP57: 6169 | AQ57: 5849 | AR57: 6561 | AS57: 6856 | AT57: 1 | AU57: =IF(Dataset[[#This Row],[Reporting level indicator]]=1,$AU$16,"Not applicable") -> Level 4 | AV57: =INDEX((t_ReportingLevelIndi[[Level 3]:[Level 4]]),MATCH(Dataset[[#This Row],[Econ4]],t_ReportingLevelIndi[Econ4],0),MATCH(Data!$AU$16,t_ReportingLevelIndi[[#Headers],[Level 3]:[Level 4]],0)) -> 1 | AW57: =Dataset[[#This Row],[2017/18_Source]]*Dataset[[#This Row],[Reporting level indicator]] -> 9477 | AX57: =Dataset[[#This Row],[2018/19_Source]]*Dataset[[#This Row],[Reporting level indicator]] -> 11130 | AY57: =Dataset[[#This Row],[2019/20_Source]]*Dataset[[#This Row],[Reporting level indicator]] -> 9215 | AZ57: =Dataset[[#This Row],[2020/21 Main appropriation_Source]]*Dataset[[#This Row],[Reporting level indicator]] -> 7236 | BA57: =Dataset[[#This Row],[2020/21 Adjusted appropriation_Source]]*Dataset[[#This Row],[Reporting level indicator]] -> 762 | BB57: =Dataset[[#This Row],[2020/21 Revised estimate_Source]]*Dataset[[#This Row],[Reporting level indicator]] -> 762 | BC57: =Dataset[[#This Row],[2020/21 Preliminary outcome_Source]]*Dataset[[#This Row],[Reporting level indicator]] -> 5957 | BD57: =Dataset[[#This Row],[2021/22 Baseline_Source]]*Dataset[[#This Row],[Reporting level indicator]] -> 6169 | BE57: =Dataset[[#This Row],[2022/23 Baseline_Source]]*Dataset[[#This Row],[Reporting level indicator]] -> 5849 | BF57: =Dataset[[#This Row],[2023/24 Baseline_Source]]*Dataset[[#This Row],[Reporting level indicator]] -> 6561 | BG57: =Dataset[[#This Row],[2024/25 Baseline_Source]]*Dataset[[#This Row],[Reporting level indicator]] -> 6856 | CL57: =Dataset[[#This Row],[2022/23 From - Spending review Topic 1]]+Dataset[[#This Row],[2022/23 From - Spending review Topic 2]]+Dataset[[#This Row],[2022/23 From - Spending review Topic 3]]+Dataset[[#This Row],[2022/23 From - Spending review Topic 4]]+Dataset[[#This Row],[2022/23 From - Other reallocations]] -> 0 | CM57: =Dataset[[#This Row],[2023/24 From - Spending review Topic 1]]+Dataset[[#This Row],[2023/24 From - Spending review Topic 2]]+Dataset[[#This Row],[2023/24 From - Spending review Topic 3]]+Dataset[[#This Row],[2023/24 From - Spending review Topic 4]]+Dataset[[#This Row],[2023/24 From - Other reallocations]] -> 0 | CN57: =Dataset[[#This Row],[2024/25 From - Spending review Topic 1]]+Dataset[[#This Row],[2024/25 From - Spending review Topic 2]]+Dataset[[#This Row],[2024/25 From - Spending review Topic 3]]+Dataset[[#This Row],[2024/25 From - Spending review Topic 4]]+Dataset[[#This Row],[2024/25 From - Other reallocations]] -> 0 | CO57: =Dataset[[#This Row],[2022/23 To - Spending review Topic 1]]+Dataset[[#This Row],[2022/23 To - Spending review Topic 2]]+Dataset[[#This Row],[2022/23 To - Spending review Topic 3]]+Dataset[[#This Row],[2022/23 To - Spending review Topic 4]]+Dataset[[#This Row],[2022/23 To - Other reallocations]] -> 0 | CP57: =Dataset[[#This Row],[2023/24 To - Spending review Topic 1]]+Dataset[[#This Row],[2023/24 To - Spending review Topic 2]]+Dataset[[#This Row],[2023/24 To - Spending review Topic 3]]+Dataset[[#This Row],[2023/24 To - Spending review Topic 4]]+Dataset[[#This Row],[2023/24 To - Other reallocations]] -> 0 | CQ57: =Dataset[[#This Row],[2024/25 To - Spending review Topic 1]]+Dataset[[#This Row],[2024/25 To - Spending review Topic 2]]+Dataset[[#This Row],[2024/25 To - Spending review Topic 3]]+Dataset[[#This Row],[2024/25 To - Spending review Topic 4]]+Dataset[[#This Row],[2024/25 To - Other reallocations]] -> 0 | CR57: =Dataset[[#This Row],[2022/23 Baseline]]+Dataset[[#This Row],[2022/23 From - Total]]+Dataset[[#This Row],[2022/23 To - Total]] -> 5849 | CS57: =Dataset[[#This Row],[2023/24 Baseline]]+Dataset[[#This Row],[2023/24 From - Total]]+Dataset[[#This Row],[2023/24 To - Total]] -> 6561 | CT57: =Dataset[[#This Row],[2024/25 Baseline]]+Dataset[[#This Row],[2024/25 From - Total]]+Dataset[[#This Row],[2024/25 To - Total]] -> 6856
A58: NAT|Non-transfer item | B58: 11|Training and development | C58: 2022_23 | D58: MTEF2022 | E58: 11 | F58: 1 | G58: 1 | H58: 16561 | I58: 40 | J58: 11 | K58: 01 | L58: 01 | M58: 16561 | N58: 40 | O58: 11|01|01 | P58: 1 | Q58: 1 | R58: 2 | S58: 38 | T58: 38 | U58: 01|01|02|38|38 | V58: National | W58: Public Service and Administration | X58: Administration | Y58: Ministry | Z58: Non-transfer item | AA58: Current | AB58: Current payments | AC58: Goods and services | AD58: Training and development | AE58: Training and development | AF58: General public services | AG58: Public administration and fiscal affairs | AH58: NAT | AI58: 0 | AJ58: 0 | AK58: 0 | AL58: 427 | AM58: 227 | AN58: 227 | AO58: 91 | AP58: 200 | AQ58: 250 | AR58: 300 | AS58: 313 | AT58: 1 | AU58: =IF(Dataset[[#This Row],[Reporting level indicator]]=1,$AU$16,"Not applicable") -> Level 4 | AV58: =INDEX((t_ReportingLevelIndi[[Level 3]:[Level 4]]),MATCH(Dataset[[#This Row],[Econ4]],t_ReportingLevelIndi[Econ4],0),MATCH(Data!$AU$16,t_ReportingLevelIndi[[#Headers],[Level 3]:[Level 4]],0)) -> 1 | AW58: =Dataset[[#This Row],[2017/18_Source]]*Dataset[[#This Row],[Reporting level indicator]] -> 0 | AX58: =Dataset[[#This Row],[2018/19_Source]]*Dataset[[#This Row],[Reporting level indicator]] -> 0 | AY58: =Dataset[[#This Row],[2019/20_Source]]*Dataset[[#This Row],[Reporting level indicator]] -> 0 | AZ58: =Dataset[[#This Row],[2020/21 Main appropriation_Source]]*Dataset[[#This Row],[Reporting level indicator]] -> 427 | BA58: =Dataset[[#This Row],[2020/21 Adjusted appropriation_Source]]*Dataset[[#This Row],[Reporting level indicator]] -> 227 | BB58: =Dataset[[#This Row],[2020/21 Revised estimate_Source]]*Dataset[[#This Row],[Reporting level indicator]] -> 227 | BC58: =Dataset[[#This Row],[2020/21 Preliminary outcome_Source]]*Dataset[[#This Row],[Reporting level indicator]] -> 91 | BD58: =Dataset[[#This Row],[2021/22 Baseline_Source]]*Dataset[[#This Row],[Reporting level indicator]] -> 200 | BE58: =Dataset[[#This Row],[2022/23 Baseline_Source]]*Dataset[[#This Row],[Reporting level indicator]] -> 250 | BF58: =Dataset[[#This Row],[2023/24 Baseline_Source]]*Dataset[[#This Row],[Reporting level indicator]] -> 300 | BG58: =Dataset[[#This Row],[2024/25 Baseline_Source]]*Dataset[[#This Row],[Reporting level indicator]] -> 313 | CL58: =Dataset[[#This Row],[2022/23 From - Spending review Topic 1]]+Dataset[[#This Row],[2022/23 From - Spending review Topic 2]]+Dataset[[#This Row],[2022/23 From - Spending review Topic 3]]+Dataset[[#This Row],[2022/23 From - Spending review Topic 4]]+Dataset[[#This Row],[2022/23 From - Other reallocations]] -> 0 | CM58: =Dataset[[#This Row],[2023/24 From - Spending review Topic 1]]+Dataset[[#This Row],[2023/24 From - Spending review Topic 2]]+Dataset[[#This Row],[2023/24 From - Spending review Topic 3]]+Dataset[[#This Row],[2023/24 From - Spending review Topic 4]]+Dataset[[#This Row],[2023/24 From - Other reallocations]] -> 0 | CN58: =Dataset[[#This Row],[2024/25 From - Spending review Topic 1]]+Dataset[[#This Row],[2024/25 From - Spending review Topic 2]]+Dataset[[#This Row],[2024/25 From - Spending review Topic 3]]+Dataset[[#This Row],[2024/25 From - Spending review Topic 4]]+Dataset[[#This Row],[2024/25 From - Other reallocations]] -> 0 | CO58: =Dataset[[#This Row],[2022/23 To - Spending review Topic 1]]+Dataset[[#This Row],[2022/23 To - Spending review Topic 2]]+Dataset[[#This Row],[2022/23 To - Spending review Topic 3]]+Dataset[[#This Row],[2022/23 To - Spending review Topic 4]]+Dataset[[#This Row],[2022/23 To - Other reallocations]] -> 0 | CP58: =Dataset[[#This Row],[2023/24 To - Spending review Topic 1]]+Dataset[[#This Row],[2023/24 To - Spending review Topic 2]]+Dataset[[#This Row],[2023/24 To - Spending review Topic 3]]+Dataset[[#This Row],[2023/24 To - Spending review Topic 4]]+Dataset[[#This Row],[2023/24 To - Other reallocations]] -> 0 | CQ58: =Dataset[[#This Row],[2024/25 To - Spending review Topic 1]]+Dataset[[#This Row],[2024/25 To - Spending review Topic 2]]+Dataset[[#This Row],[2024/25 To - Spending review Topic 3]]+Dataset[[#This Row],[2024/25 To - Spending review Topic 4]]+Dataset[[#This Row],[2024/25 To - Other reallocations]] -> 0 | CR58: =Dataset[[#This Row],[2022/23 Baseline]]+Dataset[[#This Row],[2022/23 From - Total]]+Dataset[[#This Row],[2022/23 To - Total]] -> 250 | CS58: =Dataset[[#This Row],[2023/24 Baseline]]+Dataset[[#This Row],[2023/24 From - Total]]+Dataset[[#This Row],[2023/24 To - Total]] -> 300 | CT58: =Dataset[[#This Row],[2024/25 Baseline]]+Dataset[[#This Row],[2024/25 From - Total]]+Dataset[[#This Row],[2024/25 To - Total]] -> 313
A59: NAT|Non-transfer item | B59: 11|Operating payments | C59: 2022_23 | D59: MTEF2022 | E59: 11 | F59: 1 | G59: 1 | H59: 16562 | I59: 41 | J59: 11 | K59: 01 | L59: 01 | M59: 16562 | N59: 41 | O59: 11|01|01 | P59: 1 | Q59: 1 | R59: 2 | S59: 39 | T59: 39 | U59: 01|01|02|39|39 | V59: National | W59: Public Service and Administration | X59: Administration | Y59: Ministry | Z59: Non-transfer item | AA59: Current | AB59: Current payments | AC59: Goods and services | AD59: Operating payments | AE59: Operating payments | AF59: General public services | AG59: Public administration and fiscal affairs | AH59: NAT | AI59: 449 | AJ59: 441 | AK59: 274 | AL59: 404 | AM59: 404 | AN59: 404 | AO59: 33 | AP59: 499 | AQ59: 1454 | AR59: 1611 | AS59: 1683 | AT59: 1 | AU59: =IF(Dataset[[#This Row],[Reporting level indicator]]=1,$AU$16,"Not applicable") -> Level 4 | AV59: =INDEX((t_ReportingLevelIndi[[Level 3]:[Level 4]]),MATCH(Dataset[[#This Row],[Econ4]],t_ReportingLevelIndi[Econ4],0),MATCH(Data!$AU$16,t_ReportingLevelIndi[[#Headers],[Level 3]:[Level 4]],0)) -> 1 | AW59: =Dataset[[#This Row],[2017/18_Source]]*Dataset[[#This Row],[Reporting level indicator]] -> 449 | AX59: =Dataset[[#This Row],[2018/19_Source]]*Dataset[[#This Row],[Reporting level indicator]] -> 441 | AY59: =Dataset[[#This Row],[2019/20_Source]]*Dataset[[#This Row],[Reporting level indicator]] -> 274 | AZ59: =Dataset[[#This Row],[2020/21 Main appropriation_Source]]*Dataset[[#This Row],[Reporting level indicator]] -> 404 | BA59: =Dataset[[#This Row],[2020/21 Adjusted appropriation_Source]]*Dataset[[#This Row],[Reporting level indicator]] -> 404 | BB59: =Dataset[[#This Row],[2020/21 Revised estimate_Source]]*Dataset[[#This Row],[Reporting level indicator]] -> 404 | BC59: =Dataset[[#This Row],[2020/21 Preliminary outcome_Source]]*Dataset[[#This Row],[Reporting level indicator]] -> 33 | BD59: =Dataset[[#This Row],[2021/22 Baseline_Source]]*Dataset[[#This Row],[Reporting level indicator]] -> 499 | BE59: =Dataset[[#This Row],[2022/23 Baseline_Source]]*Dataset[[#This Row],[Reporting level indicator]] -> 1454 | BF59: =Dataset[[#This Row],[2023/24 Baseline_Source]]*Dataset[[#This Row],[Reporting level indicator]] -> 1611 | BG59: =Dataset[[#This Row],[2024/25 Baseline_Source]]*Dataset[[#This Row],[Reporting level indicator]] -> 1683 | CL59: =Dataset[[#This Row],[2022/23 From - Spending review Topic 1]]+Dataset[[#This Row],[2022/23 From - Spending review Topic 2]]+Dataset[[#This Row],[2022/23 From - Spending review Topic 3]]+Dataset[[#This Row],[2022/23 From - Spending review Topic 4]]+Dataset[[#This Row],[2022/23 From - Other reallocations]] -> 0 | CM59: =Dataset[[#This Row],[2023/24 From - Spending review Topic 1]]+Dataset[[#This Row],[2023/24 From - Spending review Topic 2]]+Dataset[[#This Row],[2023/24 From - Spending review Topic 3]]+Dataset[[#This Row],[2023/24 From - Spending review Topic 4]]+Dataset[[#This Row],[2023/24 From - Other reallocations]] -> 0 | CN59: =Dataset[[#This Row],[2024/25 From - Spending review Topic 1]]+Dataset[[#This Row],[2024/25 From - Spending review Topic 2]]+Dataset[[#This Row],[2024/25 From - Spending review Topic 3]]+Dataset[[#This Row],[2024/25 From - Spending review Topic 4]]+Dataset[[#This Row],[2024/25 From - Other reallocations]] -> 0 | CO59: =Dataset[[#This Row],[2022/23 To - Spending review Topic 1]]+Dataset[[#This Row],[2022/23 To - Spending review Topic 2]]+Dataset[[#This Row],[2022/23 To - Spending review Topic 3]]+Dataset[[#This Row],[2022/23 To - Spending review Topic 4]]+Dataset[[#This Row],[2022/23 To - Other reallocations]] -> 0 | CP59: =Dataset[[#This Row],[2023/24 To - Spending review Topic 1]]+Dataset[[#This Row],[2023/24 To - Spending review Topic 2]]+Dataset[[#This Row],[2023/24 To - Spending review Topic 3]]+Dataset[[#This Row],[2023/24 To - Spending review Topic 4]]+Dataset[[#This Row],[2023/24 To - Other reallocations]] -> 0 | CQ59: =Dataset[[#This Row],[2024/25 To - Spending review Topic 1]]+Dataset[[#This Row],[2024/25 To - Spending review Topic 2]]+Dataset[[#This Row],[2024/25 To - Spending review Topic 3]]+Dataset[[#This Row],[2024/25 To - Spending review Topic 4]]+Dataset[[#This Row],[2024/25 To - Other reallocations]] -> 0 | CR59: =Dataset[[#This Row],[2022/23 Baseline]]+Dataset[[#This Row],[2022/23 From - Total]]+Dataset[[#This Row],[2022/23 To - Total]] -> 1454 | CS59: =Dataset[[#This Row],[2023/24 Baseline]]+Dataset[[#This Row],[2023/24 From - Total]]+Dataset[[#This Row],[2023/24 To - Total]] -> 1611 | CT59: =Dataset[[#This Row],[2024/25 Baseline]]+Dataset[[#This Row],[2024/25 From - Total]]+Dataset[[#This Row],[2024/25 To - Total]] -> 1683
A60: NAT|Non-transfer item | B60: 11|Venues and facilities | C60: 2022_23 | D60: MTEF2022 | E60: 11 | F60: 1 | G60: 1 | H60: 16563 | I60: 42 | J60: 11 | K60: 01 | L60: 01 | M60: 16563 | N60: 42 | O60: 11|01|01 | P60: 1 | Q60: 1 | R60: 2 | S60: 40 | T60: 40 | U60: 01|01|02|40|40 | V60: National | W60: Public Service and Administration | X60: Administration | Y60: Ministry | Z60: Non-transfer item | AA60: Current | AB60: Current payments | AC60: Goods and services | AD60: Venues and facilities | AE60: Venues and facilities | AF60: General public services | AG60: Public administration and fiscal affairs | AH60: NAT | AI60: 72 | AJ60: 364 | AK60: 573 | AL60: 98 | AM60: 98 | AN60: 98 | AO60: 121 | AP60: 73 | AQ60: 76 | AR60: 80 | AS60: 84 | AT60: 1 | AU60: =IF(Dataset[[#This Row],[Reporting level indicator]]=1,$AU$16,"Not applicable") -> Level 4 | AV60: =INDEX((t_ReportingLevelIndi[[Level 3]:[Level 4]]),MATCH(Dataset[[#This Row],[Econ4]],t_ReportingLevelIndi[Econ4],0),MATCH(Data!$AU$16,t_ReportingLevelIndi[[#Headers],[Level 3]:[Level 4]],0)) -> 1 | AW60: =Dataset[[#This Row],[2017/18_Source]]*Dataset[[#This Row],[Reporting level indicator]] -> 72 | AX60: =Dataset[[#This Row],[2018/19_Source]]*Dataset[[#This Row],[Reporting level indicator]] -> 364 | AY60: =Dataset[[#This Row],[2019/20_Source]]*Dataset[[#This Row],[Reporting level indicator]] -> 573 | AZ60: =Dataset[[#This Row],[2020/21 Main appropriation_Source]]*Dataset[[#This Row],[Reporting level indicator]] -> 98 | BA60: =Dataset[[#This Row],[2020/21 Adjusted appropriation_Source]]*Dataset[[#This Row],[Reporting level indicator]] -> 98 | BB60: =Dataset[[#This Row],[2020/21 Revised estimate_Source]]*Dataset[[#This Row],[Reporting level indicator]] -> 98 | BC60: =Dataset[[#This Row],[2020/21 Preliminary outcome_Source]]*Dataset[[#This Row],[Reporting level indicator]] -> 121 | BD60: =Dataset[[#This Row],[2021/22 Baseline_Source]]*Dataset[[#This Row],[Reporting level indicator]] -> 73 | BE60: =Dataset[[#This Row],[2022/23 Baseline_Source]]*Dataset[[#This Row],[Reporting level indicator]] -> 76 | BF60: =Dataset[[#This Row],[2023/24 Baseline_Source]]*Dataset[[#This Row],[Reporting level indicator]] -> 80 | BG60: =Dataset[[#This Row],[2024/25 Baseline_Source]]*Dataset[[#This Row],[Reporting level indicator]] -> 84 | CL60: =Dataset[[#This Row],[2022/23 From - Spending review Topic 1]]+Dataset[[#This Row],[2022/23 From - Spending review Topic 2]]+Dataset[[#This Row],[2022/23 From - Spending review Topic 3]]+Dataset[[#This Row],[2022/23 From - Spending review Topic 4]]+Dataset[[#This Row],[2022/23 From - Other reallocations]] -> 0 | CM60: =Dataset[[#This Row],[2023/24 From - Spending review Topic 1]]+Dataset[[#This Row],[2023/24 From - Spending review Topic 2]]+Dataset[[#This Row],[2023/24 From - Spending review Topic 3]]+Dataset[[#This Row],[2023/24 From - Spending review Topic 4]]+Dataset[[#This Row],[2023/24 From - Other reallocations]] -> 0 | CN60: =Dataset[[#This Row],[2024/25 From - Spending review Topic 1]]+Dataset[[#This Row],[2024/25 From - Spending review Topic 2]]+Dataset[[#This Row],[2024/25 From - Spending review Topic 3]]+Dataset[[#This Row],[2024/25 From - Spending review Topic 4]]+Dataset[[#This Row],[2024/25 From - Other reallocations]] -> 0 | CO60: =Dataset[[#This Row],[2022/23 To - Spending review Topic 1]]+Dataset[[#This Row],[2022/23 To - Spending review Topic 2]]+Dataset[[#This Row],[2022/23 To - Spending review Topic 3]]+Dataset[[#This Row],[2022/23 To - Spending review Topic 4]]+Dataset[[#This Row],[2022/23 To - Other reallocations]] -> 0 | CP60: =Dataset[[#This Row],[2023/24 To - Spending review Topic 1]]+Dataset[[#This Row],[2023/24 To - Spending review Topic 2]]+Dataset[[#This Row],[2023/24 To - Spending review Topic 3]]+Dataset[[#This Row],[2023/24 To - Spending review Topic 4]]+Dataset[[#This Row],[2023/24 To - Other reallocations]] -> 0 | CQ60: =Dataset[[#This Row],[2024/25 To - Spending review Topic 1]]+Dataset[[#This Row],[2024/25 To - Spending review Topic 2]]+Dataset[[#This Row],[2024/25 To - Spending review Topic 3]]+Dataset[[#This Row],[2024/25 To - Spending review Topic 4]]+Dataset[[#This Row],[2024/25 To - Other reallocations]] -> 0 | CR60: =Dataset[[#This Row],[2022/23 Baseline]]+Dataset[[#This Row],[2022/23 From - Total]]+Dataset[[#This Row],[2022/23 To - Total]] -> 76 | CS60: =Dataset[[#This Row],[2023/24 Baseline]]+Dataset[[#This Row],[2023/24 From - Total]]+Dataset[[#This Row],[2023/24 To - Total]] -> 80 | CT60: =Dataset[[#This Row],[2024/25 Baseline]]+Dataset[[#This Row],[2024/25 From - Total]]+Dataset[[#This Row],[2024/25 To - Total]] -> 84
A61: NAT|Non-transfer item | B61: 11|Interest (Incl. interest on unitary payments (PPP)) | C61: 2022_23 | D61: MTEF2022 | E61: 11 | F61: 1 | G61: 1 | H61: 16564 | I61: 43 | J61: 11 | K61: 01 | L61: 01 | M61: 16564 | N61: 43 | O61: 11|01|01 | P61: 1 | Q61: 1 | R61: 3 | S61: 41 | T61: 41 | U61: 01|01|03|41|41 | V61: National | W61: Public Service and Administration | X61: Administration | Y61: Ministry | Z61: Non-transfer item | AA61: Current | AB61: Current payments | AC61: Interest and rent on land | AD61: Interest (Incl. interest on unitary payments (PPP)) | AE61: Interest (Incl. interest on unitary payments (PPP)) | AF61: General public services | AG61: Public administration and fiscal affairs | AH61: NAT | AI61: 0 | AJ61: 0 | AK61: 0 | AL61: 0 | AM61: 0 | AN61: 0 | AO61: 0 | AP61: 0 | AQ61: 0 | AR61: 0 | AS61: 0 | AT61: 0 | AU61: =IF(Dataset[[#This Row],[Reporting level indicator]]=1,$AU$16,"Not applicable") -> Level 4 | AV61: =INDEX((t_ReportingLevelIndi[[Level 3]:[Level 4]]),MATCH(Dataset[[#This Row],[Econ4]],t_ReportingLevelIndi[Econ4],0),MATCH(Data!$AU$16,t_ReportingLevelIndi[[#Headers],[Level 3]:[Level 4]],0)) -> 1 | AW61: =Dataset[[#This Row],[2017/18_Source]]*Dataset[[#This Row],[Reporting level indicator]] -> 0 | AX61: =Dataset[[#This Row],[2018/19_Source]]*Dataset[[#This Row],[Reporting level indicator]] -> 0 | AY61: =Dataset[[#This Row],[2019/20_Source]]*Dataset[[#This Row],[Reporting level indicator]] -> 0 | AZ61: =Dataset[[#This Row],[2020/21 Main appropriation_Source]]*Dataset[[#This Row],[Reporting level indicator]] -> 0 | BA61: =Dataset[[#This Row],[2020/21 Adjusted appropriation_Source]]*Dataset[[#This Row],[Reporting level indicator]] -> 0 | BB61: =Dataset[[#This Row],[2020/21 Revised estimate_Source]]*Dataset[[#This Row],[Reporting level indicator]] -> 0 | BC61: =Dataset[[#This Row],[2020/21 Preliminary outcome_Source]]*Dataset[[#This Row],[Reporting level indicator]] -> 0 | BD61: =Dataset[[#This Row],[2021/22 Baseline_Source]]*Dataset[[#This Row],[Reporting level indicator]] -> 0 | BE61: =Dataset[[#This Row],[2022/23 Baseline_Source]]*Dataset[[#This Row],[Reporting level indicator]] -> 0 | BF61: =Dataset[[#This Row],[2023/24 Baseline_Source]]*Dataset[[#This Row],[Reporting level indicator]] -> 0 | BG61: =Dataset[[#This Row],[2024/25 Baseline_Source]]*Dataset[[#This Row],[Reporting level indicator]] -> 0 | CL61: =Dataset[[#This Row],[2022/23 From - Spending review Topic 1]]+Dataset[[#This Row],[2022/23 From - Spending review Topic 2]]+Dataset[[#This Row],[2022/23 From - Spending review Topic 3]]+Dataset[[#This Row],[2022/23 From - Spending review Topic 4]]+Dataset[[#This Row],[2022/23 From - Other reallocations]] -> 0 | CM61: =Dataset[[#This Row],[2023/24 From - Spending review Topic 1]]+Dataset[[#This Row],[2023/24 From - Spending review Topic 2]]+Dataset[[#This Row],[2023/24 From - Spending review Topic 3]]+Dataset[[#This Row],[2023/24 From - Spending review Topic 4]]+Dataset[[#This Row],[2023/24 From - Other reallocations]] -> 0 | CN61: =Dataset[[#This Row],[2024/25 From - Spending review Topic 1]]+Dataset[[#This Row],[2024/25 From - Spending review Topic 2]]+Dataset[[#This Row],[2024/25 From - Spending review Topic 3]]+Dataset[[#This Row],[2024/25 From - Spending review Topic 4]]+Dataset[[#This Row],[2024/25 From - Other reallocations]] -> 0 | CO61: =Dataset[[#This Row],[2022/23 To - Spending review Topic 1]]+Dataset[[#This Row],[2022/23 To - Spending review Topic 2]]+Dataset[[#This Row],[2022/23 To - Spending review Topic 3]]+Dataset[[#This Row],[2022/23 To - Spending review Topic 4]]+Dataset[[#This Row],[2022/23 To - Other reallocations]] -> 0 | CP61: =Dataset[[#This Row],[2023/24 To - Spending review Topic 1]]+Dataset[[#This Row],[2023/24 To - Spending review Topic 2]]+Dataset[[#This Row],[2023/24 To - Spending review Topic 3]]+Dataset[[#This Row],[2023/24 To - Spending review Topic 4]]+Dataset[[#This Row],[2023/24 To - Other reallocations]] -> 0 | CQ61: =Dataset[[#This Row],[2024/25 To - Spending review Topic 1]]+Dataset[[#This Row],[2024/25 To - Spending review Topic 2]]+Dataset[[#This Row],[2024/25 To - Spending review Topic 3]]+Dataset[[#This Row],[2024/25 To - Spending review Topic 4]]+Dataset[[#This Row],[2024/25 To - Other reallocations]] -> 0 | CR61: =Dataset[[#This Row],[2022/23 Baseline]]+Dataset[[#This Row],[2022/23 From - Total]]+Dataset[[#This Row],[2022/23 To - Total]] -> 0 | CS61: =Dataset[[#This Row],[2023/24 Baseline]]+Dataset[[#This Row],[2023/24 From - Total]]+Dataset[[#This Row],[2023/24 To - Total]] -> 0 | CT61: =Dataset[[#This Row],[2024/25 Baseline]]+Dataset[[#This Row],[2024/25 From - Total]]+Dataset[[#This Row],[2024/25 To - Total]] -> 0
A62: NAT|Non-transfer item | B62: 11|Rent on land | C62: 2022_23 | D62: MTEF2022 | E62: 11 | F62: 1 | G62: 1 | H62: 16565 | I62: 44 | J62: 11 | K62: 01 | L62: 01 | M62: 16565 | N62: 44 | O62: 11|01|01 | P62: 1 | Q62: 1 | R62: 3 | S62: 42 | T62: 42 | U62: 01|01|03|42|42 | V62: National | W62: Public Service and Administration | X62: Administration | Y62: Ministry | Z62: Non-transfer item | AA62: Current | AB62: Current payments | AC62: Interest and rent on land | AD62: Rent on land | AE62: Rent on land | AF62: General public services | AG62: Public administration and fiscal affairs | AH62: NAT | AI62: 0 | AJ62: 0 | AK62: 0 | AL62: 0 | AM62: 0 | AN62: 0 | AO62: 0 | AP62: 0 | AQ62: 0 | AR62: 0 | AS62: 0 | AT62: 0 | AU62: =IF(Dataset[[#This Row],[Reporting level indicator]]=1,$AU$16,"Not applicable") -> Level 4 | AV62: =INDEX((t_ReportingLevelIndi[[Level 3]:[Level 4]]),MATCH(Dataset[[#This Row],[Econ4]],t_ReportingLevelIndi[Econ4],0),MATCH(Data!$AU$16,t_ReportingLevelIndi[[#Headers],[Level 3]:[Level 4]],0)) -> 1 | AW62: =Dataset[[#This Row],[2017/18_Source]]*Dataset[[#This Row],[Reporting level indicator]] -> 0 | AX62: =Dataset[[#This Row],[2018/19_Source]]*Dataset[[#This Row],[Reporting level indicator]] -> 0 | AY62: =Dataset[[#This Row],[2019/20_Source]]*Dataset[[#This Row],[Reporting level indicator]] -> 0 | AZ62: =Dataset[[#This Row],[2020/21 Main appropriation_Source]]*Dataset[[#This Row],[Reporting level indicator]] -> 0 | BA62: =Dataset[[#This Row],[2020/21 Adjusted appropriation_Source]]*Dataset[[#This Row],[Reporting level indicator]] -> 0 | BB62: =Dataset[[#This Row],[2020/21 Revised estimate_Source]]*Dataset[[#This Row],[Reporting level indicator]] -> 0 | BC62: =Dataset[[#This Row],[2020/21 Preliminary outcome_Source]]*Dataset[[#This Row],[Reporting level indicator]] -> 0 | BD62: =Dataset[[#This Row],[2021/22 Baseline_Source]]*Dataset[[#This Row],[Reporting level indicator]] -> 0 | BE62: =Dataset[[#This Row],[2022/23 Baseline_Source]]*Dataset[[#This Row],[Reporting level indicator]] -> 0 | BF62: =Dataset[[#This Row],[2023/24 Baseline_Source]]*Dataset[[#This Row],[Reporting level indicator]] -> 0 | BG62: =Dataset[[#This Row],[2024/25 Baseline_Source]]*Dataset[[#This Row],[Reporting level indicator]] -> 0 | CL62: =Dataset[[#This Row],[2022/23 From - Spending review Topic 1]]+Dataset[[#This Row],[2022/23 From - Spending review Topic 2]]+Dataset[[#This Row],[2022/23 From - Spending review Topic 3]]+Dataset[[#This Row],[2022/23 From - Spending review Topic 4]]+Dataset[[#This Row],[2022/23 From - Other reallocations]] -> 0 | CM62: =Dataset[[#This Row],[2023/24 From - Spending review Topic 1]]+Dataset[[#This Row],[2023/24 From - Spending review Topic 2]]+Dataset[[#This Row],[2023/24 From - Spending review Topic 3]]+Dataset[[#This Row],[2023/24 From - Spending review Topic 4]]+Dataset[[#This Row],[2023/24 From - Other reallocations]] -> 0 | CN62: =Dataset[[#This Row],[2024/25 From - Spending review Topic 1]]+Dataset[[#This Row],[2024/25 From - Spending review Topic 2]]+Dataset[[#This Row],[2024/25 From - Spending review Topic 3]]+Dataset[[#This Row],[2024/25 From - Spending review Topic 4]]+Dataset[[#This Row],[2024/25 From - Other reallocations]] -> 0 | CO62: =Dataset[[#This Row],[2022/23 To - Spending review Topic 1]]+Dataset[[#This Row],[2022/23 To - Spending review Topic 2]]+Dataset[[#This Row],[2022/23 To - Spending review Topic 3]]+Dataset[[#This Row],[2022/23 To - Spending review Topic 4]]+Dataset[[#This Row],[2022/23 To - Other reallocations]] -> 0 | CP62: =Dataset[[#This Row],[2023/24 To - Spending review Topic 1]]+Dataset[[#This Row],[2023/24 To - Spending review Topic 2]]+Dataset[[#This Row],[2023/24 To - Spending review Topic 3]]+Dataset[[#This Row],[2023/24 To - Spending review Topic 4]]+Dataset[[#This Row],[2023/24 To - Other reallocations]] -> 0 | CQ62: =Dataset[[#This Row],[2024/25 To - Spending review Topic 1]]+Dataset[[#This Row],[2024/25 To - Spending review Topic 2]]+Dataset[[#This Row],[2024/25 To - Spending review Topic 3]]+Dataset[[#This Row],[2024/25 To - Spending review Topic 4]]+Dataset[[#This Row],[2024/25 To - Other reallocations]] -> 0 | CR62: =Dataset[[#This Row],[2022/23 Baseline]]+Dataset[[#This Row],[2022/23 From - Total]]+Dataset[[#This Row],[2022/23 To - Total]] -> 0 | CS62: =Dataset[[#This Row],[2023/24 Baseline]]+Dataset[[#This Row],[2023/24 From - Total]]+Dataset[[#This Row],[2023/24 To - Total]] -> 0 | CT62: =Dataset[[#This Row],[2024/25 Baseline]]+Dataset[[#This Row],[2024/25 From - Total]]+Dataset[[#This Row],[2024/25 To - Total]] -> 0
A63: NAT|Non-transfer item | B63: 11|Provincial Revenue Funds | C63: 2022_23 | D63: MTEF2022 | E63: 11 | F63: 1 | G63: 1 | H63: 16566 | I63: 45 | J63: 11 | K63: 01 | L63: 01 | M63: 16566 | N63: 45 | O63: 11|01|01 | P63: 1 | Q63: 2 | R63: 4 | S63: 43 | T63: 43 | U63: 01|02|04|43|43 | V63: National | W63: Public Service and Administration | X63: Administration | Y63: Ministry | Z63: Not available | AA63: Current | AB63: Transfers and subsidies | AC63: Provinces and municipalities | AD63: Provinces | AE63: Provincial Revenue Funds | AF63: General public services | AG63: Public administration and fiscal affairs | AH63: NAT | AI63: 0 | AJ63: 0 | AK63: 0 | AL63: 0 | AM63: 0 | AN63: 0 | AO63: 0 | AP63: 0 | AQ63: 0 | AR63: 0 | AS63: 0 | AT63: 0 | AU63: =IF(Dataset[[#This Row],[Reporting level indicator]]=1,$AU$16,"Not applicable") -> Level 4 | AV63: =INDEX((t_ReportingLevelIndi[[Level 3]:[Level 4]]),MATCH(Dataset[[#This Row],[Econ4]],t_ReportingLevelIndi[Econ4],0),MATCH(Data!$AU$16,t_ReportingLevelIndi[[#Headers],[Level 3]:[Level 4]],0)) -> 1 | AW63: =Dataset[[#This Row],[2017/18_Source]]*Dataset[[#This Row],[Reporting level indicator]] -> 0 | AX63: =Dataset[[#This Row],[2018/19_Source]]*Dataset[[#This Row],[Reporting level indicator]] -> 0 | AY63: =Dataset[[#This Row],[2019/20_Source]]*Dataset[[#This Row],[Reporting level indicator]] -> 0 | AZ63: =Dataset[[#This Row],[2020/21 Main appropriation_Source]]*Dataset[[#This Row],[Reporting level indicator]] -> 0 | BA63: =Dataset[[#This Row],[2020/21 Adjusted appropriation_Source]]*Dataset[[#This Row],[Reporting level indicator]] -> 0 | BB63: =Dataset[[#This Row],[2020/21 Revised estimate_Source]]*Dataset[[#This Row],[Reporting level indicator]] -> 0 | BC63: =Dataset[[#This Row],[2020/21 Preliminary outcome_Source]]*Dataset[[#This Row],[Reporting level indicator]] -> 0 | BD63: =Dataset[[#This Row],[2021/22 Baseline_Source]]*Dataset[[#This Row],[Reporting level indicator]] -> 0 | BE63: =Dataset[[#This Row],[2022/23 Baseline_Source]]*Dataset[[#This Row],[Reporting level indicator]] -> 0 | BF63: =Dataset[[#This Row],[2023/24 Baseline_Source]]*Dataset[[#This Row],[Reporting level indicator]] -> 0 | BG63: =Dataset[[#This Row],[2024/25 Baseline_Source]]*Dataset[[#This Row],[Reporting level indicator]] -> 0 | CL63: =Dataset[[#This Row],[2022/23 From - Spending review Topic 1]]+Dataset[[#This Row],[2022/23 From - Spending review Topic 2]]+Dataset[[#This Row],[2022/23 From - Spending review Topic 3]]+Dataset[[#This Row],[2022/23 From - Spending review Topic 4]]+Dataset[[#This Row],[2022/23 From - Other reallocations]] -> 0 | CM63: =Dataset[[#This Row],[2023/24 From - Spending review Topic 1]]+Dataset[[#This Row],[2023/24 From - Spending review Topic 2]]+Dataset[[#This Row],[2023/24 From - Spending review Topic 3]]+Dataset[[#This Row],[2023/24 From - Spending review Topic 4]]+Dataset[[#This Row],[2023/24 From - Other reallocations]] -> 0 | CN63: =Dataset[[#This Row],[2024/25 From - Spending review Topic 1]]+Dataset[[#This Row],[2024/25 From - Spending review Topic 2]]+Dataset[[#This Row],[2024/25 From - Spending review Topic 3]]+Dataset[[#This Row],[2024/25 From - Spending review Topic 4]]+Dataset[[#This Row],[2024/25 From - Other reallocations]] -> 0 | CO63: =Dataset[[#This Row],[2022/23 To - Spending review Topic 1]]+Dataset[[#This Row],[2022/23 To - Spending review Topic 2]]+Dataset[[#This Row],[2022/23 To - Spending review Topic 3]]+Dataset[[#This Row],[2022/23 To - Spending review Topic 4]]+Dataset[[#This Row],[2022/23 To - Other reallocations]] -> 0 | CP63: =Dataset[[#This Row],[2023/24 To - Spending review Topic 1]]+Dataset[[#This Row],[2023/24 To - Spending review Topic 2]]+Dataset[[#This Row],[2023/24 To - Spending review Topic 3]]+Dataset[[#This Row],[2023/24 To - Spending review Topic 4]]+Dataset[[#This Row],[2023/24 To - Other reallocations]] -> 0 | CQ63: =Dataset[[#This Row],[2024/25 To - Spending review Topic 1]]+Dataset[[#This Row],[2024/25 To - Spending review Topic 2]]+Dataset[[#This Row],[2024/25 To - Spending review Topic 3]]+Dataset[[#This Row],[2024/25 To - Spending review Topic 4]]+Dataset[[#This Row],[2024/25 To - Other reallocations]] -> 0 | CR63: =Dataset[[#This Row],[2022/23 Baseline]]+Dataset[[#This Row],[2022/23 From - Total]]+Dataset[[#This Row],[2022/23 To - Total]] -> 0 | CS63: =Dataset[[#This Row],[2023/24 Baseline]]+Dataset[[#This Row],[2023/24 From - Total]]+Dataset[[#This Row],[2023/24 To - Total]] -> 0 | CT63: =Dataset[[#This Row],[2024/25 Baseline]]+Dataset[[#This Row],[2024/25 From - Total]]+Dataset[[#This Row],[2024/25 To - Total]] -> 0
A64: NAT|Non-transfer item | B64: 11|Provincial agencies and funds | C64: 2022_23 | D64: MTEF2022 | E64: 11 | F64: 1 | G64: 1 | H64: 16567 | I64: 46 | J64: 11 | K64: 01 | L64: 01 | M64: 16567 | N64: 46 | O64: 11|01|01 | P64: 1 | Q64: 2 | R64: 4 | S64: 43 | T64: 44 | U64: 01|02|04|43|44 | V64: National | W64: Public Service and Administration | X64: Administration | Y64: Ministry | Z64: Not available | AA64: Current | AB64: Transfers and subsidies | AC64: Provinces and municipalities | AD64: Provinces | AE64: Provincial agencies and funds | AF64: General public services | AG64: Public administration and fiscal affairs | AH64: NAT | AI64: 0 | AJ64: 0 | AK64: 0 | AL64: 0 | AM64: 0 | AN64: 0 | AO64: 0 | AP64: 0 | AQ64: 0 | AR64: 0 | AS64: 0 | AT64: 0 | AU64: =IF(Dataset[[#This Row],[Reporting level indicator]]=1,$AU$16,"Not applicable") -> Level 4 | AV64: =INDEX((t_ReportingLevelIndi[[Level 3]:[Level 4]]),MATCH(Dataset[[#This Row],[Econ4]],t_ReportingLevelIndi[Econ4],0),MATCH(Data!$AU$16,t_ReportingLevelIndi[[#Headers],[Level 3]:[Level 4]],0)) -> 1 | AW64: =Dataset[[#This Row],[2017/18_Source]]*Dataset[[#This Row],[Reporting level indicator]] -> 0 | AX64: =Dataset[[#This Row],[2018/19_Source]]*Dataset[[#This Row],[Reporting level indicator]] -> 0 | AY64: =Dataset[[#This Row],[2019/20_Source]]*Dataset[[#This Row],[Reporting level indicator]] -> 0 | AZ64: =Dataset[[#This Row],[2020/21 Main appropriation_Source]]*Dataset[[#This Row],[Reporting level indicator]] -> 0 | BA64: =Dataset[[#This Row],[2020/21 Adjusted appropriation_Source]]*Dataset[[#This Row],[Reporting level indicator]] -> 0 | BB64: =Dataset[[#This Row],[2020/21 Revised estimate_Source]]*Dataset[[#This Row],[Reporting level indicator]] -> 0 | BC64: =Dataset[[#This Row],[2020/21 Preliminary outcome_Source]]*Dataset[[#This Row],[Reporting level indicator]] -> 0 | BD64: =Dataset[[#This Row],[2021/22 Baseline_Source]]*Dataset[[#This Row],[Reporting level indicator]] -> 0 | BE64: =Dataset[[#This Row],[2022/23 Baseline_Source]]*Dataset[[#This Row],[Reporting level indicator]] -> 0 | BF64: =Dataset[[#This Row],[2023/24 Baseline_Source]]*Dataset[[#This Row],[Reporting level indicator]] -> 0 | BG64: =Dataset[[#This Row],[2024/25 Baseline_Source]]*Dataset[[#This Row],[Reporting level indicator]] -> 0 | CL64: =Dataset[[#This Row],[2022/23 From - Spending review Topic 1]]+Dataset[[#This Row],[2022/23 From - Spending review Topic 2]]+Dataset[[#This Row],[2022/23 From - Spending review Topic 3]]+Dataset[[#This Row],[2022/23 From - Spending review Topic 4]]+Dataset[[#This Row],[2022/23 From - Other reallocations]] -> 0 | CM64: =Dataset[[#This Row],[2023/24 From - Spending review Topic 1]]+Dataset[[#This Row],[2023/24 From - Spending review Topic 2]]+Dataset[[#This Row],[2023/24 From - Spending review Topic 3]]+Dataset[[#This Row],[2023/24 From - Spending review Topic 4]]+Dataset[[#This Row],[2023/24 From - Other reallocations]] -> 0 | CN64: =Dataset[[#This Row],[2024/25 From - Spending review Topic 1]]+Dataset[[#This Row],[2024/25 From - Spending review Topic 2]]+Dataset[[#This Row],[2024/25 From - Spending review Topic 3]]+Dataset[[#This Row],[2024/25 From - Spending review Topic 4]]+Dataset[[#This Row],[2024/25 From - Other reallocations]] -> 0 | CO64: =Dataset[[#This Row],[2022/23 To - Spending review Topic 1]]+Dataset[[#This Row],[2022/23 To - Spending review Topic 2]]+Dataset[[#This Row],[2022/23 To - Spending review Topic 3]]+Dataset[[#This Row],[2022/23 To - Spending review Topic 4]]+Dataset[[#This Row],[2022/23 To - Other reallocations]] -> 0 | CP64: =Dataset[[#This Row],[2023/24 To - Spending review Topic 1]]+Dataset[[#This Row],[2023/24 To - Spending review Topic 2]]+Dataset[[#This Row],[2023/24 To - Spending review Topic 3]]+Dataset[[#This Row],[2023/24 To - Spending review Topic 4]]+Dataset[[#This Row],[2023/24 To - Other reallocations]] -> 0 | CQ64: =Dataset[[#This Row],[2024/25 To - Spending review Topic 1]]+Dataset[[#This Row],[2024/25 To - Spending review Topic 2]]+Dataset[[#This Row],[2024/25 To - Spending review Topic 3]]+Dataset[[#This Row],[2024/25 To - Spending review Topic 4]]+Dataset[[#This Row],[2024/25 To - Other reallocations]] -> 0 | CR64: =Dataset[[#This Row],[2022/23 Baseline]]+Dataset[[#This Row],[2022/23 From - Total]]+Dataset[[#This Row],[2022/23 To - Total]] -> 0 | CS64: =Dataset[[#This Row],[2023/24 Baseline]]+Dataset[[#This Row],[2023/24 From - Total]]+Dataset[[#This Row],[2023/24 To - Total]] -> 0 | CT64: =Dataset[[#This Row],[2024/25 Baseline]]+Dataset[[#This Row],[2024/25 From - Total]]+Dataset[[#This Row],[2024/25 To - Total]] -> 0
A65: NAT|Vehicle licences | B65: 11|Municipal bank accounts | C65: 2022_23 | D65: MTEF2022 | E65: 11 | F65: 1 | G65: 1 | H65: 16568 | I65: 47 | J65: 11 | K65: 01 | L65: 01 | M65: 16568 | N65: 47 | O65: 11|01|01 | P65: 1 | Q65: 2 | R65: 4 | S65: 44 | T65: 45 | U65: 01|02|04|44|45 | V65: National | W65: Public Service and Administration | X65: Administration | Y65: Ministry | Z65: Vehicle licences | AA65: Current | AB65: Transfers and subsidies | AC65: Provinces and municipalities | AD65: Municipalities | AE65: Municipal bank accounts | AF65: General public services | AG65: Public administration and fiscal affairs | AH65: NAT | AI65: 4 | AJ65: 5 | AK65: 4 | AL65: 4 | AM65: 4 | AN65: 4 | AO65: 0 | AP65: 10 | AQ65: 11 | AR65: 12 | AS65: 13 | AT65: 1 | AU65: =IF(Dataset[[#This Row],[Reporting level indicator]]=1,$AU$16,"Not applicable") -> Level 4 | AV65: =INDEX((t_ReportingLevelIndi[[Level 3]:[Level 4]]),MATCH(Dataset[[#This Row],[Econ4]],t_ReportingLevelIndi[Econ4],0),MATCH(Data!$AU$16,t_ReportingLevelIndi[[#Headers],[Level 3]:[Level 4]],0)) -> 1 | AW65: =Dataset[[#This Row],[2017/18_Source]]*Dataset[[#This Row],[Reporting level indicator]] -> 4 | AX65: =Dataset[[#This Row],[2018/19_Source]]*Dataset[[#This Row],[Reporting level indicator]] -> 5 | AY65: =Dataset[[#This Row],[2019/20_Source]]*Dataset[[#This Row],[Reporting level indicator]] -> 4 | AZ65: =Dataset[[#This Row],[2020/21 Main appropriation_Source]]*Dataset[[#This Row],[Reporting level indicator]] -> 4 | BA65: =Dataset[[#This Row],[2020/21 Adjusted appropriation_Source]]*Dataset[[#This Row],[Reporting level indicator]] -> 4 | BB65: =Dataset[[#This Row],[2020/21 Revised estimate_Source]]*Dataset[[#This Row],[Reporting level indicator]] -> 4 | BC65: =Dataset[[#This Row],[2020/21 Preliminary outcome_Source]]*Dataset[[#This Row],[Reporting level indicator]] -> 0 | BD65: =Dataset[[#This Row],[2021/22 Baseline_Source]]*Dataset[[#This Row],[Reporting level indicator]] -> 10 | BE65: =Dataset[[#This Row],[2022/23 Baseline_Source]]*Dataset[[#This Row],[Reporting level indicator]] -> 11 | BF65: =Dataset[[#This Row],[2023/24 Baseline_Source]]*Dataset[[#This Row],[Reporting level indicator]] -> 12 | BG65: =Dataset[[#This Row],[2024/25 Baseline_Source]]*Dataset[[#This Row],[Reporting level indicator]] -> 13 | CL65: =Dataset[[#This Row],[2022/23 From - Spending review Topic 1]]+Dataset[[#This Row],[2022/23 From - Spending review Topic 2]]+Dataset[[#This Row],[2022/23 From - Spending review Topic 3]]+Dataset[[#This Row],[2022/23 From - Spending review Topic 4]]+Dataset[[#This Row],[2022/23 From - Other reallocations]] -> 0 | CM65: =Dataset[[#This Row],[2023/24 From - Spending review Topic 1]]+Dataset[[#This Row],[2023/24 From - Spending review Topic 2]]+Dataset[[#This Row],[2023/24 From - Spending review Topic 3]]+Dataset[[#This Row],[2023/24 From - Spending review Topic 4]]+Dataset[[#This Row],[2023/24 From - Other reallocations]] -> 0 | CN65: =Dataset[[#This Row],[2024/25 From - Spending review Topic 1]]+Dataset[[#This Row],[2024/25 From - Spending review Topic 2]]+Dataset[[#This Row],[2024/25 From - Spending review Topic 3]]+Dataset[[#This Row],[2024/25 From - Spending review Topic 4]]+Dataset[[#This Row],[2024/25 From - Other reallocations]] -> 0 | CO65: =Dataset[[#This Row],[2022/23 To - Spending review Topic 1]]+Dataset[[#This Row],[2022/23 To - Spending review Topic 2]]+Dataset[[#This Row],[2022/23 To - Spending review Topic 3]]+Dataset[[#This Row],[2022/23 To - Spending review Topic 4]]+Dataset[[#This Row],[2022/23 To - Other reallocations]] -> 0 | CP65: =Dataset[[#This Row],[2023/24 To - Spending review Topic 1]]+Dataset[[#This Row],[2023/24 To - Spending review Topic 2]]+Dataset[[#This Row],[2023/24 To - Spending review Topic 3]]+Dataset[[#This Row],[2023/24 To - Spending review Topic 4]]+Dataset[[#This Row],[2023/24 To - Other reallocations]] -> 0 | CQ65: =Dataset[[#This Row],[2024/25 To - Spending review Topic 1]]+Dataset[[#This Row],[2024/25 To - Spending review Topic 2]]+Dataset[[#This Row],[2024/25 To - Spending review Topic 3]]+Dataset[[#This Row],[2024/25 To - Spending review Topic 4]]+Dataset[[#This Row],[2024/25 To - Other reallocations]] -> 0 | CR65: =Dataset[[#This Row],[2022/23 Baseline]]+Dataset[[#This Row],[2022/23 From - Total]]+Dataset[[#This Row],[2022/23 To - Total]] -> 11 | CS65: =Dataset[[#This Row],[2023/24 Baseline]]+Dataset[[#This Row],[2023/24 From - Total]]+Dataset[[#This Row],[2023/24 To - Total]] -> 12 | CT65: =Dataset[[#This Row],[2024/25 Baseline]]+Dataset[[#This Row],[2024/25 From - Total]]+Dataset[[#This Row],[2024/25 To - Total]] -> 13
A66: NAT|Non-transfer item | B66: 11|Municipal agencies and funds | C66: 2022_23 | D66: MTEF2022 | E66: 11 | F66: 1 | G66: 1 | H66: 16569 | I66: 48 | J66: 11 | K66: 01 | L66: 01 | M66: 16569 | N66: 48 | O66: 11|01|01 | P66: 1 | Q66: 2 | R66: 4 | S66: 44 | T66: 46 | U66: 01|02|04|44|46 | V66: National | W66: Public Service and Administration | X66: Administration | Y66: Ministry | Z66: Not available | AA66: Current | AB66: Transfers and subsidies | AC66: Provinces and municipalities | AD66: Municipalities | AE66: Municipal agencies and funds | AF66: General public services | AG66: Public administration and fiscal affairs | AH66: NAT | AI66: 0 | AJ66: 0 | AK66: 0 | AL66: 0 | AM66: 0 | AN66: 0 | AO66: 0 | AP66: 0 | AQ66: 0 | AR66: 0 | AS66: 0 | AT66: 0 | AU66: =IF(Dataset[[#This Row],[Reporting level indicator]]=1,$AU$16,"Not applicable") -> Level 4 | AV66: =INDEX((t_ReportingLevelIndi[[Level 3]:[Level 4]]),MATCH(Dataset[[#This Row],[Econ4]],t_ReportingLevelIndi[Econ4],0),MATCH(Data!$AU$16,t_ReportingLevelIndi[[#Headers],[Level 3]:[Level 4]],0)) -> 1 | AW66: =Dataset[[#This Row],[2017/18_Source]]*Dataset[[#This Row],[Reporting level indicator]] -> 0 | AX66: =Dataset[[#This Row],[2018/19_Source]]*Dataset[[#This Row],[Reporting level indicator]] -> 0 | AY66: =Dataset[[#This Row],[2019/20_Source]]*Dataset[[#This Row],[Reporting level indicator]] -> 0 | AZ66: =Dataset[[#This Row],[2020/21 Main appropriation_Source]]*Dataset[[#This Row],[Reporting level indicator]] -> 0 | BA66: =Dataset[[#This Row],[2020/21 Adjusted appropriation_Source]]*Dataset[[#This Row],[Reporting level indicator]] -> 0 | BB66: =Dataset[[#This Row],[2020/21 Revised estimate_Source]]*Dataset[[#This Row],[Reporting level indicator]] -> 0 | BC66: =Dataset[[#This Row],[2020/21 Preliminary outcome_Source]]*Dataset[[#This Row],[Reporting level indicator]] -> 0 | BD66: =Dataset[[#This Row],[2021/22 Baseline_Source]]*Dataset[[#This Row],[Reporting level indicator]] -> 0 | BE66: =Dataset[[#This Row],[2022/23 Baseline_Source]]*Dataset[[#This Row],[Reporting level indicator]] -> 0 | BF66: =Dataset[[#This Row],[2023/24 Baseline_Source]]*Dataset[[#This Row],[Reporting level indicator]] -> 0 | BG66: =Dataset[[#This Row],[2024/25 Baseline_Source]]*Dataset[[#This Row],[Reporting level indicator]] -> 0 | CL66: =Dataset[[#This Row],[2022/23 From - Spending review Topic 1]]+Dataset[[#This Row],[2022/23 From - Spending review Topic 2]]+Dataset[[#This Row],[2022/23 From - Spending review Topic 3]]+Dataset[[#This Row],[2022/23 From - Spending review Topic 4]]+Dataset[[#This Row],[2022/23 From - Other reallocations]] -> 0 | CM66: =Dataset[[#This Row],[2023/24 From - Spending review Topic 1]]+Dataset[[#This Row],[2023/24 From - Spending review Topic 2]]+Dataset[[#This Row],[2023/24 From - Spending review Topic 3]]+Dataset[[#This Row],[2023/24 From - Spending review Topic 4]]+Dataset[[#This Row],[2023/24 From - Other reallocations]] -> 0 | CN66: =Dataset[[#This Row],[2024/25 From - Spending review Topic 1]]+Dataset[[#This Row],[2024/25 From - Spending review Topic 2]]+Dataset[[#This Row],[2024/25 From - Spending review Topic 3]]+Dataset[[#This Row],[2024/25 From - Spending review Topic 4]]+Dataset[[#This Row],[2024/25 From - Other reallocations]] -> 0 | CO66: =Dataset[[#This Row],[2022/23 To - Spending review Topic 1]]+Dataset[[#This Row],[2022/23 To - Spending review Topic 2]]+Dataset[[#This Row],[2022/23 To - Spending review Topic 3]]+Dataset[[#This Row],[2022/23 To - Spending review Topic 4]]+Dataset[[#This Row],[2022/23 To - Other reallocations]] -> 0 | CP66: =Dataset[[#This Row],[2023/24 To - Spending review Topic 1]]+Dataset[[#This Row],[2023/24 To - Spending review Topic 2]]+Dataset[[#This Row],[2023/24 To - Spending review Topic 3]]+Dataset[[#This Row],[2023/24 To - Spending review Topic 4]]+Dataset[[#This Row],[2023/24 To - Other reallocations]] -> 0 | CQ66: =Dataset[[#This Row],[2024/25 To - Spending review Topic 1]]+Dataset[[#This Row],[2024/25 To - Spending review Topic 2]]+Dataset[[#This Row],[2024/25 To - Spending review Topic 3]]+Dataset[[#This Row],[2024/25 To - Spending review Topic 4]]+Dataset[[#This Row],[2024/25 To - Other reallocations]] -> 0 | CR66: =Dataset[[#This Row],[2022/23 Baseline]]+Dataset[[#This Row],[2022/23 From - Total]]+Dataset[[#This Row],[2022/23 To - Total]] -> 0 | CS66: =Dataset[[#This Row],[2023/24 Baseline]]+Dataset[[#This Row],[2023/24 From - Total]]+Dataset[[#This Row],[2023/24 To - Total]] -> 0 | CT66: =Dataset[[#This Row],[2024/25 Baseline]]+Dataset[[#This Row],[2024/25 From - Total]]+Dataset[[#This Row],[2024/25 To - Total]] -> 0
A67: NAT|Non-transfer item | B67: 11|Social security funds | C67: 2022_23 | D67: MTEF2022 | E67: 11 | F67: 1 | G67: 1 | H67: 16570 | I67: 49 | J67: 11 | K67: 01 | L67: 01 | M67: 16570 | N67: 49 | O67: 11|01|01 | P67: 1 | Q67: 2 | R67: 5 | S67: 45 | T67: 47 | U67: 01|02|05|45|47 | V67: National | W67: Public Service and Administration | X67: Administration | Y67: Ministry | Z67: Not available | AA67: Current | AB67: Transfers and subsidies | AC67: Departmental agencies and accounts | AD67: Social security funds | AE67: Social security funds | AF67: General public services | AG67: Public administration and fiscal affairs | AH67: NAT | AI67: 0 | AJ67: 0 | AK67: 0 | AL67: 0 | AM67: 0 | AN67: 0 | AO67: 0 | AP67: 0 | AQ67: 0 | AR67: 0 | AS67: 0 | AT67: 0 | AU67: =IF(Dataset[[#This Row],[Reporting level indicator]]=1,$AU$16,"Not applicable") -> Level 4 | AV67: =INDEX((t_ReportingLevelIndi[[Level 3]:[Level 4]]),MATCH(Dataset[[#This Row],[Econ4]],t_ReportingLevelIndi[Econ4],0),MATCH(Data!$AU$16,t_ReportingLevelIndi[[#Headers],[Level 3]:[Level 4]],0)) -> 1 | AW67: =Dataset[[#This Row],[2017/18_Source]]*Dataset[[#This Row],[Reporting level indicator]] -> 0 | AX67: =Dataset[[#This Row],[2018/19_Source]]*Dataset[[#This Row],[Reporting level indicator]] -> 0 | AY67: =Dataset[[#This Row],[2019/20_Source]]*Dataset[[#This Row],[Reporting level indicator]] -> 0 | AZ67: =Dataset[[#This Row],[2020/21 Main appropriation_Source]]*Dataset[[#This Row],[Reporting level indicator]] -> 0 | BA67: =Dataset[[#This Row],[2020/21 Adjusted appropriation_Source]]*Dataset[[#This Row],[Reporting level indicator]] -> 0 | BB67: =Dataset[[#This Row],[2020/21 Revised estimate_Source]]*Dataset[[#This Row],[Reporting level indicator]] -> 0 | BC67: =Dataset[[#This Row],[2020/21 Preliminary outcome_Source]]*Dataset[[#This Row],[Reporting level indicator]] -> 0 | BD67: =Dataset[[#This Row],[2021/22 Baseline_Source]]*Dataset[[#This Row],[Reporting level indicator]] -> 0 | BE67: =Dataset[[#This Row],[2022/23 Baseline_Source]]*Dataset[[#This Row],[Reporting level indicator]] -> 0 | BF67: =Dataset[[#This Row],[2023/24 Baseline_Source]]*Dataset[[#This Row],[Reporting level indicator]] -> 0 | BG67: =Dataset[[#This Row],[2024/25 Baseline_Source]]*Dataset[[#This Row],[Reporting level indicator]] -> 0 | CL67: =Dataset[[#This Row],[2022/23 From - Spending review Topic 1]]+Dataset[[#This Row],[2022/23 From - Spending review Topic 2]]+Dataset[[#This Row],[2022/23 From - Spending review Topic 3]]+Dataset[[#This Row],[2022/23 From - Spending review Topic 4]]+Dataset[[#This Row],[2022/23 From - Other reallocations]] -> 0 | CM67: =Dataset[[#This Row],[2023/24 From - Spending review Topic 1]]+Dataset[[#This Row],[2023/24 From - Spending review Topic 2]]+Dataset[[#This Row],[2023/24 From - Spending review Topic 3]]+Dataset[[#This Row],[2023/24 From - Spending review Topic 4]]+Dataset[[#This Row],[2023/24 From - Other reallocations]] -> 0 | CN67: =Dataset[[#This Row],[2024/25 From - Spending review Topic 1]]+Dataset[[#This Row],[2024/25 From - Spending review Topic 2]]+Dataset[[#This Row],[2024/25 From - Spending review Topic 3]]+Dataset[[#This Row],[2024/25 From - Spending review Topic 4]]+Dataset[[#This Row],[2024/25 From - Other reallocations]] -> 0 | CO67: =Dataset[[#This Row],[2022/23 To - Spending review Topic 1]]+Dataset[[#This Row],[2022/23 To - Spending review Topic 2]]+Dataset[[#This Row],[2022/23 To - Spending review Topic 3]]+Dataset[[#This Row],[2022/23 To - Spending review Topic 4]]+Dataset[[#This Row],[2022/23 To - Other reallocations]] -> 0 | CP67: =Dataset[[#This Row],[2023/24 To - Spending review Topic 1]]+Dataset[[#This Row],[2023/24 To - Spending review Topic 2]]+Dataset[[#This Row],[2023/24 To - Spending review Topic 3]]+Dataset[[#This Row],[2023/24 To - Spending review Topic 4]]+Dataset[[#This Row],[2023/24 To - Other reallocations]] -> 0 | CQ67: =Dataset[[#This Row],[2024/25 To - Spending review Topic 1]]+Dataset[[#This Row],[2024/25 To - Spending review Topic 2]]+Dataset[[#This Row],[2024/25 To - Spending review Topic 3]]+Dataset[[#This Row],[2024/25 To - Spending review Topic 4]]+Dataset[[#This Row],[2024/25 To - Other reallocations]] -> 0 | CR67: =Dataset[[#This Row],[2022/23 Baseline]]+Dataset[[#This Row],[2022/23 From - Total]]+Dataset[[#This Row],[2022/23 To - Total]] -> 0 | CS67: =Dataset[[#This Row],[2023/24 Baseline]]+Dataset[[#This Row],[2023/24 From - Total]]+Dataset[[#This Row],[2023/24 To - Total]] -> 0 | CT67: =Dataset[[#This Row],[2024/25 Baseline]]+Dataset[[#This Row],[2024/25 From - Total]]+Dataset[[#This Row],[2024/25 To - Total]] -> 0
A68: NAT|Communication | B68: 11|Departmental agencies (non-business entities) | C68: 2022_23 | D68: MTEF2022 | E68: 11 | F68: 1 | G68: 1 | H68: 16571 | I68: 50 | J68: 11 | K68: 01 | L68: 01 | M68: 16571 | N68: 50 | O68: 11|01|01 | P68: 1 | Q68: 2 | R68: 5 | S68: 46 | T68: 48 | U68: 01|02|05|46|48 | V68: National | W68: Public Service and Administration | X68: Administration | Y68: Ministry | Z68: Communication | AA68: Current | AB68: Transfers and subsidies | AC68: Departmental agencies and accounts | AD68: Departmental agencies (non-business entities) | AE68: Departmental agencies (non-business entities) | AF68: General public services | AG68: Public administration and fiscal affairs | AH68: NAT | AI68: 0 | AJ68: 0 | AK68: 0 | AL68: 99 | AM68: 99 | AN68: 99 | AO68: 0 | AP68: 37 | AQ68: 37 | AR68: 37 | AS68: 39 | AT68: 1 | AU68: =IF(Dataset[[#This Row],[Reporting level indicator]]=1,$AU$16,"Not applicable") -> Level 4 | AV68: =INDEX((t_ReportingLevelIndi[[Level 3]:[Level 4]]),MATCH(Dataset[[#This Row],[Econ4]],t_ReportingLevelIndi[Econ4],0),MATCH(Data!$AU$16,t_ReportingLevelIndi[[#Headers],[Level 3]:[Level 4]],0)) -> 1 | AW68: =Dataset[[#This Row],[2017/18_Source]]*Dataset[[#This Row],[Reporting level indicator]] -> 0 | AX68: =Dataset[[#This Row],[2018/19_Source]]*Dataset[[#This Row],[Reporting level indicator]] -> 0 | AY68: =Dataset[[#This Row],[2019/20_Source]]*Dataset[[#This Row],[Reporting level indicator]] -> 0 | AZ68: =Dataset[[#This Row],[2020/21 Main appropriation_Source]]*Dataset[[#This Row],[Reporting level indicator]] -> 99 | BA68: =Dataset[[#This Row],[2020/21 Adjusted appropriation_Source]]*Dataset[[#This Row],[Reporting level indicator]] -> 99 | BB68: =Dataset[[#This Row],[2020/21 Revised estimate_Source]]*Dataset[[#This Row],[Reporting level indicator]] -> 99 | BC68: =Dataset[[#This Row],[2020/21 Preliminary outcome_Source]]*Dataset[[#This Row],[Reporting level indicator]] -> 0 | BD68: =Dataset[[#This Row],[2021/22 Baseline_Source]]*Dataset[[#This Row],[Reporting level indicator]] -> 37 | BE68: =Dataset[[#This Row],[2022/23 Baseline_Source]]*Dataset[[#This Row],[Reporting level indicator]] -> 37 | BF68: =Dataset[[#This Row],[2023/24 Baseline_Source]]*Dataset[[#This Row],[Reporting level indicator]] -> 37 | BG68: =Dataset[[#This Row],[2024/25 Baseline_Source]]*Dataset[[#This Row],[Reporting level indicator]] -> 39 | CL68: =Dataset[[#This Row],[2022/23 From - Spending review Topic 1]]+Dataset[[#This Row],[2022/23 From - Spending review Topic 2]]+Dataset[[#This Row],[2022/23 From - Spending review Topic 3]]+Dataset[[#This Row],[2022/23 From - Spending review Topic 4]]+Dataset[[#This Row],[2022/23 From - Other reallocations]] -> 0 | CM68: =Dataset[[#This Row],[2023/24 From - Spending review Topic 1]]+Dataset[[#This Row],[2023/24 From - Spending review Topic 2]]+Dataset[[#This Row],[2023/24 From - Spending review Topic 3]]+Dataset[[#This Row],[2023/24 From - Spending review Topic 4]]+Dataset[[#This Row],[2023/24 From - Other reallocations]] -> 0 | CN68: =Dataset[[#This Row],[2024/25 From - Spending review Topic 1]]+Dataset[[#This Row],[2024/25 From - Spending review Topic 2]]+Dataset[[#This Row],[2024/25 From - Spending review Topic 3]]+Dataset[[#This Row],[2024/25 From - Spending review Topic 4]]+Dataset[[#This Row],[2024/25 From - Other reallocations]] -> 0 | CO68: =Dataset[[#This Row],[2022/23 To - Spending review Topic 1]]+Dataset[[#This Row],[2022/23 To - Spending review Topic 2]]+Dataset[[#This Row],[2022/23 To - Spending review Topic 3]]+Dataset[[#This Row],[2022/23 To - Spending review Topic 4]]+Dataset[[#This Row],[2022/23 To - Other reallocations]] -> 0 | CP68: =Dataset[[#This Row],[2023/24 To - Spending review Topic 1]]+Dataset[[#This Row],[2023/24 To - Spending review Topic 2]]+Dataset[[#This Row],[2023/24 To - Spending review Topic 3]]+Dataset[[#This Row],[2023/24 To - Spending review Topic 4]]+Dataset[[#This Row],[2023/24 To - Other reallocations]] -> 0 | CQ68: =Dataset[[#This Row],[2024/25 To - Spending review Topic 1]]+Dataset[[#This Row],[2024/25 To - Spending review Topic 2]]+Dataset[[#This Row],[2024/25 To - Spending review Topic 3]]+Dataset[[#This Row],[2024/25 To - Spending review Topic 4]]+Dataset[[#This Row],[2024/25 To - Other reallocations]] -> 0 | CR68: =Dataset[[#This Row],[2022/23 Baseline]]+Dataset[[#This Row],[2022/23 From - Total]]+Dataset[[#This Row],[2022/23 To - Total]] -> 37 | CS68: =Dataset[[#This Row],[2023/24 Baseline]]+Dataset[[#This Row],[2023/24 From - Total]]+Dataset[[#This Row],[2023/24 To - Total]] -> 37 | CT68: =Dataset[[#This Row],[2024/25 Baseline]]+Dataset[[#This Row],[2024/25 From - Total]]+Dataset[[#This Row],[2024/25 To - Total]] -> 39
A69: NAT|Non-transfer item | B69: 11|Higher education institutions | C69: 2022_23 | D69: MTEF2022 | E69: 11 | F69: 1 | G69: 1 | H69: 16572 | I69: 51 | J69: 11 | K69: 01 | L69: 01 | M69: 16572 | N69: 51 | O69: 11|01|01 | P69: 1 | Q69: 2 | R69: 6 | S69: 47 | T69: 49 | U69: 01|02|06|47|49 | V69: National | W69: Public Service and Administration | X69: Administration | Y69: Ministry | Z69: Not available | AA69: Current | AB69: Transfers and subsidies | AC69: Higher education institutions | AD69: Higher education institutions | AE69: Higher education institutions | AF69: General public services | AG69: Public administration and fiscal affairs | AH69: NAT | AI69: 0 | AJ69: 0 | AK69: 0 | AL69: 0 | AM69: 0 | AN69: 0 | AO69: 0 | AP69: 0 | AQ69: 0 | AR69: 0 | AS69: 0 | AT69: 0 | AU69: =IF(Dataset[[#This Row],[Reporting level indicator]]=1,$AU$16,"Not applicable") -> Level 4 | AV69: =INDEX((t_ReportingLevelIndi[[Level 3]:[Level 4]]),MATCH(Dataset[[#This Row],[Econ4]],t_ReportingLevelIndi[Econ4],0),MATCH(Data!$AU$16,t_ReportingLevelIndi[[#Headers],[Level 3]:[Level 4]],0)) -> 1 | AW69: =Dataset[[#This Row],[2017/18_Source]]*Dataset[[#This Row],[Reporting level indicator]] -> 0 | AX69: =Dataset[[#This Row],[2018/19_Source]]*Dataset[[#This Row],[Reporting level indicator]] -> 0 | AY69: =Dataset[[#This Row],[2019/20_Source]]*Dataset[[#This Row],[Reporting level indicator]] -> 0 | AZ69: =Dataset[[#This Row],[2020/21 Main appropriation_Source]]*Dataset[[#This Row],[Reporting level indicator]] -> 0 | BA69: =Dataset[[#This Row],[2020/21 Adjusted appropriation_Source]]*Dataset[[#This Row],[Reporting level indicator]] -> 0 | BB69: =Dataset[[#This Row],[2020/21 Revised estimate_Source]]*Dataset[[#This Row],[Reporting level indicator]] -> 0 | BC69: =Dataset[[#This Row],[2020/21 Preliminary outcome_Source]]*Dataset[[#This Row],[Reporting level indicator]] -> 0 | BD69: =Dataset[[#This Row],[2021/22 Baseline_Source]]*Dataset[[#This Row],[Reporting level indicator]] -> 0 | BE69: =Dataset[[#This Row],[2022/23 Baseline_Source]]*Dataset[[#This Row],[Reporting level indicator]] -> 0 | BF69: =Dataset[[#This Row],[2023/24 Baseline_Source]]*Dataset[[#This Row],[Reporting level indicator]] -> 0 | BG69: =Dataset[[#This Row],[2024/25 Baseline_Source]]*Dataset[[#This Row],[Reporting level indicator]] -> 0 | CL69: =Dataset[[#This Row],[2022/23 From - Spending review Topic 1]]+Dataset[[#This Row],[2022/23 From - Spending review Topic 2]]+Dataset[[#This Row],[2022/23 From - Spending review Topic 3]]+Dataset[[#This Row],[2022/23 From - Spending review Topic 4]]+Dataset[[#This Row],[2022/23 From - Other reallocations]] -> 0 | CM69: =Dataset[[#This Row],[2023/24 From - Spending review Topic 1]]+Dataset[[#This Row],[2023/24 From - Spending review Topic 2]]+Dataset[[#This Row],[2023/24 From - Spending review Topic 3]]+Dataset[[#This Row],[2023/24 From - Spending review Topic 4]]+Dataset[[#This Row],[2023/24 From - Other reallocations]] -> 0 | CN69: =Dataset[[#This Row],[2024/25 From - Spending review Topic 1]]+Dataset[[#This Row],[2024/25 From - Spending review Topic 2]]+Dataset[[#This Row],[2024/25 From - Spending review Topic 3]]+Dataset[[#This Row],[2024/25 From - Spending review Topic 4]]+Dataset[[#This Row],[2024/25 From - Other reallocations]] -> 0 | CO69: =Dataset[[#This Row],[2022/23 To - Spending review Topic 1]]+Dataset[[#This Row],[2022/23 To - Spending review Topic 2]]+Dataset[[#This Row],[2022/23 To - Spending review Topic 3]]+Dataset[[#This Row],[2022/23 To - Spending review Topic 4]]+Dataset[[#This Row],[2022/23 To - Other reallocations]] -> 0 | CP69: =Dataset[[#This Row],[2023/24 To - Spending review Topic 1]]+Dataset[[#This Row],[2023/24 To - Spending review Topic 2]]+Dataset[[#This Row],[2023/24 To - Spending review Topic 3]]+Dataset[[#This Row],[2023/24 To - Spending review Topic 4]]+Dataset[[#This Row],[2023/24 To - Other reallocations]] -> 0 | CQ69: =Dataset[[#This Row],[2024/25 To - Spending review Topic 1]]+Dataset[[#This Row],[2024/25 To - Spending review Topic 2]]+Dataset[[#This Row],[2024/25 To - Spending review Topic 3]]+Dataset[[#This Row],[2024/25 To - Spending review Topic 4]]+Dataset[[#This Row],[2024/25 To - Other reallocations]] -> 0 | CR69: =Dataset[[#This Row],[2022/23 Baseline]]+Dataset[[#This Row],[2022/23 From - Total]]+Dataset[[#This Row],[2022/23 To - Total]] -> 0 | CS69: =Dataset[[#This Row],[2023/24 Baseline]]+Dataset[[#This Row],[2023/24 From - Total]]+Dataset[[#This Row],[2023/24 To - Total]] -> 0 | CT69: =Dataset[[#This Row],[2024/25 Baseline]]+Dataset[[#This Row],[2024/25 From - Total]]+Dataset[[#This Row],[2024/25 To - Total]] -> 0
A70: NAT|Non-transfer item | B70: 11|Foreign governments and international organisations | C70: 2022_23 | D70: MTEF2022 | E70: 11 | F70: 1 | G70: 1 | H70: 16573 | I70: 52 | J70: 11 | K70: 01 | L70: 01 | M70: 16573 | N70: 52 | O70: 11|01|01 | P70: 1 | Q70: 2 | R70: 7 | S70: 48 | T70: 50 | U70: 01|02|07|48|50 | V70: National | W70: Public Service and Administration | X70: Administration | Y70: Ministry | Z70: Not available | AA70: Current | AB70: Transfers and subsidies | AC70: Foreign governments and international organisations | AD70: Foreign governments and international organisations | AE70: Foreign governments and international organisations | AF70: General public services | AG70: Public administration and fiscal affairs | AH70: NAT | AI70: 0 | AJ70: 0 | AK70: 0 | AL70: 0 | AM70: 0 | AN70: 0 | AO70: 0 | AP70: 0 | AQ70: 0 | AR70: 0 | AS70: 0 | AT70: 0 | AU70: =IF(Dataset[[#This Row],[Reporting level indicator]]=1,$AU$16,"Not applicable") -> Level 4 | AV70: =INDEX((t_ReportingLevelIndi[[Level 3]:[Level 4]]),MATCH(Dataset[[#This Row],[Econ4]],t_ReportingLevelIndi[Econ4],0),MATCH(Data!$AU$16,t_ReportingLevelIndi[[#Headers],[Level 3]:[Level 4]],0)) -> 1 | AW70: =Dataset[[#This Row],[2017/18_Source]]*Dataset[[#This Row],[Reporting level indicator]] -> 0 | AX70: =Dataset[[#This Row],[2018/19_Source]]*Dataset[[#This Row],[Reporting level indicator]] -> 0 | AY70: =Dataset[[#This Row],[2019/20_Source]]*Dataset[[#This Row],[Reporting level indicator]] -> 0 | AZ70: =Dataset[[#This Row],[2020/21 Main appropriation_Source]]*Dataset[[#This Row],[Reporting level indicator]] -> 0 | BA70: =Dataset[[#This Row],[2020/21 Adjusted appropriation_Source]]*Dataset[[#This Row],[Reporting level indicator]] -> 0 | BB70: =Dataset[[#This Row],[2020/21 Revised estimate_Source]]*Dataset[[#This Row],[Reporting level indicator]] -> 0 | BC70: =Dataset[[#This Row],[2020/21 Preliminary outcome_Source]]*Dataset[[#This Row],[Reporting level indicator]] -> 0 | BD70: =Dataset[[#This Row],[2021/22 Baseline_Source]]*Dataset[[#This Row],[Reporting level indicator]] -> 0 | BE70: =Dataset[[#This Row],[2022/23 Baseline_Source]]*Dataset[[#This Row],[Reporting level indicator]] -> 0 | BF70: =Dataset[[#This Row],[2023/24 Baseline_Source]]*Dataset[[#This Row],[Reporting level indicator]] -> 0 | BG70: =Dataset[[#This Row],[2024/25 Baseline_Source]]*Dataset[[#This Row],[Reporting level indicator]] -> 0 | CL70: =Dataset[[#This Row],[2022/23 From - Spending review Topic 1]]+Dataset[[#This Row],[2022/23 From - Spending review Topic 2]]+Dataset[[#This Row],[2022/23 From - Spending review Topic 3]]+Dataset[[#This Row],[2022/23 From - Spending review Topic 4]]+Dataset[[#This Row],[2022/23 From - Other reallocations]] -> 0 | CM70: =Dataset[[#This Row],[2023/24 From - Spending review Topic 1]]+Dataset[[#This Row],[2023/24 From - Spending review Topic 2]]+Dataset[[#This Row],[2023/24 From - Spending review Topic 3]]+Dataset[[#This Row],[2023/24 From - Spending review Topic 4]]+Dataset[[#This Row],[2023/24 From - Other reallocations]] -> 0 | CN70: =Dataset[[#This Row],[2024/25 From - Spending review Topic 1]]+Dataset[[#This Row],[2024/25 From - Spending review Topic 2]]+Dataset[[#This Row],[2024/25 From - Spending review Topic 3]]+Dataset[[#This Row],[2024/25 From - Spending review Topic 4]]+Dataset[[#This Row],[2024/25 From - Other reallocations]] -> 0 | CO70: =Dataset[[#This Row],[2022/23 To - Spending review Topic 1]]+Dataset[[#This Row],[2022/23 To - Spending review Topic 2]]+Dataset[[#This Row],[2022/23 To - Spending review Topic 3]]+Dataset[[#This Row],[2022/23 To - Spending review Topic 4]]+Dataset[[#This Row],[2022/23 To - Other reallocations]] -> 0 | CP70: =Dataset[[#This Row],[2023/24 To - Spending review Topic 1]]+Dataset[[#This Row],[2023/24 To - Spending review Topic 2]]+Dataset[[#This Row],[2023/24 To - Spending review Topic 3]]+Dataset[[#This Row],[2023/24 To - Spending review Topic 4]]+Dataset[[#This Row],[2023/24 To - Other reallocations]] -> 0 | CQ70: =Dataset[[#This Row],[2024/25 To - Spending review Topic 1]]+Dataset[[#This Row],[2024/25 To - Spending review Topic 2]]+Dataset[[#This Row],[2024/25 To - Spending review Topic 3]]+Dataset[[#This Row],[2024/25 To - Spending review Topic 4]]+Dataset[[#This Row],[2024/25 To - Other reallocations]] -> 0 | CR70: =Dataset[[#This Row],[2022/23 Baseline]]+Dataset[[#This Row],[2022/23 From - Total]]+Dataset[[#This Row],[2022/23 To - Total]] -> 0 | CS70: =Dataset[[#This Row],[2023/24 Baseline]]+Dataset[[#This Row],[2023/24 From - Total]]+Dataset[[#This Row],[2023/24 To - Total]] -> 0 | CT70: =Dataset[[#This Row],[2024/25 Baseline]]+Dataset[[#This Row],[2024/25 From - Total]]+Dataset[[#This Row],[2024/25 To - Total]] -> 0
A71: NAT|Non-transfer item | B71: 11|Subsidies on products and production (pc) | C71: 2022_23 | D71: MTEF2022 | E71: 11 | F71: 1 | G71: 1 | H71: 16574 | I71: 53 | J71: 11 | K71: 01 | L71: 01 | M71: 16574 | N71: 53 | O71: 11|01|01 | P71: 1 | Q71: 2 | R71: 8 | S71: 49 | T71: 51 | U71: 01|02|08|49|51 | V71: National | W71: Public Service and Administration | X71: Administration | Y71: Ministry | Z71: Not available | AA71: Current | AB71: Transfers and subsidies | AC71: Public corporations and private enterprises | AD71: Public corporations | AE71: Subsidies on products and production (pc) | AF71: General public services | AG71: Public administration and fiscal affairs | AH71: NAT | AI71: 0 | AJ71: 0 | AK71: 0 | AL71: 0 | AM71: 0 | AN71: 0 | AO71: 0 | AP71: 0 | AQ71: 0 | AR71: 0 | AS71: 0 | AT71: 0 | AU71: =IF(Dataset[[#This Row],[Reporting level indicator]]=1,$AU$16,"Not applicable") -> Level 4 | AV71: =INDEX((t_ReportingLevelIndi[[Level 3]:[Level 4]]),MATCH(Dataset[[#This Row],[Econ4]],t_ReportingLevelIndi[Econ4],0),MATCH(Data!$AU$16,t_ReportingLevelIndi[[#Headers],[Level 3]:[Level 4]],0)) -> 1 | AW71: =Dataset[[#This Row],[2017/18_Source]]*Dataset[[#This Row],[Reporting level indicator]] -> 0 | AX71: =Dataset[[#This Row],[2018/19_Source]]*Dataset[[#This Row],[Reporting level indicator]] -> 0 | AY71: =Dataset[[#This Row],[2019/20_Source]]*Dataset[[#This Row],[Reporting level indicator]] -> 0 | AZ71: =Dataset[[#This Row],[2020/21 Main appropriation_Source]]*Dataset[[#This Row],[Reporting level indicator]] -> 0 | BA71: =Dataset[[#This Row],[2020/21 Adjusted appropriation_Source]]*Dataset[[#This Row],[Reporting level indicator]] -> 0 | BB71: =Dataset[[#This Row],[2020/21 Revised estimate_Source]]*Dataset[[#This Row],[Reporting level indicator]] -> 0 | BC71: =Dataset[[#This Row],[2020/21 Preliminary outcome_Source]]*Dataset[[#This Row],[Reporting level indicator]] -> 0 | BD71: =Dataset[[#This Row],[2021/22 Baseline_Source]]*Dataset[[#This Row],[Reporting level indicator]] -> 0 | BE71: =Dataset[[#This Row],[2022/23 Baseline_Source]]*Dataset[[#This Row],[Reporting level indicator]] -> 0 | BF71: =Dataset[[#This Row],[2023/24 Baseline_Source]]*Dataset[[#This Row],[Reporting level indicator]] -> 0 | BG71: =Dataset[[#This Row],[2024/25 Baseline_Source]]*Dataset[[#This Row],[Reporting level indicator]] -> 0 | CL71: =Dataset[[#This Row],[2022/23 From - Spending review Topic 1]]+Dataset[[#This Row],[2022/23 From - Spending review Topic 2]]+Dataset[[#This Row],[2022/23 From - Spending review Topic 3]]+Dataset[[#This Row],[2022/23 From - Spending review Topic 4]]+Dataset[[#This Row],[2022/23 From - Other reallocations]] -> 0 | CM71: =Dataset[[#This Row],[2023/24 From - Spending review Topic 1]]+Dataset[[#This Row],[2023/24 From - Spending review Topic 2]]+Dataset[[#This Row],[2023/24 From - Spending review Topic 3]]+Dataset[[#This Row],[2023/24 From - Spending review Topic 4]]+Dataset[[#This Row],[2023/24 From - Other reallocations]] -> 0 | CN71: =Dataset[[#This Row],[2024/25 From - Spending review Topic 1]]+Dataset[[#This Row],[2024/25 From - Spending review Topic 2]]+Dataset[[#This Row],[2024/25 From - Spending review Topic 3]]+Dataset[[#This Row],[2024/25 From - Spending review Topic 4]]+Dataset[[#This Row],[2024/25 From - Other reallocations]] -> 0 | CO71: =Dataset[[#This Row],[2022/23 To - Spending review Topic 1]]+Dataset[[#This Row],[2022/23 To - Spending review Topic 2]]+Dataset[[#This Row],[2022/23 To - Spending review Topic 3]]+Dataset[[#This Row],[2022/23 To - Spending review Topic 4]]+Dataset[[#This Row],[2022/23 To - Other reallocations]] -> 0 | CP71: =Dataset[[#This Row],[2023/24 To - Spending review Topic 1]]+Dataset[[#This Row],[2023/24 To - Spending review Topic 2]]+Dataset[[#This Row],[2023/24 To - Spending review Topic 3]]+Dataset[[#This Row],[2023/24 To - Spending review Topic 4]]+Dataset[[#This Row],[2023/24 To - Other reallocations]] -> 0 | CQ71: =Dataset[[#This Row],[2024/25 To - Spending review Topic 1]]+Dataset[[#This Row],[2024/25 To - Spending review Topic 2]]+Dataset[[#This Row],[2024/25 To - Spending review Topic 3]]+Dataset[[#This Row],[2024/25 To - Spending review Topic 4]]+Dataset[[#This Row],[2024/25 To - Other reallocations]] -> 0 | CR71: =Dataset[[#This Row],[2022/23 Baseline]]+Dataset[[#This Row],[2022/23 From - Total]]+Dataset[[#This Row],[2022/23 To - Total]] -> 0 | CS71: =Dataset[[#This Row],[2023/24 Baseline]]+Dataset[[#This Row],[2023/24 From - Total]]+Dataset[[#This Row],[2023/24 To - Total]] -> 0 | CT71: =Dataset[[#This Row],[2024/25 Baseline]]+Dataset[[#This Row],[2024/25 From - Total]]+Dataset[[#This Row],[2024/25 To - Total]] -> 0
A72: NAT|Non-transfer item | B72: 11|Other transfers to public corporations | C72: 2022_23 | D72: MTEF2022 | E72: 11 | F72: 1 | G72: 1 | H72: 16575 | I72: 54 | J72: 11 | K72: 01 | L72: 01 | M72: 16575 | N72: 54 | O72: 11|01|01 | P72: 1 | Q72: 2 | R72: 8 | S72: 49 | T72: 52 | U72: 01|02|08|49|52 | V72: National | W72: Public Service and Administration | X72: Administration | Y72: Ministry | Z72: Not available | AA72: Current | AB72: Transfers and subsidies | AC72: Public corporations and private enterprises | AD72: Public corporations | AE72: Other transfers to public corporations | AF72: General public services | AG72: Public administration and fiscal affairs | AH72: NAT | AI72: 0 | AJ72: 0 | AK72: 0 | AL72: 0 | AM72: 0 | AN72: 0 | AO72: 0 | AP72: 0 | AQ72: 0 | AR72: 0 | AS72: 0 | AT72: 0 | AU72: =IF(Dataset[[#This Row],[Reporting level indicator]]=1,$AU$16,"Not applicable") -> Level 4 | AV72: =INDEX((t_ReportingLevelIndi[[Level 3]:[Level 4]]),MATCH(Dataset[[#This Row],[Econ4]],t_ReportingLevelIndi[Econ4],0),MATCH(Data!$AU$16,t_ReportingLevelIndi[[#Headers],[Level 3]:[Level 4]],0)) -> 1 | AW72: =Dataset[[#This Row],[2017/18_Source]]*Dataset[[#This Row],[Reporting level indicator]] -> 0 | AX72: =Dataset[[#This Row],[2018/19_Source]]*Dataset[[#This Row],[Reporting level indicator]] -> 0 | AY72: =Dataset[[#This Row],[2019/20_Source]]*Dataset[[#This Row],[Reporting level indicator]] -> 0 | AZ72: =Dataset[[#This Row],[2020/21 Main appropriation_Source]]*Dataset[[#This Row],[Reporting level indicator]] -> 0 | BA72: =Dataset[[#This Row],[2020/21 Adjusted appropriation_Source]]*Dataset[[#This Row],[Reporting level indicator]] -> 0 | BB72: =Dataset[[#This Row],[2020/21 Revised estimate_Source]]*Dataset[[#This Row],[Reporting level indicator]] -> 0 | BC72: =Dataset[[#This Row],[2020/21 Preliminary outcome_Source]]*Dataset[[#This Row],[Reporting level indicator]] -> 0 | BD72: =Dataset[[#This Row],[2021/22 Baseline_Source]]*Dataset[[#This Row],[Reporting level indicator]] -> 0 | BE72: =Dataset[[#This Row],[2022/23 Baseline_Source]]*Dataset[[#This Row],[Reporting level indicator]] -> 0 | BF72: =Dataset[[#This Row],[2023/24 Baseline_Source]]*Dataset[[#This Row],[Reporting level indicator]] -> 0 | BG72: =Dataset[[#This Row],[2024/25 Baseline_Source]]*Dataset[[#This Row],[Reporting level indicator]] -> 0 | CL72: =Dataset[[#This Row],[2022/23 From - Spending review Topic 1]]+Dataset[[#This Row],[2022/23 From - Spending review Topic 2]]+Dataset[[#This Row],[2022/23 From - Spending review Topic 3]]+Dataset[[#This Row],[2022/23 From - Spending review Topic 4]]+Dataset[[#This Row],[2022/23 From - Other reallocations]] -> 0 | CM72: =Dataset[[#This Row],[2023/24 From - Spending review Topic 1]]+Dataset[[#This Row],[2023/24 From - Spending review Topic 2]]+Dataset[[#This Row],[2023/24 From - Spending review Topic 3]]+Dataset[[#This Row],[2023/24 From - Spending review Topic 4]]+Dataset[[#This Row],[2023/24 From - Other reallocations]] -> 0 | CN72: =Dataset[[#This Row],[2024/25 From - Spending review Topic 1]]+Dataset[[#This Row],[2024/25 From - Spending review Topic 2]]+Dataset[[#This Row],[2024/25 From - Spending review Topic 3]]+Dataset[[#This Row],[2024/25 From - Spending review Topic 4]]+Dataset[[#This Row],[2024/25 From - Other reallocations]] -> 0 | CO72: =Dataset[[#This Row],[2022/23 To - Spending review Topic 1]]+Dataset[[#This Row],[2022/23 To - Spending review Topic 2]]+Dataset[[#This Row],[2022/23 To - Spending review Topic 3]]+Dataset[[#This Row],[2022/23 To - Spending review Topic 4]]+Dataset[[#This Row],[2022/23 To - Other reallocations]] -> 0 | CP72: =Dataset[[#This Row],[2023/24 To - Spending review Topic 1]]+Dataset[[#This Row],[2023/24 To - Spending review Topic 2]]+Dataset[[#This Row],[2023/24 To - Spending review Topic 3]]+Dataset[[#This Row],[2023/24 To - Spending review Topic 4]]+Dataset[[#This Row],[2023/24 To - Other reallocations]] -> 0 | CQ72: =Dataset[[#This Row],[2024/25 To - Spending review Topic 1]]+Dataset[[#This Row],[2024/25 To - Spending review Topic 2]]+Dataset[[#This Row],[2024/25 To - Spending review Topic 3]]+Dataset[[#This Row],[2024/25 To - Spending review Topic 4]]+Dataset[[#This Row],[2024/25 To - Other reallocations]] -> 0 | CR72: =Dataset[[#This Row],[2022/23 Baseline]]+Dataset[[#This Row],[2022/23 From - Total]]+Dataset[[#This Row],[2022/23 To - Total]] -> 0 | CS72: =Dataset[[#This Row],[2023/24 Baseline]]+Dataset[[#This Row],[2023/24 From - Total]]+Dataset[[#This Row],[2023/24 To - Total]] -> 0 | CT72: =Dataset[[#This Row],[2024/25 Baseline]]+Dataset[[#This Row],[2024/25 From - Total]]+Dataset[[#This Row],[2024/25 To - Total]] -> 0
A73: NAT|Non-transfer item | B73: 11|Subsidies on products and production (pe) | C73: 2022_23 | D73: MTEF2022 | E73: 11 | F73: 1 | G73: 1 | H73: 16576 | I73: 55 | J73: 11 | K73: 01 | L73: 01 | M73: 16576 | N73: 55 | O73: 11|01|01 | P73: 1 | Q73: 2 | R73: 8 | S73: 50 | T73: 53 | U73: 01|02|08|50|53 | V73: National | W73: Public Service and Administration | X73: Administration | Y73: Ministry | Z73: Not available | AA73: Current | AB73: Transfers and subsidies | AC73: Public corporations and private enterprises | AD73: Private enterprises | AE73: Subsidies on products and production (pe) | AF73: General public services | AG73: Public administration and fiscal affairs | AH73: NAT | AI73: 0 | AJ73: 0 | AK73: 0 | AL73: 0 | AM73: 0 | AN73: 0 | AO73: 0 | AP73: 0 | AQ73: 0 | AR73: 0 | AS73: 0 | AT73: 0 | AU73: =IF(Dataset[[#This Row],[Reporting level indicator]]=1,$AU$16,"Not applicable") -> Level 4 | AV73: =INDEX((t_ReportingLevelIndi[[Level 3]:[Level 4]]),MATCH(Dataset[[#This Row],[Econ4]],t_ReportingLevelIndi[Econ4],0),MATCH(Data!$AU$16,t_ReportingLevelIndi[[#Headers],[Level 3]:[Level 4]],0)) -> 1 | AW73: =Dataset[[#This Row],[2017/18_Source]]*Dataset[[#This Row],[Reporting level indicator]] -> 0 | AX73: =Dataset[[#This Row],[2018/19_Source]]*Dataset[[#This Row],[Reporting level indicator]] -> 0 | AY73: =Dataset[[#This Row],[2019/20_Source]]*Dataset[[#This Row],[Reporting level indicator]] -> 0 | AZ73: =Dataset[[#This Row],[2020/21 Main appropriation_Source]]*Dataset[[#This Row],[Reporting level indicator]] -> 0 | BA73: =Dataset[[#This Row],[2020/21 Adjusted appropriation_Source]]*Dataset[[#This Row],[Reporting level indicator]] -> 0 | BB73: =Dataset[[#This Row],[2020/21 Revised estimate_Source]]*Dataset[[#This Row],[Reporting level indicator]] -> 0 | BC73: =Dataset[[#This Row],[2020/21 Preliminary outcome_Source]]*Dataset[[#This Row],[Reporting level indicator]] -> 0 | BD73: =Dataset[[#This Row],[2021/22 Baseline_Source]]*Dataset[[#This Row],[Reporting level indicator]] -> 0 | BE73: =Dataset[[#This Row],[2022/23 Baseline_Source]]*Dataset[[#This Row],[Reporting level indicator]] -> 0 | BF73: =Dataset[[#This Row],[2023/24 Baseline_Source]]*Dataset[[#This Row],[Reporting level indicator]] -> 0 | BG73: =Dataset[[#This Row],[2024/25 Baseline_Source]]*Dataset[[#This Row],[Reporting level indicator]] -> 0 | CL73: =Dataset[[#This Row],[2022/23 From - Spending review Topic 1]]+Dataset[[#This Row],[2022/23 From - Spending review Topic 2]]+Dataset[[#This Row],[2022/23 From - Spending review Topic 3]]+Dataset[[#This Row],[2022/23 From - Spending review Topic 4]]+Dataset[[#This Row],[2022/23 From - Other reallocations]] -> 0 | CM73: =Dataset[[#This Row],[2023/24 From - Spending review Topic 1]]+Dataset[[#This Row],[2023/24 From - Spending review Topic 2]]+Dataset[[#This Row],[2023/24 From - Spending review Topic 3]]+Dataset[[#This Row],[2023/24 From - Spending review Topic 4]]+Dataset[[#This Row],[2023/24 From - Other reallocations]] -> 0 | CN73: =Dataset[[#This Row],[2024/25 From - Spending review Topic 1]]+Dataset[[#This Row],[2024/25 From - Spending review Topic 2]]+Dataset[[#This Row],[2024/25 From - Spending review Topic 3]]+Dataset[[#This Row],[2024/25 From - Spending review Topic 4]]+Dataset[[#This Row],[2024/25 From - Other reallocations]] -> 0 | CO73: =Dataset[[#This Row],[2022/23 To - Spending review Topic 1]]+Dataset[[#This Row],[2022/23 To - Spending review Topic 2]]+Dataset[[#This Row],[2022/23 To - Spending review Topic 3]]+Dataset[[#This Row],[2022/23 To - Spending review Topic 4]]+Dataset[[#This Row],[2022/23 To - Other reallocations]] -> 0 | CP73: =Dataset[[#This Row],[2023/24 To - Spending review Topic 1]]+Dataset[[#This Row],[2023/24 To - Spending review Topic 2]]+Dataset[[#This Row],[2023/24 To - Spending review Topic 3]]+Dataset[[#This Row],[2023/24 To - Spending review Topic 4]]+Dataset[[#This Row],[2023/24 To - Other reallocations]] -> 0 | CQ73: =Dataset[[#This Row],[2024/25 To - Spending review Topic 1]]+Dataset[[#This Row],[2024/25 To - Spending review Topic 2]]+Dataset[[#This Row],[2024/25 To - Spending review Topic 3]]+Dataset[[#This Row],[2024/25 To - Spending review Topic 4]]+Dataset[[#This Row],[2024/25 To - Other reallocations]] -> 0 | CR73: =Dataset[[#This Row],[2022/23 Baseline]]+Dataset[[#This Row],[2022/23 From - Total]]+Dataset[[#This Row],[2022/23 To - Total]] -> 0 | CS73: =Dataset[[#This Row],[2023/24 Baseline]]+Dataset[[#This Row],[2023/24 From - Total]]+Dataset[[#This Row],[2023/24 To - Total]] -> 0 | CT73: =Dataset[[#This Row],[2024/25 Baseline]]+Dataset[[#This Row],[2024/25 From - Total]]+Dataset[[#This Row],[2024/25 To - Total]] -> 0
A74: NAT|Non-transfer item | B74: 11|Other transfers to private enterprises | C74: 2022_23 | D74: MTEF2022 | E74: 11 | F74: 1 | G74: 1 | H74: 16577 | I74: 56 | J74: 11 | K74: 01 | L74: 01 | M74: 16577 | N74: 56 | O74: 11|01|01 | P74: 1 | Q74: 2 | R74: 8 | S74: 50 | T74: 54 | U74: 01|02|08|50|54 | V74: National | W74: Public Service and Administration | X74: Administration | Y74: Ministry | Z74: Not available | AA74: Current | AB74: Transfers and subsidies | AC74: Public corporations and private enterprises | AD74: Private enterprises | AE74: Other transfers to private enterprises | AF74: General public services | AG74: Public administration and fiscal affairs | AH74: NAT | AI74: 0 | AJ74: 0 | AK74: 0 | AL74: 0 | AM74: 0 | AN74: 0 | AO74: 0 | AP74: 0 | AQ74: 0 | AR74: 0 | AS74: 0 | AT74: 0 | AU74: =IF(Dataset[[#This Row],[Reporting level indicator]]=1,$AU$16,"Not applicable") -> Level 4 | AV74: =INDEX((t_ReportingLevelIndi[[Level 3]:[Level 4]]),MATCH(Dataset[[#This Row],[Econ4]],t_ReportingLevelIndi[Econ4],0),MATCH(Data!$AU$16,t_ReportingLevelIndi[[#Headers],[Level 3]:[Level 4]],0)) -> 1 | AW74: =Dataset[[#This Row],[2017/18_Source]]*Dataset[[#This Row],[Reporting level indicator]] -> 0 | AX74: =Dataset[[#This Row],[2018/19_Source]]*Dataset[[#This Row],[Reporting level indicator]] -> 0 | AY74: =Dataset[[#This Row],[2019/20_Source]]*Dataset[[#This Row],[Reporting level indicator]] -> 0 | AZ74: =Dataset[[#This Row],[2020/21 Main appropriation_Source]]*Dataset[[#This Row],[Reporting level indicator]] -> 0 | BA74: =Dataset[[#This Row],[2020/21 Adjusted appropriation_Source]]*Dataset[[#This Row],[Reporting level indicator]] -> 0 | BB74: =Dataset[[#This Row],[2020/21 Revised estimate_Source]]*Dataset[[#This Row],[Reporting level indicator]] -> 0 | BC74: =Dataset[[#This Row],[2020/21 Preliminary outcome_Source]]*Dataset[[#This Row],[Reporting level indicator]] -> 0 | BD74: =Dataset[[#This Row],[2021/22 Baseline_Source]]*Dataset[[#This Row],[Reporting level indicator]] -> 0 | BE74: =Dataset[[#This Row],[2022/23 Baseline_Source]]*Dataset[[#This Row],[Reporting level indicator]] -> 0 | BF74: =Dataset[[#This Row],[2023/24 Baseline_Source]]*Dataset[[#This Row],[Reporting level indicator]] -> 0 | BG74: =Dataset[[#This Row],[2024/25 Baseline_Source]]*Dataset[[#This Row],[Reporting level indicator]] -> 0 | CL74: =Dataset[[#This Row],[2022/23 From - Spending review Topic 1]]+Dataset[[#This Row],[2022/23 From - Spending review Topic 2]]+Dataset[[#This Row],[2022/23 From - Spending review Topic 3]]+Dataset[[#This Row],[2022/23 From - Spending review Topic 4]]+Dataset[[#This Row],[2022/23 From - Other reallocations]] -> 0 | CM74: =Dataset[[#This Row],[2023/24 From - Spending review Topic 1]]+Dataset[[#This Row],[2023/24 From - Spending review Topic 2]]+Dataset[[#This Row],[2023/24 From - Spending review Topic 3]]+Dataset[[#This Row],[2023/24 From - Spending review Topic 4]]+Dataset[[#This Row],[2023/24 From - Other reallocations]] -> 0 | CN74: =Dataset[[#This Row],[2024/25 From - Spending review Topic 1]]+Dataset[[#This Row],[2024/25 From - Spending review Topic 2]]+Dataset[[#This Row],[2024/25 From - Spending review Topic 3]]+Dataset[[#This Row],[2024/25 From - Spending review Topic 4]]+Dataset[[#This Row],[2024/25 From - Other reallocations]] -> 0 | CO74: =Dataset[[#This Row],[2022/23 To - Spending review Topic 1]]+Dataset[[#This Row],[2022/23 To - Spending review Topic 2]]+Dataset[[#This Row],[2022/23 To - Spending review Topic 3]]+Dataset[[#This Row],[2022/23 To - Spending review Topic 4]]+Dataset[[#This Row],[2022/23 To - Other reallocations]] -> 0 | CP74: =Dataset[[#This Row],[2023/24 To - Spending review Topic 1]]+Dataset[[#This Row],[2023/24 To - Spending review Topic 2]]+Dataset[[#This Row],[2023/24 To - Spending review Topic 3]]+Dataset[[#This Row],[2023/24 To - Spending review Topic 4]]+Dataset[[#This Row],[2023/24 To - Other reallocations]] -> 0 | CQ74: =Dataset[[#This Row],[2024/25 To - Spending review Topic 1]]+Dataset[[#This Row],[2024/25 To - Spending review Topic 2]]+Dataset[[#This Row],[2024/25 To - Spending review Topic 3]]+Dataset[[#This Row],[2024/25 To - Spending review Topic 4]]+Dataset[[#This Row],[2024/25 To - Other reallocations]] -> 0 | CR74: =Dataset[[#This Row],[2022/23 Baseline]]+Dataset[[#This Row],[2022/23 From - Total]]+Dataset[[#This Row],[2022/23 To - Total]] -> 0 | CS74: =Dataset[[#This Row],[2023/24 Baseline]]+Dataset[[#This Row],[2023/24 From - Total]]+Dataset[[#This Row],[2023/24 To - Total]] -> 0 | CT74: =Dataset[[#This Row],[2024/25 Baseline]]+Dataset[[#This Row],[2024/25 From - Total]]+Dataset[[#This Row],[2024/25 To - Total]] -> 0
